{"text_format":"3","workbook":"xlsx","n_sheets":5,"sheets":["ΕΝΑΡΞΗ","ΠΡΟΓΡΑΜΜΑΤΙΣΜΕΝΑ ΕΞΟΔΑ","ΠΡΑΓΜΑΤΙΚΑ ΕΞΟΔΑ","ΔΙΑΚΥΜΑΝΣΕΙΣ ΕΞΟΔΩΝ","ΑΝΑΛΥΣΗ ΕΞΟΔΩΝ"],"not_rendered":{"charts":3,"images":2,"defined_names":1},"read":"whole","date_system":"1900"}

{"sheet":"ΕΝΑΡΞΗ","index":0,"n_rows":8,"n_cols":2,"rows_kept":8}
[null,"ΠΛΗΡΟΦΟΡΙΕΣ ΓΙΑ ΑΥΤΟ ΤΟ ΠΡΟΤΥΠΟ"]
[null,"Χρησιμοποιήστε αυτό το βιβλίο εργασίας προϋπολογισμού επαγγελματικών εξόδων για να παρακολουθείτε τα προγραμματισμένα και τα πραγματικά έξοδα και τις αντίστοιχες διακυμάνσεις."]
[null,"Συμπληρώστε την επωνυμία εταιρείας και προσθέστε το λογότυπο."]
[null,"Εισαγάγετε λεπτομέρειες στο φύλλο εργασίας \"Προγραμματισμένα έξοδα\" και στο φύλλο εργασίας \"Πραγματικά έξοδα\"."]
[null,"Οι πίνακες ενημερώνονται αυτόματα στο φύλλο εργασίας \"Διακυμάνσεις εξόδων\" και τα γραφήματα στο φύλλο εργασίας \"Ανάλυση εξόδων\""]
[null,"Σημείωση: "]
[null,"Στη στήλη A σε κάθε φύλλο εργασίας παρέχονται πρόσθετες οδηγίες. Αυτό το κείμενο είναι κρυφό σκόπιμα. Για να καταργήσετε το κείμενο, επιλέξτε τη στήλη A και, στη συνέχεια, πατήστε το πλήκτρο DELETE. Για να εμφανίσετε το κείμενο, επιλέξτε τη στήλη A και, στη συνέχεια, αλλάξτε το χρώμα γραμματοσειράς."]
[null,"Για να μάθετε περισσότερα για τους πίνακες, πατήστε το πλήκτρο SHIFT και, στη συνέχεια, F10 μέσα σε έναν πίνακα, επιλέξτε \"ΠΙΝΑΚΑΣ\" και, στη συνέχεια, επιλέξτε \"ΕΝΑΛΛΑΚΤΙΚΟ ΚΕΙΜΕΝΟ\""]

{"sheet":"ΠΡΟΓΡΑΜΜΑΤΙΣΜΕΝΑ ΕΞΟΔΑ","index":1,"n_rows":37,"n_cols":18,"rows_kept":37,"merged":[[1,1,2,3],[1,10,1,12],[1,13,2,14],[2,10,2,12],[3,17,12,19],[8,1,8,2],[19,1,19,2],[28,1,28,2],[33,1,33,2]]}
["Εισαγάγετε τα προγραμματισμένα έξοδα υπαλλήλων, έξοδα γραφείου, έξοδα μάρκετινγκ και έξοδα εκπαίδευσης και μετακινήσεων στους αντίστοιχους πίνακες σε αυτό το φύλλο εργασίας. Τα σύνολα υπολογίζονται αυτόματα. Σε διάφορα κελιά σε αυτή τη στήλη βρίσκονται χρήσιμες οδηγίες για τον τρόπο χρήσης αυτού του φύλλου εργασίας. Πατήστε το κάτω βέλος για να ξεκινήσετε.",{"$nulls":14}," "]
["Εισαγάγετε την επωνυμία εταιρείας στο κελί στα δεξιά και το λογότυπο στο κελί N2. Στο κελί K2 βρίσκεται ο τίτλος αυτού του φύλλου εργασίας.","Επωνυμία εταιρείας",{"$nulls":8},"Λεπτομερείς εκτιμήσεις εξόδων",null,null,"Σε αυτό το κελί βρίσκεται σύμβολο κράτησης θέσης λογότυπου."]
["Στο κελί K3 βρίσκεται συμβουλή.",{"$nulls":9},"Τα σκιασμένα κελιά είναι υπολογισμοί."]
["Η ετικέτα των προγραμματισμενα εξοδα βρίσκεται στο κελί στα δεξιά, οι μήνες στα κελιά C4 έως N4, η ετικέτα του ετοσ στο κελί Ο4 και οι οδηγίες για τον τρόπο χρήσης αυτού του προτύπου στο κελί R4.","ΠΡΟΓΡΑΜΜΑΤΙΣΜΕΝΑ ΕΞΟΔΑ","ΙΑΝ","ΦΕΒ","ΜΑΡ","ΑΠΡ","ΜΑΪΟΣ","ΙΟΥΝ","ΙΟΥΛ","ΑΥΓ","ΣΕΠ","ΟΚΤ","ΝΟΕ","ΔΕΚ","ΕΤΟΣ",null,null,"Συμβουλή: ΠΩΣ ΝΑ ΧΡΗΣΙΜΟΠΟΙΗΣΕΤΕ ΑΥΤΟ ΤΟ ΠΡΟΤΥΠΟ\nΕισαγάγετε δεδομένα στα λευκά κελιά στα φύλλα εργασίας ΠΡΟΓΡΑΜΜΑΤΙΣΜΕΝΑ ΕΞΟΔΑ και ΠΡΑΓΜΑΤΙΚΑ ΕΞΟΔΑ και θα υπολογιστούν για εσάς οι ΔΙΑΚΥΜΑΝΣΕΙΣ ΕΞΟΔΩΝ και η ΑΝΑΛΥΣΗ ΕΞΟΔΩΝ. Εάν προσθέσετε μια γραμμή σε ένα φύλλο εργασίας, τα άλλα φύλλα πρέπει να συμφωνούν."]
["Εισαγάγετε τα έξοδα υπαλλήλων στον πίνακα προγραμματισμένα έξοδα υπαλλήλων που ξεκινά στο κελί στα δεξιά. Η επόμενη οδηγία βρίσκεται στο κελί A10.","Έξοδα υπαλλήλων","Ιαν","Φεβ","Μάρ","Απρ","Μάι","Ιούν","Ιούλ","Αύγ","Σεπ","Οκτ","Νοέ","Δεκ","ΕΤΟΣ"]
[null,"Μισθοί",{"v":85000,"d":"85,000.00 €"},{"v":85000,"d":"85,000.00 €"},{"v":85000,"d":"85,000.00 €"},{"v":87500,"d":"87,500.00 €"},{"v":87500,"d":"87,500.00 €"},{"v":87500,"d":"87,500.00 €"},{"v":87500,"d":"87,500.00 €"},{"v":92400,"d":"92,400.00 €"},{"v":92400,"d":"92,400.00 €"},{"v":92400,"d":"92,400.00 €"},{"v":92400,"d":"92,400.00 €"},{"v":92400,"d":"92,400.00 €"},{"$f":"SUM(C6:N6)","v":{"v":1067000,"d":"1,067,000.00 €"}}]
[null,"Επιδόματα",{"$f":"C6*0.27","v":{"v":22950,"d":"22,950.00 €"}},{"v":22950,"d":"22,950.00 €"},{"v":22950,"d":"22,950.00 €"},{"v":23625,"d":"23,625.00 €"},{"v":23625,"d":"23,625.00 €"},{"v":23625,"d":"23,625.00 €"},{"v":23625,"d":"23,625.00 €"},{"v":24948,"d":"24,948.00 €"},{"v":24948,"d":"24,948.00 €"},{"v":24948,"d":"24,948.00 €"},{"v":24948,"d":"24,948.00 €"},{"v":24948,"d":"24,948.00 €"},{"$f":"SUM(C7:N7)","v":{"v":288090,"d":"288,090.00 €"}}]
[null,"Μερικό άθροισμα",{"$f":"SUBTOTAL(109,ΠρογραμματισμέναΈξοδαΥπαλλήλων[Ιαν])","v":{"v":107950,"d":"107,950.00 €"}},{"$f":"SUBTOTAL(109,ΠρογραμματισμέναΈξοδαΥπαλλήλων[Φεβ])","v":{"v":107950,"d":"107,950.00 €"}},{"$f":"SUBTOTAL(109,ΠρογραμματισμέναΈξοδαΥπαλλήλων[Μάρ])","v":{"v":107950,"d":"107,950.00 €"}},{"$f":"SUBTOTAL(109,ΠρογραμματισμέναΈξοδαΥπαλλήλων[Απρ])","v":{"v":111125,"d":"111,125.00 €"}},{"$f":"SUBTOTAL(109,ΠρογραμματισμέναΈξοδαΥπαλλήλων[Μάι])","v":{"v":111125,"d":"111,125.00 €"}},{"$f":"SUBTOTAL(109,ΠρογραμματισμέναΈξοδαΥπαλλήλων[Ιούν])","v":{"v":111125,"d":"111,125.00 €"}},{"$f":"SUBTOTAL(109,ΠρογραμματισμέναΈξοδαΥπαλλήλων[Ιούλ])","v":{"v":111125,"d":"111,125.00 €"}},{"$f":"SUBTOTAL(109,ΠρογραμματισμέναΈξοδαΥπαλλήλων[Αύγ])","v":{"v":117348,"d":"117,348.00 €"}},{"$f":"SUBTOTAL(109,ΠρογραμματισμέναΈξοδαΥπαλλήλων[Σεπ])","v":{"v":117348,"d":"117,348.00 €"}},{"$f":"SUBTOTAL(109,ΠρογραμματισμέναΈξοδαΥπαλλήλων[Οκτ])","v":{"v":117348,"d":"117,348.00 €"}},{"$f":"SUBTOTAL(109,ΠρογραμματισμέναΈξοδαΥπαλλήλων[Νοέ])","v":{"v":117348,"d":"117,348.00 €"}},{"$f":"SUBTOTAL(109,ΠρογραμματισμέναΈξοδαΥπαλλήλων[Δεκ])","v":{"v":117348,"d":"117,348.00 €"}},{"$f":"SUBTOTAL(109,ΠρογραμματισμέναΈξοδαΥπαλλήλων[ΕΤΟΣ])","v":{"v":1355090,"d":"1,355,090.00 €"}}]
[]
["Εισαγάγετε τα έξοδα γραφείου στον πίνακα προγραμματισμένα έξοδα γραφείου που ξεκινά στο κελί στα δεξιά. Η επόμενη οδηγία βρίσκεται στο κελί A21.","Έξοδα γραφείου","Ιαν","Φεβ","Μάρ","Απρ","Μάι","Ιούν","Ιούλ","Αύγ","Σεπ","Οκτ","Νοε","Δεκ","ΕΤΟΣ"]
[null,"Μίσθωση γραφείου",{"v":9800,"d":"9,800.00 €"},{"v":9800,"d":"9,800.00 €"},{"v":9800,"d":"9,800.00 €"},{"v":9800,"d":"9,800.00 €"},{"v":9800,"d":"9,800.00 €"},{"v":9800,"d":"9,800.00 €"},{"v":9800,"d":"9,800.00 €"},{"v":9800,"d":"9,800.00 €"},{"v":9800,"d":"9,800.00 €"},{"v":9800,"d":"9,800.00 €"},{"v":9800,"d":"9,800.00 €"},{"v":9800,"d":"9,800.00 €"},{"$f":"SUM(C11:N11)","v":{"v":117600,"d":"117,600.00 €"}}]
[null,"Αέριο",null,{"v":400,"d":"400.00 €"},{"v":400,"d":"400.00 €"},{"v":100,"d":"100.00 €"},{"v":100,"d":"100.00 €"},{"v":100,"d":"100.00 €"},{"v":100,"d":"100.00 €"},{"v":100,"d":"100.00 €"},{"v":100,"d":"100.00 €"},{"v":100,"d":"100.00 €"},{"v":400,"d":"400.00 €"},{"v":400,"d":"400.00 €"},{"v":2300,"d":"2,300.00 €"}]
[null,"Ηλεκτρικό",{"v":300,"d":"300.00 €"},{"v":300,"d":"300.00 €"},{"v":300,"d":"300.00 €"},{"v":300,"d":"300.00 €"},{"v":300,"d":"300.00 €"},{"v":300,"d":"300.00 €"},{"v":300,"d":"300.00 €"},{"v":300,"d":"300.00 €"},{"v":300,"d":"300.00 €"},{"v":300,"d":"300.00 €"},{"v":300,"d":"300.00 €"},{"v":300,"d":"300.00 €"},{"v":3600,"d":"3,600.00 €"}]
[null,"Νερό",{"v":40,"d":"40.00 €"},{"v":40,"d":"40.00 €"},{"v":40,"d":"40.00 €"},{"v":40,"d":"40.00 €"},{"v":40,"d":"40.00 €"},{"v":40,"d":"40.00 €"},{"v":40,"d":"40.00 €"},{"v":40,"d":"40.00 €"},{"v":40,"d":"40.00 €"},{"v":40,"d":"40.00 €"},{"v":40,"d":"40.00 €"},{"v":40,"d":"40.00 €"},{"v":480,"d":"480.00 €"}]
[null,"Τηλέφωνο",{"v":250,"d":"250.00 €"},{"v":250,"d":"250.00 €"},{"v":250,"d":"250.00 €"},{"v":250,"d":"250.00 €"},{"v":250,"d":"250.00 €"},{"v":250,"d":"250.00 €"},{"v":250,"d":"250.00 €"},{"v":250,"d":"250.00 €"},{"v":250,"d":"250.00 €"},{"v":250,"d":"250.00 €"},{"v":250,"d":"250.00 €"},{"v":250,"d":"250.00 €"},{"v":3000,"d":"3,000.00 €"}]
[null,"Πρόσβαση στο Internet",{"v":180,"d":"180.00 €"},{"v":180,"d":"180.00 €"},{"v":180,"d":"180.00 €"},{"v":180,"d":"180.00 €"},{"v":180,"d":"180.00 €"},{"v":180,"d":"180.00 €"},{"v":180,"d":"180.00 €"},{"v":180,"d":"180.00 €"},{"v":180,"d":"180.00 €"},{"v":180,"d":"180.00 €"},{"v":180,"d":"180.00 €"},{"v":180,"d":"180.00 €"},{"v":2160,"d":"2,160.00 €"}]
[null,"Προμήθειες γραφείου",{"v":200,"d":"200.00 €"},{"v":200,"d":"200.00 €"},{"v":200,"d":"200.00 €"},{"v":200,"d":"200.00 €"},{"v":200,"d":"200.00 €"},{"v":200,"d":"200.00 €"},{"v":200,"d":"200.00 €"},{"v":200,"d":"200.00 €"},{"v":200,"d":"200.00 €"},{"v":200,"d":"200.00 €"},{"v":200,"d":"200.00 €"},{"v":200,"d":"200.00 €"},{"v":2400,"d":"2,400.00 €"}]
[null,"Ασφάλεια",{"v":600,"d":"600.00 €"},{"v":600,"d":"600.00 €"},{"v":600,"d":"600.00 €"},{"v":600,"d":"600.00 €"},{"v":600,"d":"600.00 €"},{"v":600,"d":"600.00 €"},{"v":600,"d":"600.00 €"},{"v":600,"d":"600.00 €"},{"v":600,"d":"600.00 €"},{"v":600,"d":"600.00 €"},{"v":600,"d":"600.00 €"},{"v":600,"d":"600.00 €"},{"v":7200,"d":"7,200.00 €"}]
[null,"Μερικό άθροισμα",{"$f":"SUBTOTAL(109,ΠρογραμματισμέναΈξοδαΓραφείου[Ιαν])","v":{"v":11370,"d":"11,370.00 €"}},{"$f":"SUBTOTAL(109,ΠρογραμματισμέναΈξοδαΓραφείου[Φεβ])","v":{"v":11770,"d":"11,770.00 €"}},{"$f":"SUBTOTAL(109,ΠρογραμματισμέναΈξοδαΓραφείου[Μάρ])","v":{"v":11770,"d":"11,770.00 €"}},{"$f":"SUBTOTAL(109,ΠρογραμματισμέναΈξοδαΓραφείου[Απρ])","v":{"v":11470,"d":"11,470.00 €"}},{"$f":"SUBTOTAL(109,ΠρογραμματισμέναΈξοδαΓραφείου[Μάι])","v":{"v":11470,"d":"11,470.00 €"}},{"$f":"SUBTOTAL(109,ΠρογραμματισμέναΈξοδαΓραφείου[Ιούν])","v":{"v":11470,"d":"11,470.00 €"}},{"$f":"SUBTOTAL(109,ΠρογραμματισμέναΈξοδαΓραφείου[Ιούλ])","v":{"v":11470,"d":"11,470.00 €"}},{"$f":"SUBTOTAL(109,ΠρογραμματισμέναΈξοδαΓραφείου[Αύγ])","v":{"v":11470,"d":"11,470.00 €"}},{"$f":"SUBTOTAL(109,ΠρογραμματισμέναΈξοδαΓραφείου[Σεπ])","v":{"v":11470,"d":"11,470.00 €"}},{"$f":"SUBTOTAL(109,ΠρογραμματισμέναΈξοδαΓραφείου[Οκτ])","v":{"v":11470,"d":"11,470.00 €"}},{"$f":"SUBTOTAL(109,ΠρογραμματισμέναΈξοδαΓραφείου[Νοε])","v":{"v":11770,"d":"11,770.00 €"}},{"$f":"SUBTOTAL(109,ΠρογραμματισμέναΈξοδαΓραφείου[Δεκ])","v":{"v":11770,"d":"11,770.00 €"}},{"$f":"SUBTOTAL(109,ΠρογραμματισμέναΈξοδαΓραφείου[ΕΤΟΣ])","v":{"v":138740,"d":"138,740.00 €"}}]
[]
["Εισαγάγετε τα έξοδα μάρκετινγκ στον πίνακα προγραμματισμένα έξοδα μάρκετινγκ που ξεκινά στο κελί στα δεξιά. Η επόμενη οδηγία βρίσκεται στο κελί A30.","Έξοδα μάρκετινγκ","Ιαν","Φεβ","Μάρ","Απρ","Μάι","Ιούν","Ιούλ","Αύγ","Σεπ","Οκτ","Νοε","Δεκ","ΕΤΟΣ"]
[null,"Φιλοξενία τοποθεσίας Web",{"v":500,"d":"500.00 €"},{"v":500,"d":"500.00 €"},{"v":500,"d":"500.00 €"},{"v":500,"d":"500.00 €"},{"v":500,"d":"500.00 €"},{"v":500,"d":"500.00 €"},{"v":500,"d":"500.00 €"},{"v":500,"d":"500.00 €"},{"v":500,"d":"500.00 €"},{"v":500,"d":"500.00 €"},{"v":500,"d":"500.00 €"},{"v":500,"d":"500.00 €"},{"$f":"SUM(C22:N22)","v":{"v":6000,"d":"6,000.00 €"}}]
[null,"Ενημερώσεις τοποθεσίας Web",{"v":200,"d":"200.00 €"},{"v":200,"d":"200.00 €"},{"v":200,"d":"200.00 €"},{"v":200,"d":"200.00 €"},{"v":200,"d":"200.00 €"},{"v":1000,"d":"1,000.00 €"},{"v":200,"d":"200.00 €"},{"v":200,"d":"200.00 €"},{"v":200,"d":"200.00 €"},{"v":200,"d":"200.00 €"},{"v":200,"d":"200.00 €"},{"v":1000,"d":"1,000.00 €"},{"v":4000,"d":"4,000.00 €"}]
[null,"Προετοιμασία εντύπων",{"v":5000,"d":"5,000.00 €"},{"v":0,"d":"0.00 €"},{"v":0,"d":"0.00 €"},{"v":5000,"d":"5,000.00 €"},{"v":0,"d":"0.00 €"},{"v":0,"d":"0.00 €"},{"v":5000,"d":"5,000.00 €"},{"v":0,"d":"0.00 €"},{"v":0,"d":"0.00 €"},{"v":5000,"d":"5,000.00 €"},{"v":0,"d":"0.00 €"},{"v":0,"d":"0.00 €"},{"v":20000,"d":"20,000.00 €"}]
[null,"Εκτύπωση εντύπων",{"v":200,"d":"200.00 €"},{"v":200,"d":"200.00 €"},{"v":200,"d":"200.00 €"},{"v":200,"d":"200.00 €"},{"v":200,"d":"200.00 €"},{"v":200,"d":"200.00 €"},{"v":200,"d":"200.00 €"},{"v":200,"d":"200.00 €"},{"v":200,"d":"200.00 €"},{"v":200,"d":"200.00 €"},{"v":200,"d":"200.00 €"},{"v":200,"d":"200.00 €"},{"v":2400,"d":"2,400.00 €"}]
[null,"Εκδηλώσεις μάρκετινγκ",{"v":2000,"d":"2,000.00 €"},{"v":2000,"d":"2,000.00 €"},{"v":2000,"d":"2,000.00 €"},{"v":5000,"d":"5,000.00 €"},{"v":2000,"d":"2,000.00 €"},{"v":2000,"d":"2,000.00 €"},{"v":2000,"d":"2,000.00 €"},{"v":5000,"d":"5,000.00 €"},{"v":2000,"d":"2,000.00 €"},{"v":2000,"d":"2,000.00 €"},{"v":2000,"d":"2,000.00 €"},{"v":5000,"d":"5,000.00 €"},{"v":33000,"d":"33,000.00 €"}]
[null,"Διάφορα έξοδα",{"v":200,"d":"200.00 €"},{"v":200,"d":"200.00 €"},{"v":200,"d":"200.00 €"},{"v":200,"d":"200.00 €"},{"v":200,"d":"200.00 €"},{"v":200,"d":"200.00 €"},{"v":200,"d":"200.00 €"},{"v":200,"d":"200.00 €"},{"v":200,"d":"200.00 €"},{"v":200,"d":"200.00 €"},{"v":200,"d":"200.00 €"},{"v":200,"d":"200.00 €"},{"v":2400,"d":"2,400.00 €"}]
[null,"Μερικό άθροισμα",{"$f":"SUBTOTAL(109,ΠρογραμματισμέναΈξοδαΜάρκετινγκ[Ιαν])","v":{"v":8100,"d":"8,100.00 €"}},{"$f":"SUBTOTAL(109,ΠρογραμματισμέναΈξοδαΜάρκετινγκ[Φεβ])","v":{"v":3100,"d":"3,100.00 €"}},{"$f":"SUBTOTAL(109,ΠρογραμματισμέναΈξοδαΜάρκετινγκ[Μάρ])","v":{"v":3100,"d":"3,100.00 €"}},{"$f":"SUBTOTAL(109,ΠρογραμματισμέναΈξοδαΜάρκετινγκ[Απρ])","v":{"v":11100,"d":"11,100.00 €"}},{"$f":"SUBTOTAL(109,ΠρογραμματισμέναΈξοδαΜάρκετινγκ[Μάι])","v":{"v":3100,"d":"3,100.00 €"}},{"$f":"SUBTOTAL(109,ΠρογραμματισμέναΈξοδαΜάρκετινγκ[Ιούν])","v":{"v":3900,"d":"3,900.00 €"}},{"$f":"SUBTOTAL(109,ΠρογραμματισμέναΈξοδαΜάρκετινγκ[Ιούλ])","v":{"v":8100,"d":"8,100.00 €"}},{"$f":"SUBTOTAL(109,ΠρογραμματισμέναΈξοδαΜάρκετινγκ[Αύγ])","v":{"v":6100,"d":"6,100.00 €"}},{"$f":"SUBTOTAL(109,ΠρογραμματισμέναΈξοδαΜάρκετινγκ[Σεπ])","v":{"v":3100,"d":"3,100.00 €"}},{"$f":"SUBTOTAL(109,ΠρογραμματισμέναΈξοδαΜάρκετινγκ[Οκτ])","v":{"v":8100,"d":"8,100.00 €"}},{"$f":"SUBTOTAL(109,ΠρογραμματισμέναΈξοδαΜάρκετινγκ[Νοε])","v":{"v":3100,"d":"3,100.00 €"}},{"$f":"SUBTOTAL(109,ΠρογραμματισμέναΈξοδαΜάρκετινγκ[Δεκ])","v":{"v":6900,"d":"6,900.00 €"}},{"$f":"SUBTOTAL(109,ΠρογραμματισμέναΈξοδαΜάρκετινγκ[ΕΤΟΣ])","v":{"v":67800,"d":"67,800.00 €"}}]
[]
["Εισαγάγετε τα έξοδα εκπαίδευσης και μετακινήσεων στον πίνακα προγραμματισμένα έξοδα εκπαίδευσης και μετακινήσεων που ξεκινά στο κελί στα δεξιά. Η επόμενη οδηγία βρίσκεται στο κελί A35.","Εκπαίδευση/Ταξίδια","Ιαν","Φεβ","Μάρ","Απρ","Μάι","Ιούν","Ιούλ","Αύγ","Σεπ","Οκτ","Νοε","Δεκ","ΕΤΟΣ"]
[null,"Εκπαιδευτικά μαθήματα",{"v":2000,"d":"2,000.00 €"},{"v":2000,"d":"2,000.00 €"},{"v":2000,"d":"2,000.00 €"},{"v":2000,"d":"2,000.00 €"},{"v":2000,"d":"2,000.00 €"},{"v":2000,"d":"2,000.00 €"},{"v":2000,"d":"2,000.00 €"},{"v":2000,"d":"2,000.00 €"},{"v":2000,"d":"2,000.00 €"},{"v":2000,"d":"2,000.00 €"},{"v":2000,"d":"2,000.00 €"},{"v":2000,"d":"2,000.00 €"},{"$f":"SUM(C31:N31)","v":{"v":24000,"d":"24,000.00 €"}}]
[null,"Έξοδα μετακινήσεων που σχετίζονται με εκπαίδευση",{"v":2000,"d":"2,000.00 €"},{"v":2000,"d":"2,000.00 €"},{"v":2000,"d":"2,000.00 €"},{"v":2000,"d":"2,000.00 €"},{"v":2000,"d":"2,000.00 €"},{"v":2000,"d":"2,000.00 €"},{"v":2000,"d":"2,000.00 €"},{"v":2000,"d":"2,000.00 €"},{"v":2000,"d":"2,000.00 €"},{"v":2000,"d":"2,000.00 €"},{"v":2000,"d":"2,000.00 €"},{"v":2000,"d":"2,000.00 €"},{"$f":"SUM(C32:N32)","v":{"v":24000,"d":"24,000.00 €"}}]
[null,"Μερικό άθροισμα",{"$f":"SUBTOTAL(109,ΠρογραμματισμέναΈξοδαΕκπαίδευσηςΚαιΜετακινήσεων[Ιαν])","v":{"v":4000,"d":"4,000.00 €"}},{"$f":"SUBTOTAL(109,ΠρογραμματισμέναΈξοδαΕκπαίδευσηςΚαιΜετακινήσεων[Φεβ])","v":{"v":4000,"d":"4,000.00 €"}},{"$f":"SUBTOTAL(109,ΠρογραμματισμέναΈξοδαΕκπαίδευσηςΚαιΜετακινήσεων[Μάρ])","v":{"v":4000,"d":"4,000.00 €"}},{"$f":"SUBTOTAL(109,ΠρογραμματισμέναΈξοδαΕκπαίδευσηςΚαιΜετακινήσεων[Απρ])","v":{"v":4000,"d":"4,000.00 €"}},{"$f":"SUBTOTAL(109,ΠρογραμματισμέναΈξοδαΕκπαίδευσηςΚαιΜετακινήσεων[Μάι])","v":{"v":4000,"d":"4,000.00 €"}},{"$f":"SUBTOTAL(109,ΠρογραμματισμέναΈξοδαΕκπαίδευσηςΚαιΜετακινήσεων[Ιούν])","v":{"v":4000,"d":"4,000.00 €"}},{"$f":"SUBTOTAL(109,ΠρογραμματισμέναΈξοδαΕκπαίδευσηςΚαιΜετακινήσεων[Ιούλ])","v":{"v":4000,"d":"4,000.00 €"}},{"$f":"SUBTOTAL(109,ΠρογραμματισμέναΈξοδαΕκπαίδευσηςΚαιΜετακινήσεων[Αύγ])","v":{"v":4000,"d":"4,000.00 €"}},{"$f":"SUBTOTAL(109,ΠρογραμματισμέναΈξοδαΕκπαίδευσηςΚαιΜετακινήσεων[Σεπ])","v":{"v":4000,"d":"4,000.00 €"}},{"$f":"SUBTOTAL(109,ΠρογραμματισμέναΈξοδαΕκπαίδευσηςΚαιΜετακινήσεων[Οκτ])","v":{"v":4000,"d":"4,000.00 €"}},{"$f":"SUBTOTAL(109,ΠρογραμματισμέναΈξοδαΕκπαίδευσηςΚαιΜετακινήσεων[Νοε])","v":{"v":4000,"d":"4,000.00 €"}},{"$f":"SUBTOTAL(109,ΠρογραμματισμέναΈξοδαΕκπαίδευσηςΚαιΜετακινήσεων[Δεκ])","v":{"v":4000,"d":"4,000.00 €"}},{"$f":"SUBTOTAL(109,ΠρογραμματισμέναΈξοδαΕκπαίδευσηςΚαιΜετακινήσεων[ΕΤΟΣ])","v":{"v":48000,"d":"48,000.00 €"}}]
[]
["Τα συνολα υπολογίζονται αυτόματα στον πίνακα συνολικά προγραμματισμένα έξοδα που ξεκινά στο κελί στα δεξιά.","ΣΥΝΟΛΑ","Ιαν","Φεβ","Μάρ","Απρ","Μάι","Ιούν","Ιούλ","Αύγ","Σεπ","Οκτ","Νοέ","Δεκ","Έτος"]
[null,"Μηνιαία προγραμματισμένα έξοδα",{"$f":"ΠρογραμματισμέναΈξοδαΕκπαίδευσηςΚαιΜετακινήσεων[[#Totals],[Ιαν]]+ΠρογραμματισμέναΈξοδαΜάρκετινγκ[[#Totals],[Ιαν]]+ΠρογραμματισμέναΈξοδαΓραφείου[[#Totals],[Ιαν]]+ΠρογραμματισμέναΈξοδαΥπαλλήλων[[#Totals],[Ιαν]]","v":{"v":131420,"d":"131,420.00 €"}},{"$f":"ΠρογραμματισμέναΈξοδαΕκπαίδευσηςΚαιΜετακινήσεων[[#Totals],[Φεβ]]+ΠρογραμματισμέναΈξοδαΜάρκετινγκ[[#Totals],[Φεβ]]+ΠρογραμματισμέναΈξοδαΓραφείου[[#Totals],[Φεβ]]+ΠρογραμματισμέναΈξοδαΥπαλλήλων[[#Totals],[Φεβ]]","v":{"v":126820,"d":"126,820.00 €"}},{"$f":"ΠρογραμματισμέναΈξοδαΕκπαίδευσηςΚαιΜετακινήσεων[[#Totals],[Μάρ]]+ΠρογραμματισμέναΈξοδαΜάρκετινγκ[[#Totals],[Μάρ]]+ΠρογραμματισμέναΈξοδαΓραφείου[[#Totals],[Μάρ]]+ΠρογραμματισμέναΈξοδαΥπαλλήλων[[#Totals],[Μάρ]]","v":{"v":126820,"d":"126,820.00 €"}},{"$f":"ΠρογραμματισμέναΈξοδαΕκπαίδευσηςΚαιΜετακινήσεων[[#Totals],[Απρ]]+ΠρογραμματισμέναΈξοδαΜάρκετινγκ[[#Totals],[Απρ]]+ΠρογραμματισμέναΈξοδαΓραφείου[[#Totals],[Απρ]]+ΠρογραμματισμέναΈξοδαΥπαλλήλων[[#Totals],[Απρ]]","v":{"v":137695,"d":"137,695.00 €"}},{"$f":"ΠρογραμματισμέναΈξοδαΕκπαίδευσηςΚαιΜετακινήσεων[[#Totals],[Μάι]]+ΠρογραμματισμέναΈξοδαΜάρκετινγκ[[#Totals],[Μάι]]+ΠρογραμματισμέναΈξοδαΓραφείου[[#Totals],[Μάι]]+ΠρογραμματισμέναΈξοδαΥπαλλήλων[[#Totals],[Μάι]]","v":{"v":129695,"d":"129,695.00 €"}},{"$f":"ΠρογραμματισμέναΈξοδαΕκπαίδευσηςΚαιΜετακινήσεων[[#Totals],[Ιούν]]+ΠρογραμματισμέναΈξοδαΜάρκετινγκ[[#Totals],[Ιούν]]+ΠρογραμματισμέναΈξοδαΓραφείου[[#Totals],[Ιούν]]+ΠρογραμματισμέναΈξοδαΥπαλλήλων[[#Totals],[Ιούν]]","v":{"v":130495,"d":"130,495.00 €"}},{"$f":"ΠρογραμματισμέναΈξοδαΕκπαίδευσηςΚαιΜετακινήσεων[[#Totals],[Ιούλ]]+ΠρογραμματισμέναΈξοδαΜάρκετινγκ[[#Totals],[Ιούλ]]+ΠρογραμματισμέναΈξοδαΓραφείου[[#Totals],[Ιούλ]]+ΠρογραμματισμέναΈξοδαΥπαλλήλων[[#Totals],[Ιούλ]]","v":{"v":134695,"d":"134,695.00 €"}},{"$f":"ΠρογραμματισμέναΈξοδαΕκπαίδευσηςΚαιΜετακινήσεων[[#Totals],[Αύγ]]+ΠρογραμματισμέναΈξοδαΜάρκετινγκ[[#Totals],[Αύγ]]+ΠρογραμματισμέναΈξοδαΓραφείου[[#Totals],[Αύγ]]+ΠρογραμματισμέναΈξοδαΥπαλλήλων[[#Totals],[Αύγ]]","v":{"v":138918,"d":"138,918.00 €"}},{"$f":"ΠρογραμματισμέναΈξοδαΕκπαίδευσηςΚαιΜετακινήσεων[[#Totals],[Σεπ]]+ΠρογραμματισμέναΈξοδαΜάρκετινγκ[[#Totals],[Σεπ]]+ΠρογραμματισμέναΈξοδαΓραφείου[[#Totals],[Σεπ]]+ΠρογραμματισμέναΈξοδαΥπαλλήλων[[#Totals],[Σεπ]]","v":{"v":135918,"d":"135,918.00 €"}},{"$f":"ΠρογραμματισμέναΈξοδαΕκπαίδευσηςΚαιΜετακινήσεων[[#Totals],[Οκτ]]+ΠρογραμματισμέναΈξοδαΜάρκετινγκ[[#Totals],[Οκτ]]+ΠρογραμματισμέναΈξοδαΓραφείου[[#Totals],[Οκτ]]+ΠρογραμματισμέναΈξοδαΥπαλλήλων[[#Totals],[Οκτ]]","v":{"v":140918,"d":"140,918.00 €"}},{"$f":"ΠρογραμματισμέναΈξοδαΕκπαίδευσηςΚαιΜετακινήσεων[[#Totals],[Νοε]]+ΠρογραμματισμέναΈξοδαΜάρκετινγκ[[#Totals],[Νοε]]+ΠρογραμματισμέναΈξοδαΓραφείου[[#Totals],[Νοε]]+ΠρογραμματισμέναΈξοδαΥπαλλήλων[[#Totals],[Νοέ]]","v":{"v":136218,"d":"136,218.00 €"}},{"$f":"ΠρογραμματισμέναΈξοδαΕκπαίδευσηςΚαιΜετακινήσεων[[#Totals],[Δεκ]]+ΠρογραμματισμέναΈξοδαΜάρκετινγκ[[#Totals],[Δεκ]]+ΠρογραμματισμέναΈξοδαΓραφείου[[#Totals],[Δεκ]]+ΠρογραμματισμέναΈξοδαΥπαλλήλων[[#Totals],[Δεκ]]","v":{"v":140018,"d":"140,018.00 €"}},{"$f":"ΠρογραμματισμέναΈξοδαΕκπαίδευσηςΚαιΜετακινήσεων[[#Totals],[ΕΤΟΣ]]+ΠρογραμματισμέναΈξοδαΜάρκετινγκ[[#Totals],[ΕΤΟΣ]]+ΠρογραμματισμέναΈξοδαΓραφείου[[#Totals],[ΕΤΟΣ]]+ΠρογραμματισμέναΈξοδαΥπαλλήλων[[#Totals],[ΕΤΟΣ]]","v":{"v":1609630,"d":"1,609,630.00 €"}}]
[null,"ΣΥΝΟΛΙΚΑ προγραμματισμένα έξοδα",{"$f":"SUM($C$36:C36)","v":{"v":131420,"d":"131,420.00 €"}},{"$f":"SUM($C$36:D36)","v":{"v":258240,"d":"258,240.00 €"}},{"$f":"SUM($C$36:E36)","v":{"v":385060,"d":"385,060.00 €"}},{"$f":"SUM($C$36:F36)","v":{"v":522755,"d":"522,755.00 €"}},{"$f":"SUM($C$36:G36)","v":{"v":652450,"d":"652,450.00 €"}},{"$f":"SUM($C$36:H36)","v":{"v":782945,"d":"782,945.00 €"}},{"$f":"SUM($C$36:I36)","v":{"v":917640,"d":"917,640.00 €"}},{"$f":"SUM($C$36:J36)","v":{"v":1056558,"d":"1,056,558.00 €"}},{"$f":"SUM($C$36:K36)","v":{"v":1192476,"d":"1,192,476.00 €"}},{"$f":"SUM($C$36:L36)","v":{"v":1333394,"d":"1,333,394.00 €"}},{"$f":"SUM($C$36:M36)","v":{"v":1469612,"d":"1,469,612.00 €"}},{"$f":"SUM($C$36:N36)","v":{"v":1609630,"d":"1,609,630.00 €"}}]

{"sheet":"ΠΡΑΓΜΑΤΙΚΑ ΕΞΟΔΑ","index":2,"n_rows":37,"n_cols":16,"rows_kept":37,"merged":[[1,1,2,3],[1,10,1,12],[1,13,2,14],[2,10,2,12],[8,1,8,2],[19,1,19,2],[28,1,28,2],[33,1,33,2]]}
["Εισαγάγετε τα πραγματικά έξοδα υπαλλήλων, έξοδα γραφείου, έξοδα μάρκετινγκ και έξοδα εκπαίδευσης και μετακινήσεων στους αντίστοιχους πίνακες σε αυτό το φύλλο εργασίας. Τα σύνολα υπολογίζονται αυτόματα. Σε διάφορα κελιά σε αυτή τη στήλη βρίσκονται χρήσιμες οδηγίες για τον τρόπο χρήσης αυτού του φύλλου εργασίας. Πατήστε το κάτω βέλος για να ξεκινήσετε.",{"$nulls":14}," "]
["Η επωνυμία εταιρείας ενημερώνεται αυτόματα στο κελί στα δεξιά. Στο κελί K2 βρίσκεται ο τίτλος αυτού του φύλλου εργασίας. Εισαγάγετε το λογότυπο στο κελί N2.",{"$f":"'ΠΡΟΓΡΑΜΜΑΤΙΣΜΕΝΑ ΕΞΟΔΑ'!B2:D3","v":"Επωνυμία εταιρείας"},{"$nulls":8},{"$f":"τίτλος_φύλλου_εργασίας","v":"Λεπτομερείς εκτιμήσεις εξόδων"},null,null,"Σε αυτό το κελί βρίσκεται σύμβολο κράτησης θέσης λογότυπου."]
["Στο κελί K3 βρίσκεται συμβουλή.",{"$nulls":9},"Τα σκιασμένα κελιά είναι υπολογισμοί."]
["Η ετικέτα των πραγματικα εξοδα βρίσκεται στο κελί στα δεξιά, οι μήνες στα κελιά C4 έως N4 και η ετικέτα του ετοσ στο κελί Ο4.","ΠΡΑΓΜΑΤΙΚΑ ΕΞΟΔΑ","ΙΑΝ","ΦΕΒ","ΜΑΡ","ΑΠΡ","ΜΑΪΟΣ","ΙΟΥΝ","ΙΟΥΛ","ΑΥΓ","ΣΕΠ","ΟΚΤ","ΝΟΕ","ΔΕΚ","ΕΤΟΣ"]
["Εισαγάγετε τα έξοδα υπαλλήλων στον πίνακα πραγματικά έξοδα υπαλλήλων που ξεκινά στο κελί στα δεξιά. Η επόμενη οδηγία βρίσκεται στο κελί A10.","Έξοδα υπαλλήλων","Ιαν","Φεβ","Μάρ","Απρ","Μάι","Ιούν","Ιούλ","Αύγ","Σεπ","Οκτ","Νοέ","Δεκ","ΕΤΟΣ"]
[null,"Μισθοί",{"v":85000,"d":"85,000.00 €"},{"v":85000,"d":"85,000.00 €"},{"v":85000,"d":"85,000.00 €"},{"v":88000,"d":"88,000.00 €"},{"v":88000,"d":"88,000.00 €"},{"v":88000,"d":"88,000.00 €"},{"$nulls":6},{"$f":"SUM(C6:N6)","v":{"v":519000,"d":"519,000.00 €"}}]
[null,"Επιδόματα",{"$f":"C6*0.27","v":{"v":22950,"d":"22,950.00 €"}},{"v":22950,"d":"22,950.00 €"},{"v":22950,"d":"22,950.00 €"},{"v":23760,"d":"23,760.00 €"},{"v":23760,"d":"23,760.00 €"},{"v":23760,"d":"23,760.00 €"},{"v":0,"d":"0.00 €"},{"v":0,"d":"0.00 €"},{"v":0,"d":"0.00 €"},{"v":0,"d":"0.00 €"},{"v":0,"d":"0.00 €"},{"v":0,"d":"0.00 €"},{"$f":"SUM(C7:N7)","v":{"v":140130,"d":"140,130.00 €"}}]
[null,"Μερικό άθροισμα",{"$f":"SUBTOTAL(109,ΠραγματικάΈξοδαΥπαλλήλων[Ιαν])","v":{"v":107950,"d":"107,950.00 €"}},{"$f":"SUBTOTAL(109,ΠραγματικάΈξοδαΥπαλλήλων[Φεβ])","v":{"v":107950,"d":"107,950.00 €"}},{"$f":"SUBTOTAL(109,ΠραγματικάΈξοδαΥπαλλήλων[Μάρ])","v":{"v":107950,"d":"107,950.00 €"}},{"$f":"SUBTOTAL(109,ΠραγματικάΈξοδαΥπαλλήλων[Απρ])","v":{"v":111760,"d":"111,760.00 €"}},{"$f":"SUBTOTAL(109,ΠραγματικάΈξοδαΥπαλλήλων[Μάι])","v":{"v":111760,"d":"111,760.00 €"}},{"$f":"SUBTOTAL(109,ΠραγματικάΈξοδαΥπαλλήλων[Ιούν])","v":{"v":111760,"d":"111,760.00 €"}},{"$f":"SUBTOTAL(109,ΠραγματικάΈξοδαΥπαλλήλων[Ιούλ])","v":{"v":0,"d":"0.00 €"}},{"$f":"SUBTOTAL(109,ΠραγματικάΈξοδαΥπαλλήλων[Αύγ])","v":{"v":0,"d":"0.00 €"}},{"$f":"SUBTOTAL(109,ΠραγματικάΈξοδαΥπαλλήλων[Σεπ])","v":{"v":0,"d":"0.00 €"}},{"$f":"SUBTOTAL(109,ΠραγματικάΈξοδαΥπαλλήλων[Οκτ])","v":{"v":0,"d":"0.00 €"}},{"$f":"SUBTOTAL(109,ΠραγματικάΈξοδαΥπαλλήλων[Νοέ])","v":{"v":0,"d":"0.00 €"}},{"$f":"SUBTOTAL(109,ΠραγματικάΈξοδαΥπαλλήλων[Δεκ])","v":{"v":0,"d":"0.00 €"}},{"$f":"SUBTOTAL(109,ΠραγματικάΈξοδαΥπαλλήλων[ΕΤΟΣ])","v":{"v":659130,"d":"659,130.00 €"}}]
[]
["Εισαγάγετε τα έξοδα γραφείου στον πίνακα πραγματικά έξοδα γραφείου που ξεκινά στο κελί στα δεξιά. Η επόμενη οδηγία βρίσκεται στο κελί A21.","Έξοδα γραφείου","Ιαν","Φεβ","Μάρ","Απρ","Μάι","Ιούν","Ιούλ","Αύγ","Σεπ","Οκτ","Νοε","Δεκ","ΕΤΟΣ"]
[null,"Μίσθωση γραφείου",{"v":9800,"d":"9,800.00 €"},{"v":9800,"d":"9,800.00 €"},{"v":9800,"d":"9,800.00 €"},{"v":9800,"d":"9,800.00 €"},{"v":9800,"d":"9,800.00 €"},{"v":9800,"d":"9,800.00 €"},{"$nulls":6},{"$f":"SUM(C11:N11)","v":{"v":58800,"d":"58,800.00 €"}}]
[null,"Αέριο",{"v":4,"d":"4.00 €"},{"v":430,"d":"430.00 €"},{"v":385,"d":"385.00 €"},{"v":230,"d":"230.00 €"},{"v":87,"d":"87.00 €"},{"v":88,"d":"88.00 €"},{"$nulls":6},{"v":1224,"d":"1,224.00 €"}]
[null,"Ηλεκτρικό",{"v":288,"d":"288.00 €"},{"v":278,"d":"278.00 €"},{"v":268,"d":"268.00 €"},{"v":299,"d":"299.00 €"},{"v":306,"d":"306.00 €"},{"v":290,"d":"290.00 €"},{"$nulls":6},{"v":1729,"d":"1,729.00 €"}]
[null,"Νερό",{"v":35,"d":"35.00 €"},{"v":33,"d":"33.00 €"},{"v":34,"d":"34.00 €"},{"v":36,"d":"36.00 €"},{"v":34,"d":"34.00 €"},{"v":36,"d":"36.00 €"},{"$nulls":6},{"v":208,"d":"208.00 €"}]
[null,"Τηλέφωνο",{"v":224,"d":"224.00 €"},{"v":235,"d":"235.00 €"},{"v":265,"d":"265.00 €"},{"v":245,"d":"245.00 €"},{"v":245,"d":"245.00 €"},{"v":220,"d":"220.00 €"},{"$nulls":6},{"v":1434,"d":"1,434.00 €"}]
[null,"Πρόσβαση στο Internet",{"v":180,"d":"180.00 €"},{"v":180,"d":"180.00 €"},{"v":180,"d":"180.00 €"},{"v":180,"d":"180.00 €"},{"v":180,"d":"180.00 €"},{"v":180,"d":"180.00 €"},{"$nulls":6},{"v":1080,"d":"1,080.00 €"}]
[null,"Προμήθειες γραφείου",{"v":256,"d":"256.00 €"},{"v":142,"d":"142.00 €"},{"v":160,"d":"160.00 €"},{"v":221,"d":"221.00 €"},{"v":256,"d":"256.00 €"},{"v":240,"d":"240.00 €"},{"$nulls":6},{"v":1275,"d":"1,275.00 €"}]
[null,"Ασφάλεια",{"v":600,"d":"600.00 €"},{"v":600,"d":"600.00 €"},{"v":600,"d":"600.00 €"},{"v":600,"d":"600.00 €"},{"v":600,"d":"600.00 €"},{"v":600,"d":"600.00 €"},{"$nulls":6},{"v":3600,"d":"3,600.00 €"}]
[null,"Μερικό άθροισμα",{"$f":"SUBTOTAL(109,ΠραγματικάΈξοδαΓραφείου[Ιαν])","v":{"v":11387,"d":"11,387.00 €"}},{"$f":"SUBTOTAL(109,ΠραγματικάΈξοδαΓραφείου[Φεβ])","v":{"v":11698,"d":"11,698.00 €"}},{"$f":"SUBTOTAL(109,ΠραγματικάΈξοδαΓραφείου[Μάρ])","v":{"v":11692,"d":"11,692.00 €"}},{"$f":"SUBTOTAL(109,ΠραγματικάΈξοδαΓραφείου[Απρ])","v":{"v":11611,"d":"11,611.00 €"}},{"$f":"SUBTOTAL(109,ΠραγματικάΈξοδαΓραφείου[Μάι])","v":{"v":11508,"d":"11,508.00 €"}},{"$f":"SUBTOTAL(109,ΠραγματικάΈξοδαΓραφείου[Ιούν])","v":{"v":11454,"d":"11,454.00 €"}},{"$f":"SUBTOTAL(109,ΠραγματικάΈξοδαΓραφείου[Ιούλ])","v":{"v":0,"d":"0.00 €"}},{"$f":"SUBTOTAL(109,ΠραγματικάΈξοδαΓραφείου[Αύγ])","v":{"v":0,"d":"0.00 €"}},{"$f":"SUBTOTAL(109,ΠραγματικάΈξοδαΓραφείου[Σεπ])","v":{"v":0,"d":"0.00 €"}},{"$f":"SUBTOTAL(109,ΠραγματικάΈξοδαΓραφείου[Οκτ])","v":{"v":0,"d":"0.00 €"}},{"$f":"SUBTOTAL(109,ΠραγματικάΈξοδαΓραφείου[Νοε])","v":{"v":0,"d":"0.00 €"}},{"$f":"SUBTOTAL(109,ΠραγματικάΈξοδαΓραφείου[Δεκ])","v":{"v":0,"d":"0.00 €"}},{"$f":"SUBTOTAL(109,ΠραγματικάΈξοδαΓραφείου[ΕΤΟΣ])","v":{"v":69350,"d":"69,350.00 €"}}]
[]
["Εισαγάγετε τα έξοδα μάρκετινγκ στον πίνακα πραγματικά έξοδα μάρκετινγκ που ξεκινά στο κελί στα δεξιά. Η επόμενη οδηγία βρίσκεται στο κελί A30.","Έξοδα μάρκετινγκ","Ιαν","Φεβ","Μάρ","Απρ","Μάι","Ιούν","Ιούλ","Αύγ","Σεπ","Οκτ","Νοε","Δεκ","ΕΤΟΣ"]
[null,"Φιλοξενία τοποθεσίας Web",{"v":500,"d":"500.00 €"},{"v":500,"d":"500.00 €"},{"v":500,"d":"500.00 €"},{"v":500,"d":"500.00 €"},{"v":500,"d":"500.00 €"},{"v":500,"d":"500.00 €"},{"$nulls":6},{"$f":"SUM(C22:N22)","v":{"v":3000,"d":"3,000.00 €"}}]
[null,"Ενημερώσεις τοποθεσίας Web",{"v":200,"d":"200.00 €"},{"v":200,"d":"200.00 €"},{"v":200,"d":"200.00 €"},{"v":200,"d":"200.00 €"},{"v":200,"d":"200.00 €"},{"v":1500,"d":"1,500.00 €"},{"$nulls":6},{"v":2500,"d":"2,500.00 €"}]
[null,"Προετοιμασία εντύπων",{"v":4800,"d":"4,800.00 €"},{"v":0,"d":"0.00 €"},{"v":0,"d":"0.00 €"},{"v":5500,"d":"5,500.00 €"},{"v":0,"d":"0.00 €"},{"v":0,"d":"0.00 €"},{"$nulls":6},{"v":10300,"d":"10,300.00 €"}]
[null,"Εκτύπωση εντύπων",{"v":100,"d":"100.00 €"},{"v":500,"d":"500.00 €"},{"v":100,"d":"100.00 €"},{"v":100,"d":"100.00 €"},{"v":600,"d":"600.00 €"},{"v":180,"d":"180.00 €"},{"$nulls":6},{"v":1580,"d":"1,580.00 €"}]
[null,"Εκδηλώσεις μάρκετινγκ",{"v":1800,"d":"1,800.00 €"},{"v":2200,"d":"2,200.00 €"},{"v":2200,"d":"2,200.00 €"},{"v":4700,"d":"4,700.00 €"},{"v":1500,"d":"1,500.00 €"},{"v":2300,"d":"2,300.00 €"},{"$nulls":6},{"v":14700,"d":"14,700.00 €"}]
[null,"Διάφορα έξοδα",{"v":145,"d":"145.00 €"},{"v":156,"d":"156.00 €"},{"v":123,"d":"123.00 €"},{"v":223,"d":"223.00 €"},{"v":187,"d":"187.00 €"},{"v":245,"d":"245.00 €"},{"$nulls":6},{"v":1079,"d":"1,079.00 €"}]
[null,"Μερικό άθροισμα",{"$f":"SUBTOTAL(109,ΠραγματικάΈξοδαΜάρκετινγκ[Ιαν])","v":{"v":7545,"d":"7,545.00 €"}},{"$f":"SUBTOTAL(109,ΠραγματικάΈξοδαΜάρκετινγκ[Φεβ])","v":{"v":3556,"d":"3,556.00 €"}},{"$f":"SUBTOTAL(109,ΠραγματικάΈξοδαΜάρκετινγκ[Μάρ])","v":{"v":3123,"d":"3,123.00 €"}},{"$f":"SUBTOTAL(109,ΠραγματικάΈξοδαΜάρκετινγκ[Απρ])","v":{"v":11223,"d":"11,223.00 €"}},{"$f":"SUBTOTAL(109,ΠραγματικάΈξοδαΜάρκετινγκ[Μάι])","v":{"v":2987,"d":"2,987.00 €"}},{"$f":"SUBTOTAL(109,ΠραγματικάΈξοδαΜάρκετινγκ[Ιούν])","v":{"v":4725,"d":"4,725.00 €"}},{"$f":"SUBTOTAL(109,ΠραγματικάΈξοδαΜάρκετινγκ[Ιούλ])","v":{"v":0,"d":"0.00 €"}},{"$f":"SUBTOTAL(109,ΠραγματικάΈξοδαΜάρκετινγκ[Αύγ])","v":{"v":0,"d":"0.00 €"}},{"$f":"SUBTOTAL(109,ΠραγματικάΈξοδαΜάρκετινγκ[Σεπ])","v":{"v":0,"d":"0.00 €"}},{"$f":"SUBTOTAL(109,ΠραγματικάΈξοδαΜάρκετινγκ[Οκτ])","v":{"v":0,"d":"0.00 €"}},{"$f":"SUBTOTAL(109,ΠραγματικάΈξοδαΜάρκετινγκ[Νοε])","v":{"v":0,"d":"0.00 €"}},{"$f":"SUBTOTAL(109,ΠραγματικάΈξοδαΜάρκετινγκ[Δεκ])","v":{"v":0,"d":"0.00 €"}},{"$f":"SUBTOTAL(109,ΠραγματικάΈξοδαΜάρκετινγκ[ΕΤΟΣ])","v":{"v":33159,"d":"33,159.00 €"}}]
[]
["Εισαγάγετε τα έξοδα εκπαίδευσης και μετακινήσεων στον πίνακα πραγματικά έξοδα εκπαίδευσης και μετακινήσεων που ξεκινά στο κελί στα δεξιά. Η επόμενη οδηγία βρίσκεται στο κελί A35.","Εκπαίδευση/Ταξίδια","Ιαν","Φεβ","Μάρ","Απρ","Μάι","Ιούν","Ιούλ","Αύγ","Σεπ","Οκτ","Νοε","Δεκ","ΕΤΟΣ"]
[null,"Εκπαιδευτικά μαθήματα",{"v":1600,"d":"1,600.00 €"},{"v":2400,"d":"2,400.00 €"},{"v":1400,"d":"1,400.00 €"},{"v":1600,"d":"1,600.00 €"},{"v":1200,"d":"1,200.00 €"},{"v":2800,"d":"2,800.00 €"},{"$nulls":6},{"$f":"SUM(C31:N31)","v":{"v":11000,"d":"11,000.00 €"}}]
[null,"Έξοδα μετακινήσεων που σχετίζονται με εκπαίδευση",{"v":1200,"d":"1,200.00 €"},{"v":2200,"d":"2,200.00 €"},{"v":1400,"d":"1,400.00 €"},{"v":1200,"d":"1,200.00 €"},{"v":800,"d":"800.00 €"},{"v":3500,"d":"3,500.00 €"},{"$nulls":6},{"$f":"SUM(C32:N32)","v":{"v":10300,"d":"10,300.00 €"}}]
[null,"Μερικό άθροισμα",{"$f":"SUBTOTAL(109,ΠραγματικάΈξοδαΕκπαίδευσηςΚαιΜετακινήσεων[Ιαν])","v":{"v":2800,"d":"2,800.00 €"}},{"$f":"SUBTOTAL(109,ΠραγματικάΈξοδαΕκπαίδευσηςΚαιΜετακινήσεων[Φεβ])","v":{"v":4600,"d":"4,600.00 €"}},{"$f":"SUBTOTAL(109,ΠραγματικάΈξοδαΕκπαίδευσηςΚαιΜετακινήσεων[Μάρ])","v":{"v":2800,"d":"2,800.00 €"}},{"$f":"SUBTOTAL(109,ΠραγματικάΈξοδαΕκπαίδευσηςΚαιΜετακινήσεων[Απρ])","v":{"v":2800,"d":"2,800.00 €"}},{"$f":"SUBTOTAL(109,ΠραγματικάΈξοδαΕκπαίδευσηςΚαιΜετακινήσεων[Μάι])","v":{"v":2000,"d":"2,000.00 €"}},{"$f":"SUBTOTAL(109,ΠραγματικάΈξοδαΕκπαίδευσηςΚαιΜετακινήσεων[Ιούν])","v":{"v":6300,"d":"6,300.00 €"}},{"$f":"SUBTOTAL(109,ΠραγματικάΈξοδαΕκπαίδευσηςΚαιΜετακινήσεων[Ιούλ])","v":{"v":0,"d":"0.00 €"}},{"$f":"SUBTOTAL(109,ΠραγματικάΈξοδαΕκπαίδευσηςΚαιΜετακινήσεων[Αύγ])","v":{"v":0,"d":"0.00 €"}},{"$f":"SUBTOTAL(109,ΠραγματικάΈξοδαΕκπαίδευσηςΚαιΜετακινήσεων[Σεπ])","v":{"v":0,"d":"0.00 €"}},{"$f":"SUBTOTAL(109,ΠραγματικάΈξοδαΕκπαίδευσηςΚαιΜετακινήσεων[Οκτ])","v":{"v":0,"d":"0.00 €"}},{"$f":"SUBTOTAL(109,ΠραγματικάΈξοδαΕκπαίδευσηςΚαιΜετακινήσεων[Νοε])","v":{"v":0,"d":"0.00 €"}},{"$f":"SUBTOTAL(109,ΠραγματικάΈξοδαΕκπαίδευσηςΚαιΜετακινήσεων[Δεκ])","v":{"v":0,"d":"0.00 €"}},{"$f":"SUBTOTAL(109,ΠραγματικάΈξοδαΕκπαίδευσηςΚαιΜετακινήσεων[ΕΤΟΣ])","v":{"v":21300,"d":"21,300.00 €"}}]
[]
["Τα συνολικα πραγματικά έξοδα υπολογίζονται αυτόματα στον πίνακα συνολικά πραγματικά εξόδων που ξεκινά στο κελί στα δεξιά.","ΣΥΝΟΛΙΚΑ προγραμματισμένα έξοδα","Ιαν","Φεβ","Μάρ","Απρ","Μάι","Ιούν","Ιούλ","Αύγ","Σεπ","Οκτ","Νοέ","Δεκ","Έτος"]
[null,"Μηνιαία πραγματικά έξοδα",{"$f":"ΠραγματικάΈξοδαΕκπαίδευσηςΚαιΜετακινήσεων[[#Totals],[Ιαν]]+ΠραγματικάΈξοδαΜάρκετινγκ[[#Totals],[Ιαν]]+ΠραγματικάΈξοδαΓραφείου[[#Totals],[Ιαν]]+ΠραγματικάΈξοδαΥπαλλήλων[[#Totals],[Ιαν]]","v":{"v":129682,"d":"129,682.00 €"}},{"$f":"ΠραγματικάΈξοδαΕκπαίδευσηςΚαιΜετακινήσεων[[#Totals],[Φεβ]]+ΠραγματικάΈξοδαΜάρκετινγκ[[#Totals],[Φεβ]]+ΠραγματικάΈξοδαΓραφείου[[#Totals],[Φεβ]]+ΠραγματικάΈξοδαΥπαλλήλων[[#Totals],[Φεβ]]","v":{"v":127804,"d":"127,804.00 €"}},{"$f":"ΠραγματικάΈξοδαΕκπαίδευσηςΚαιΜετακινήσεων[[#Totals],[Μάρ]]+ΠραγματικάΈξοδαΜάρκετινγκ[[#Totals],[Μάρ]]+ΠραγματικάΈξοδαΓραφείου[[#Totals],[Μάρ]]+ΠραγματικάΈξοδαΥπαλλήλων[[#Totals],[Μάρ]]","v":{"v":125565,"d":"125,565.00 €"}},{"$f":"ΠραγματικάΈξοδαΕκπαίδευσηςΚαιΜετακινήσεων[[#Totals],[Απρ]]+ΠραγματικάΈξοδαΜάρκετινγκ[[#Totals],[Απρ]]+ΠραγματικάΈξοδαΓραφείου[[#Totals],[Απρ]]+ΠραγματικάΈξοδαΥπαλλήλων[[#Totals],[Απρ]]","v":{"v":137394,"d":"137,394.00 €"}},{"$f":"ΠραγματικάΈξοδαΕκπαίδευσηςΚαιΜετακινήσεων[[#Totals],[Μάι]]+ΠραγματικάΈξοδαΜάρκετινγκ[[#Totals],[Μάι]]+ΠραγματικάΈξοδαΓραφείου[[#Totals],[Μάι]]+ΠραγματικάΈξοδαΥπαλλήλων[[#Totals],[Μάι]]","v":{"v":128255,"d":"128,255.00 €"}},{"$f":"ΠραγματικάΈξοδαΕκπαίδευσηςΚαιΜετακινήσεων[[#Totals],[Ιούν]]+ΠραγματικάΈξοδαΜάρκετινγκ[[#Totals],[Ιούν]]+ΠραγματικάΈξοδαΓραφείου[[#Totals],[Ιούν]]+ΠραγματικάΈξοδαΥπαλλήλων[[#Totals],[Ιούν]]","v":{"v":134239,"d":"134,239.00 €"}},{"$f":"ΠραγματικάΈξοδαΕκπαίδευσηςΚαιΜετακινήσεων[[#Totals],[Ιούλ]]+ΠραγματικάΈξοδαΜάρκετινγκ[[#Totals],[Ιούλ]]+ΠραγματικάΈξοδαΓραφείου[[#Totals],[Ιούλ]]+ΠραγματικάΈξοδαΥπαλλήλων[[#Totals],[Ιούλ]]","v":{"v":0,"d":"0.00 €"}},{"$f":"ΠραγματικάΈξοδαΕκπαίδευσηςΚαιΜετακινήσεων[[#Totals],[Αύγ]]+ΠραγματικάΈξοδαΜάρκετινγκ[[#Totals],[Αύγ]]+ΠραγματικάΈξοδαΓραφείου[[#Totals],[Αύγ]]+ΠραγματικάΈξοδαΥπαλλήλων[[#Totals],[Αύγ]]","v":{"v":0,"d":"0.00 €"}},{"$f":"ΠραγματικάΈξοδαΕκπαίδευσηςΚαιΜετακινήσεων[[#Totals],[Σεπ]]+ΠραγματικάΈξοδαΜάρκετινγκ[[#Totals],[Σεπ]]+ΠραγματικάΈξοδαΓραφείου[[#Totals],[Σεπ]]+ΠραγματικάΈξοδαΥπαλλήλων[[#Totals],[Σεπ]]","v":{"v":0,"d":"0.00 €"}},{"$f":"ΠραγματικάΈξοδαΕκπαίδευσηςΚαιΜετακινήσεων[[#Totals],[Οκτ]]+ΠραγματικάΈξοδαΜάρκετινγκ[[#Totals],[Οκτ]]+ΠραγματικάΈξοδαΓραφείου[[#Totals],[Οκτ]]+ΠραγματικάΈξοδαΥπαλλήλων[[#Totals],[Οκτ]]","v":{"v":0,"d":"0.00 €"}},{"$f":"ΠραγματικάΈξοδαΕκπαίδευσηςΚαιΜετακινήσεων[[#Totals],[Νοε]]+ΠραγματικάΈξοδαΜάρκετινγκ[[#Totals],[Νοε]]+ΠραγματικάΈξοδαΓραφείου[[#Totals],[Νοε]]+ΠραγματικάΈξοδαΥπαλλήλων[[#Totals],[Νοέ]]","v":{"v":0,"d":"0.00 €"}},{"$f":"ΠραγματικάΈξοδαΕκπαίδευσηςΚαιΜετακινήσεων[[#Totals],[Δεκ]]+ΠραγματικάΈξοδαΜάρκετινγκ[[#Totals],[Δεκ]]+ΠραγματικάΈξοδαΓραφείου[[#Totals],[Δεκ]]+ΠραγματικάΈξοδαΥπαλλήλων[[#Totals],[Δεκ]]","v":{"v":0,"d":"0.00 €"}},{"$f":"ΠραγματικάΈξοδαΕκπαίδευσηςΚαιΜετακινήσεων[[#Totals],[ΕΤΟΣ]]+ΠραγματικάΈξοδαΜάρκετινγκ[[#Totals],[ΕΤΟΣ]]+ΠραγματικάΈξοδαΓραφείου[[#Totals],[ΕΤΟΣ]]+ΠραγματικάΈξοδαΥπαλλήλων[[#Totals],[ΕΤΟΣ]]","v":{"v":782939,"d":"782,939.00 €"}}]
[null,"ΣΥΝΟΛΙΚΑ πραγματικά έξοδα",{"$f":"SUM($C$36:C36)","v":{"v":129682,"d":"129,682.00 €"}},{"$f":"SUM($C$36:D36)","v":{"v":257486,"d":"257,486.00 €"}},{"$f":"SUM($C$36:E36)","v":{"v":383051,"d":"383,051.00 €"}},{"$f":"SUM($C$36:F36)","v":{"v":520445,"d":"520,445.00 €"}},{"$f":"SUM($C$36:G36)","v":{"v":648700,"d":"648,700.00 €"}},{"$f":"SUM($C$36:H36)","v":{"v":782939,"d":"782,939.00 €"}},{"$f":"SUM($C$36:I36)","v":{"v":782939,"d":"782,939.00 €"}},{"$f":"SUM($C$36:J36)","v":{"v":782939,"d":"782,939.00 €"}},{"$f":"SUM($C$36:K36)","v":{"v":782939,"d":"782,939.00 €"}},{"$f":"SUM($C$36:L36)","v":{"v":782939,"d":"782,939.00 €"}},{"$f":"SUM($C$36:M36)","v":{"v":782939,"d":"782,939.00 €"}},{"$f":"SUM($C$36:N36)","v":{"v":782939,"d":"782,939.00 €"}}]

{"sheet":"ΔΙΑΚΥΜΑΝΣΕΙΣ ΕΞΟΔΩΝ","index":3,"n_rows":37,"n_cols":16,"rows_kept":37,"merged":[[1,1,2,3],[1,10,1,12],[1,13,2,14],[2,10,2,12],[8,1,8,2],[19,1,19,2],[28,1,28,2],[33,1,33,2]]}
["Σε αυτό το φύλλο εργασίας υπολογίζεται αυτόματα η διακύμανση εξόδων για τα έξοδα υπαλλήλων, έξοδα γραφείου, έξοδα μάρκετινγκ και έξοδα εκπαίδευσης και μετακινήσεων στους αντίστοιχους πίνακες σε αυτό το φύλλο εργασίας. Σε διάφορα κελιά σε αυτή τη στήλη βρίσκονται χρήσιμες οδηγίες για τον τρόπο χρήσης αυτού του φύλλου εργασίας. Πατήστε το κάτω βέλος για να ξεκινήσετε.",{"$nulls":14}," "]
["Η επωνυμία εταιρείας ενημερώνεται αυτόματα στο κελί στα δεξιά. Στο κελί K2 βρίσκεται ο τίτλος αυτού του φύλλου εργασίας. Εισαγάγετε το λογότυπο στο κελί N2.",{"$f":"'ΠΡΟΓΡΑΜΜΑΤΙΣΜΕΝΑ ΕΞΟΔΑ'!B2:D3","v":"Επωνυμία εταιρείας"},{"$nulls":8},{"$f":"τίτλος_φύλλου_εργασίας","v":"Λεπτομερείς εκτιμήσεις εξόδων"},null,null,"Σε αυτό το κελί βρίσκεται σύμβολο κράτησης θέσης λογότυπου."]
["Στο κελί K3 βρίσκεται συμβουλή.",{"$nulls":9},"Τα σκιασμένα κελιά είναι υπολογισμοί."]
["Η ετικέτα της διακυμανσεισ εξοδων βρίσκεται στο κελί στα δεξιά, οι μήνες στα κελιά C4 έως N4 και η ετικέτα του ετοσ στο κελί Ο4.","ΔΙΑΚΥΜΑΝΣΕΙΣ ΕΞΟΔΩΝ","ΙΑΝ","ΦΕΒ","ΜΑΡ","ΑΠΡ","ΜΑΪΟΣ","ΙΟΥΝ","ΙΟΥΛ","ΑΥΓ","ΣΕΠ","ΟΚΤ","ΝΟΕ","ΔΕΚ","ΕΤΟΣ"]
["Η διακύμανση στα έξοδα υπαλλήλων υπολογίζεται αυτόματα στον πίνακα διακυμάνσεις εξόδων υπαλλήλων που ξεκινά στο κελί στα δεξιά. Η επόμενη οδηγία βρίσκεται στο κελί A10.","Έξοδα υπαλλήλων","Ιαν","Φεβ","Μάρ","Απρ","Μάι","Ιούν","Ιούλ","Αύγ","Σεπ","Οκτ","Νοέ","Δεκ","ΕΤΟΣ"]
[null,"Μισθοί",{"$f":"INDEX(ΠρογραμματισμέναΈξοδαΥπαλλήλων[],MATCH(INDEX(ΔιακυμάνσειςΕξόδωνΥπαλλήλων[],ROW()-ROW(ΔιακυμάνσειςΕξόδωνΥπαλλήλων[[#Headers],[Ιαν]]),1),INDEX(ΠρογραμματισμέναΈξοδαΥπαλλήλων[],,1),0),MATCH(ΔιακυμάνσειςΕξόδωνΥπαλλήλων[[#Headers],[Ιαν]],ΠρογραμματισμέναΈξοδαΥπαλλήλων[#Headers],0))-INDEX(ΠραγματικάΈξοδαΥπαλλήλων[],MATCH(INDEX(ΔιακυμάνσειςΕξόδωνΥπαλλήλων[],ROW()-ROW(ΔιακυμάνσειςΕξόδωνΥπαλλήλων[[#Headers],[Ιαν]]),1),INDEX(ΠρογραμματισμέναΈξοδαΥπαλλήλων[],,1),0),MATCH(ΔιακυμάνσειςΕξόδωνΥπαλλήλων[[#Headers],[Ιαν]],ΠραγματικάΈξοδαΥπαλλήλων[#Headers],0))","v":{"v":0,"d":"0.00 €"}},{"$f":"INDEX(ΠρογραμματισμέναΈξοδαΥπαλλήλων[],MATCH(INDEX(ΔιακυμάνσειςΕξόδωνΥπαλλήλων[],ROW()-ROW(ΔιακυμάνσειςΕξόδωνΥπαλλήλων[[#Headers],[Φεβ]]),1),INDEX(ΠρογραμματισμέναΈξοδαΥπαλλήλων[],,1),0),MATCH(ΔιακυμάνσειςΕξόδωνΥπαλλήλων[[#Headers],[Φεβ]],ΠρογραμματισμέναΈξοδαΥπαλλήλων[#Headers],0))-INDEX(ΠραγματικάΈξοδαΥπαλλήλων[],MATCH(INDEX(ΔιακυμάνσειςΕξόδωνΥπαλλήλων[],ROW()-ROW(ΔιακυμάνσειςΕξόδωνΥπαλλήλων[[#Headers],[Φεβ]]),1),INDEX(ΠρογραμματισμέναΈξοδαΥπαλλήλων[],,1),0),MATCH(ΔιακυμάνσειςΕξόδωνΥπαλλήλων[[#Headers],[Φεβ]],ΠραγματικάΈξοδαΥπαλλήλων[#Headers],0))","v":{"v":0,"d":"0.00 €"}},{"$f":"INDEX(ΠρογραμματισμέναΈξοδαΥπαλλήλων[],MATCH(INDEX(ΔιακυμάνσειςΕξόδωνΥπαλλήλων[],ROW()-ROW(ΔιακυμάνσειςΕξόδωνΥπαλλήλων[[#Headers],[Μάρ]]),1),INDEX(ΠρογραμματισμέναΈξοδαΥπαλλήλων[],,1),0),MATCH(ΔιακυμάνσειςΕξόδωνΥπαλλήλων[[#Headers],[Μάρ]],ΠρογραμματισμέναΈξοδαΥπαλλήλων[#Headers],0))-INDEX(ΠραγματικάΈξοδαΥπαλλήλων[],MATCH(INDEX(ΔιακυμάνσειςΕξόδωνΥπαλλήλων[],ROW()-ROW(ΔιακυμάνσειςΕξόδωνΥπαλλήλων[[#Headers],[Μάρ]]),1),INDEX(ΠρογραμματισμέναΈξοδαΥπαλλήλων[],,1),0),MATCH(ΔιακυμάνσειςΕξόδωνΥπαλλήλων[[#Headers],[Μάρ]],ΠραγματικάΈξοδαΥπαλλήλων[#Headers],0))","v":{"v":0,"d":"0.00 €"}},{"$f":"INDEX(ΠρογραμματισμέναΈξοδαΥπαλλήλων[],MATCH(INDEX(ΔιακυμάνσειςΕξόδωνΥπαλλήλων[],ROW()-ROW(ΔιακυμάνσειςΕξόδωνΥπαλλήλων[[#Headers],[Απρ]]),1),INDEX(ΠρογραμματισμέναΈξοδαΥπαλλήλων[],,1),0),MATCH(ΔιακυμάνσειςΕξόδωνΥπαλλήλων[[#Headers],[Απρ]],ΠρογραμματισμέναΈξοδαΥπαλλήλων[#Headers],0))-INDEX(ΠραγματικάΈξοδαΥπαλλήλων[],MATCH(INDEX(ΔιακυμάνσειςΕξόδωνΥπαλλήλων[],ROW()-ROW(ΔιακυμάνσειςΕξόδωνΥπαλλήλων[[#Headers],[Απρ]]),1),INDEX(ΠρογραμματισμέναΈξοδαΥπαλλήλων[],,1),0),MATCH(ΔιακυμάνσειςΕξόδωνΥπαλλήλων[[#Headers],[Απρ]],ΠραγματικάΈξοδαΥπαλλήλων[#Headers],0))","v":{"v":-500,"d":"-500.00 €"}},{"$f":"INDEX(ΠρογραμματισμέναΈξοδαΥπαλλήλων[],MATCH(INDEX(ΔιακυμάνσειςΕξόδωνΥπαλλήλων[],ROW()-ROW(ΔιακυμάνσειςΕξόδωνΥπαλλήλων[[#Headers],[Μάι]]),1),INDEX(ΠρογραμματισμέναΈξοδαΥπαλλήλων[],,1),0),MATCH(ΔιακυμάνσειςΕξόδωνΥπαλλήλων[[#Headers],[Μάι]],ΠρογραμματισμέναΈξοδαΥπαλλήλων[#Headers],0))-INDEX(ΠραγματικάΈξοδαΥπαλλήλων[],MATCH(INDEX(ΔιακυμάνσειςΕξόδωνΥπαλλήλων[],ROW()-ROW(ΔιακυμάνσειςΕξόδωνΥπαλλήλων[[#Headers],[Μάι]]),1),INDEX(ΠρογραμματισμέναΈξοδαΥπαλλήλων[],,1),0),MATCH(ΔιακυμάνσειςΕξόδωνΥπαλλήλων[[#Headers],[Μάι]],ΠραγματικάΈξοδαΥπαλλήλων[#Headers],0))","v":{"v":-500,"d":"-500.00 €"}},{"$f":"INDEX(ΠρογραμματισμέναΈξοδαΥπαλλήλων[],MATCH(INDEX(ΔιακυμάνσειςΕξόδωνΥπαλλήλων[],ROW()-ROW(ΔιακυμάνσειςΕξόδωνΥπαλλήλων[[#Headers],[Ιούν]]),1),INDEX(ΠρογραμματισμέναΈξοδαΥπαλλήλων[],,1),0),MATCH(ΔιακυμάνσειςΕξόδωνΥπαλλήλων[[#Headers],[Ιούν]],ΠρογραμματισμέναΈξοδαΥπαλλήλων[#Headers],0))-INDEX(ΠραγματικάΈξοδαΥπαλλήλων[],MATCH(INDEX(ΔιακυμάνσειςΕξόδωνΥπαλλήλων[],ROW()-ROW(ΔιακυμάνσειςΕξόδωνΥπαλλήλων[[#Headers],[Ιούν]]),1),INDEX(ΠρογραμματισμέναΈξοδαΥπαλλήλων[],,1),0),MATCH(ΔιακυμάνσειςΕξόδωνΥπαλλήλων[[#Headers],[Ιούν]],ΠραγματικάΈξοδαΥπαλλήλων[#Headers],0))","v":{"v":-500,"d":"-500.00 €"}},{"$f":"INDEX(ΠρογραμματισμέναΈξοδαΥπαλλήλων[],MATCH(INDEX(ΔιακυμάνσειςΕξόδωνΥπαλλήλων[],ROW()-ROW(ΔιακυμάνσειςΕξόδωνΥπαλλήλων[[#Headers],[Ιούλ]]),1),INDEX(ΠρογραμματισμέναΈξοδαΥπαλλήλων[],,1),0),MATCH(ΔιακυμάνσειςΕξόδωνΥπαλλήλων[[#Headers],[Ιούλ]],ΠρογραμματισμέναΈξοδαΥπαλλήλων[#Headers],0))-INDEX(ΠραγματικάΈξοδαΥπαλλήλων[],MATCH(INDEX(ΔιακυμάνσειςΕξόδωνΥπαλλήλων[],ROW()-ROW(ΔιακυμάνσειςΕξόδωνΥπαλλήλων[[#Headers],[Ιούλ]]),1),INDEX(ΠρογραμματισμέναΈξοδαΥπαλλήλων[],,1),0),MATCH(ΔιακυμάνσειςΕξόδωνΥπαλλήλων[[#Headers],[Ιούλ]],ΠραγματικάΈξοδαΥπαλλήλων[#Headers],0))","v":{"v":87500,"d":"87,500.00 €"}},{"$f":"INDEX(ΠρογραμματισμέναΈξοδαΥπαλλήλων[],MATCH(INDEX(ΔιακυμάνσειςΕξόδωνΥπαλλήλων[],ROW()-ROW(ΔιακυμάνσειςΕξόδωνΥπαλλήλων[[#Headers],[Αύγ]]),1),INDEX(ΠρογραμματισμέναΈξοδαΥπαλλήλων[],,1),0),MATCH(ΔιακυμάνσειςΕξόδωνΥπαλλήλων[[#Headers],[Αύγ]],ΠρογραμματισμέναΈξοδαΥπαλλήλων[#Headers],0))-INDEX(ΠραγματικάΈξοδαΥπαλλήλων[],MATCH(INDEX(ΔιακυμάνσειςΕξόδωνΥπαλλήλων[],ROW()-ROW(ΔιακυμάνσειςΕξόδωνΥπαλλήλων[[#Headers],[Αύγ]]),1),INDEX(ΠρογραμματισμέναΈξοδαΥπαλλήλων[],,1),0),MATCH(ΔιακυμάνσειςΕξόδωνΥπαλλήλων[[#Headers],[Αύγ]],ΠραγματικάΈξοδαΥπαλλήλων[#Headers],0))","v":{"v":92400,"d":"92,400.00 €"}},{"$f":"INDEX(ΠρογραμματισμέναΈξοδαΥπαλλήλων[],MATCH(INDEX(ΔιακυμάνσειςΕξόδωνΥπαλλήλων[],ROW()-ROW(ΔιακυμάνσειςΕξόδωνΥπαλλήλων[[#Headers],[Σεπ]]),1),INDEX(ΠρογραμματισμέναΈξοδαΥπαλλήλων[],,1),0),MATCH(ΔιακυμάνσειςΕξόδωνΥπαλλήλων[[#Headers],[Σεπ]],ΠρογραμματισμέναΈξοδαΥπαλλήλων[#Headers],0))-INDEX(ΠραγματικάΈξοδαΥπαλλήλων[],MATCH(INDEX(ΔιακυμάνσειςΕξόδωνΥπαλλήλων[],ROW()-ROW(ΔιακυμάνσειςΕξόδωνΥπαλλήλων[[#Headers],[Σεπ]]),1),INDEX(ΠρογραμματισμέναΈξοδαΥπαλλήλων[],,1),0),MATCH(ΔιακυμάνσειςΕξόδωνΥπαλλήλων[[#Headers],[Σεπ]],ΠραγματικάΈξοδαΥπαλλήλων[#Headers],0))","v":{"v":92400,"d":"92,400.00 €"}},{"$f":"INDEX(ΠρογραμματισμέναΈξοδαΥπαλλήλων[],MATCH(INDEX(ΔιακυμάνσειςΕξόδωνΥπαλλήλων[],ROW()-ROW(ΔιακυμάνσειςΕξόδωνΥπαλλήλων[[#Headers],[Οκτ]]),1),INDEX(ΠρογραμματισμέναΈξοδαΥπαλλήλων[],,1),0),MATCH(ΔιακυμάνσειςΕξόδωνΥπαλλήλων[[#Headers],[Οκτ]],ΠρογραμματισμέναΈξοδαΥπαλλήλων[#Headers],0))-INDEX(ΠραγματικάΈξοδαΥπαλλήλων[],MATCH(INDEX(ΔιακυμάνσειςΕξόδωνΥπαλλήλων[],ROW()-ROW(ΔιακυμάνσειςΕξόδωνΥπαλλήλων[[#Headers],[Οκτ]]),1),INDEX(ΠρογραμματισμέναΈξοδαΥπαλλήλων[],,1),0),MATCH(ΔιακυμάνσειςΕξόδωνΥπαλλήλων[[#Headers],[Οκτ]],ΠραγματικάΈξοδαΥπαλλήλων[#Headers],0))","v":{"v":92400,"d":"92,400.00 €"}},{"$f":"INDEX(ΠρογραμματισμέναΈξοδαΥπαλλήλων[],MATCH(INDEX(ΔιακυμάνσειςΕξόδωνΥπαλλήλων[],ROW()-ROW(ΔιακυμάνσειςΕξόδωνΥπαλλήλων[[#Headers],[Νοέ]]),1),INDEX(ΠρογραμματισμέναΈξοδαΥπαλλήλων[],,1),0),MATCH(ΔιακυμάνσειςΕξόδωνΥπαλλήλων[[#Headers],[Νοέ]],ΠρογραμματισμέναΈξοδαΥπαλλήλων[#Headers],0))-INDEX(ΠραγματικάΈξοδαΥπαλλήλων[],MATCH(INDEX(ΔιακυμάνσειςΕξόδωνΥπαλλήλων[],ROW()-ROW(ΔιακυμάνσειςΕξόδωνΥπαλλήλων[[#Headers],[Νοέ]]),1),INDEX(ΠρογραμματισμέναΈξοδαΥπαλλήλων[],,1),0),MATCH(ΔιακυμάνσειςΕξόδωνΥπαλλήλων[[#Headers],[Νοέ]],ΠραγματικάΈξοδαΥπαλλήλων[#Headers],0))","v":{"v":92400,"d":"92,400.00 €"}},{"$f":"INDEX(ΠρογραμματισμέναΈξοδαΥπαλλήλων[],MATCH(INDEX(ΔιακυμάνσειςΕξόδωνΥπαλλήλων[],ROW()-ROW(ΔιακυμάνσειςΕξόδωνΥπαλλήλων[[#Headers],[Δεκ]]),1),INDEX(ΠρογραμματισμέναΈξοδαΥπαλλήλων[],,1),0),MATCH(ΔιακυμάνσειςΕξόδωνΥπαλλήλων[[#Headers],[Δεκ]],ΠρογραμματισμέναΈξοδαΥπαλλήλων[#Headers],0))-INDEX(ΠραγματικάΈξοδαΥπαλλήλων[],MATCH(INDEX(ΔιακυμάνσειςΕξόδωνΥπαλλήλων[],ROW()-ROW(ΔιακυμάνσειςΕξόδωνΥπαλλήλων[[#Headers],[Δεκ]]),1),INDEX(ΠρογραμματισμέναΈξοδαΥπαλλήλων[],,1),0),MATCH(ΔιακυμάνσειςΕξόδωνΥπαλλήλων[[#Headers],[Δεκ]],ΠραγματικάΈξοδαΥπαλλήλων[#Headers],0))","v":{"v":92400,"d":"92,400.00 €"}},{"$f":"SUM(ΔιακυμάνσειςΕξόδωνΥπαλλήλων[[#This Row],[Ιαν]:[Δεκ]])","v":{"v":548000,"d":"548,000.00 €"}}]
[null,"Επιδόματα",{"$f":"INDEX(ΠρογραμματισμέναΈξοδαΥπαλλήλων[],MATCH(INDEX(ΔιακυμάνσειςΕξόδωνΥπαλλήλων[],ROW()-ROW(ΔιακυμάνσειςΕξόδωνΥπαλλήλων[[#Headers],[Ιαν]]),1),INDEX(ΠρογραμματισμέναΈξοδαΥπαλλήλων[],,1),0),MATCH(ΔιακυμάνσειςΕξόδωνΥπαλλήλων[[#Headers],[Ιαν]],ΠρογραμματισμέναΈξοδαΥπαλλήλων[#Headers],0))-INDEX(ΠραγματικάΈξοδαΥπαλλήλων[],MATCH(INDEX(ΔιακυμάνσειςΕξόδωνΥπαλλήλων[],ROW()-ROW(ΔιακυμάνσειςΕξόδωνΥπαλλήλων[[#Headers],[Ιαν]]),1),INDEX(ΠρογραμματισμέναΈξοδαΥπαλλήλων[],,1),0),MATCH(ΔιακυμάνσειςΕξόδωνΥπαλλήλων[[#Headers],[Ιαν]],ΠραγματικάΈξοδαΥπαλλήλων[#Headers],0))","v":{"v":0,"d":"0.00 €"}},{"$f":"INDEX(ΠρογραμματισμέναΈξοδαΥπαλλήλων[],MATCH(INDEX(ΔιακυμάνσειςΕξόδωνΥπαλλήλων[],ROW()-ROW(ΔιακυμάνσειςΕξόδωνΥπαλλήλων[[#Headers],[Φεβ]]),1),INDEX(ΠρογραμματισμέναΈξοδαΥπαλλήλων[],,1),0),MATCH(ΔιακυμάνσειςΕξόδωνΥπαλλήλων[[#Headers],[Φεβ]],ΠρογραμματισμέναΈξοδαΥπαλλήλων[#Headers],0))-INDEX(ΠραγματικάΈξοδαΥπαλλήλων[],MATCH(INDEX(ΔιακυμάνσειςΕξόδωνΥπαλλήλων[],ROW()-ROW(ΔιακυμάνσειςΕξόδωνΥπαλλήλων[[#Headers],[Φεβ]]),1),INDEX(ΠρογραμματισμέναΈξοδαΥπαλλήλων[],,1),0),MATCH(ΔιακυμάνσειςΕξόδωνΥπαλλήλων[[#Headers],[Φεβ]],ΠραγματικάΈξοδαΥπαλλήλων[#Headers],0))","v":{"v":0,"d":"0.00 €"}},{"$f":"INDEX(ΠρογραμματισμέναΈξοδαΥπαλλήλων[],MATCH(INDEX(ΔιακυμάνσειςΕξόδωνΥπαλλήλων[],ROW()-ROW(ΔιακυμάνσειςΕξόδωνΥπαλλήλων[[#Headers],[Μάρ]]),1),INDEX(ΠρογραμματισμέναΈξοδαΥπαλλήλων[],,1),0),MATCH(ΔιακυμάνσειςΕξόδωνΥπαλλήλων[[#Headers],[Μάρ]],ΠρογραμματισμέναΈξοδαΥπαλλήλων[#Headers],0))-INDEX(ΠραγματικάΈξοδαΥπαλλήλων[],MATCH(INDEX(ΔιακυμάνσειςΕξόδωνΥπαλλήλων[],ROW()-ROW(ΔιακυμάνσειςΕξόδωνΥπαλλήλων[[#Headers],[Μάρ]]),1),INDEX(ΠρογραμματισμέναΈξοδαΥπαλλήλων[],,1),0),MATCH(ΔιακυμάνσειςΕξόδωνΥπαλλήλων[[#Headers],[Μάρ]],ΠραγματικάΈξοδαΥπαλλήλων[#Headers],0))","v":{"v":0,"d":"0.00 €"}},{"$f":"INDEX(ΠρογραμματισμέναΈξοδαΥπαλλήλων[],MATCH(INDEX(ΔιακυμάνσειςΕξόδωνΥπαλλήλων[],ROW()-ROW(ΔιακυμάνσειςΕξόδωνΥπαλλήλων[[#Headers],[Απρ]]),1),INDEX(ΠρογραμματισμέναΈξοδαΥπαλλήλων[],,1),0),MATCH(ΔιακυμάνσειςΕξόδωνΥπαλλήλων[[#Headers],[Απρ]],ΠρογραμματισμέναΈξοδαΥπαλλήλων[#Headers],0))-INDEX(ΠραγματικάΈξοδαΥπαλλήλων[],MATCH(INDEX(ΔιακυμάνσειςΕξόδωνΥπαλλήλων[],ROW()-ROW(ΔιακυμάνσειςΕξόδωνΥπαλλήλων[[#Headers],[Απρ]]),1),INDEX(ΠρογραμματισμέναΈξοδαΥπαλλήλων[],,1),0),MATCH(ΔιακυμάνσειςΕξόδωνΥπαλλήλων[[#Headers],[Απρ]],ΠραγματικάΈξοδαΥπαλλήλων[#Headers],0))","v":{"v":-135,"d":"-135.00 €"}},{"$f":"INDEX(ΠρογραμματισμέναΈξοδαΥπαλλήλων[],MATCH(INDEX(ΔιακυμάνσειςΕξόδωνΥπαλλήλων[],ROW()-ROW(ΔιακυμάνσειςΕξόδωνΥπαλλήλων[[#Headers],[Μάι]]),1),INDEX(ΠρογραμματισμέναΈξοδαΥπαλλήλων[],,1),0),MATCH(ΔιακυμάνσειςΕξόδωνΥπαλλήλων[[#Headers],[Μάι]],ΠρογραμματισμέναΈξοδαΥπαλλήλων[#Headers],0))-INDEX(ΠραγματικάΈξοδαΥπαλλήλων[],MATCH(INDEX(ΔιακυμάνσειςΕξόδωνΥπαλλήλων[],ROW()-ROW(ΔιακυμάνσειςΕξόδωνΥπαλλήλων[[#Headers],[Μάι]]),1),INDEX(ΠρογραμματισμέναΈξοδαΥπαλλήλων[],,1),0),MATCH(ΔιακυμάνσειςΕξόδωνΥπαλλήλων[[#Headers],[Μάι]],ΠραγματικάΈξοδαΥπαλλήλων[#Headers],0))","v":{"v":-135,"d":"-135.00 €"}},{"$f":"INDEX(ΠρογραμματισμέναΈξοδαΥπαλλήλων[],MATCH(INDEX(ΔιακυμάνσειςΕξόδωνΥπαλλήλων[],ROW()-ROW(ΔιακυμάνσειςΕξόδωνΥπαλλήλων[[#Headers],[Ιούν]]),1),INDEX(ΠρογραμματισμέναΈξοδαΥπαλλήλων[],,1),0),MATCH(ΔιακυμάνσειςΕξόδωνΥπαλλήλων[[#Headers],[Ιούν]],ΠρογραμματισμέναΈξοδαΥπαλλήλων[#Headers],0))-INDEX(ΠραγματικάΈξοδαΥπαλλήλων[],MATCH(INDEX(ΔιακυμάνσειςΕξόδωνΥπαλλήλων[],ROW()-ROW(ΔιακυμάνσειςΕξόδωνΥπαλλήλων[[#Headers],[Ιούν]]),1),INDEX(ΠρογραμματισμέναΈξοδαΥπαλλήλων[],,1),0),MATCH(ΔιακυμάνσειςΕξόδωνΥπαλλήλων[[#Headers],[Ιούν]],ΠραγματικάΈξοδαΥπαλλήλων[#Headers],0))","v":{"v":-135,"d":"-135.00 €"}},{"$f":"INDEX(ΠρογραμματισμέναΈξοδαΥπαλλήλων[],MATCH(INDEX(ΔιακυμάνσειςΕξόδωνΥπαλλήλων[],ROW()-ROW(ΔιακυμάνσειςΕξόδωνΥπαλλήλων[[#Headers],[Ιούλ]]),1),INDEX(ΠρογραμματισμέναΈξοδαΥπαλλήλων[],,1),0),MATCH(ΔιακυμάνσειςΕξόδωνΥπαλλήλων[[#Headers],[Ιούλ]],ΠρογραμματισμέναΈξοδαΥπαλλήλων[#Headers],0))-INDEX(ΠραγματικάΈξοδαΥπαλλήλων[],MATCH(INDEX(ΔιακυμάνσειςΕξόδωνΥπαλλήλων[],ROW()-ROW(ΔιακυμάνσειςΕξόδωνΥπαλλήλων[[#Headers],[Ιούλ]]),1),INDEX(ΠρογραμματισμέναΈξοδαΥπαλλήλων[],,1),0),MATCH(ΔιακυμάνσειςΕξόδωνΥπαλλήλων[[#Headers],[Ιούλ]],ΠραγματικάΈξοδαΥπαλλήλων[#Headers],0))","v":{"v":23625,"d":"23,625.00 €"}},{"$f":"INDEX(ΠρογραμματισμέναΈξοδαΥπαλλήλων[],MATCH(INDEX(ΔιακυμάνσειςΕξόδωνΥπαλλήλων[],ROW()-ROW(ΔιακυμάνσειςΕξόδωνΥπαλλήλων[[#Headers],[Αύγ]]),1),INDEX(ΠρογραμματισμέναΈξοδαΥπαλλήλων[],,1),0),MATCH(ΔιακυμάνσειςΕξόδωνΥπαλλήλων[[#Headers],[Αύγ]],ΠρογραμματισμέναΈξοδαΥπαλλήλων[#Headers],0))-INDEX(ΠραγματικάΈξοδαΥπαλλήλων[],MATCH(INDEX(ΔιακυμάνσειςΕξόδωνΥπαλλήλων[],ROW()-ROW(ΔιακυμάνσειςΕξόδωνΥπαλλήλων[[#Headers],[Αύγ]]),1),INDEX(ΠρογραμματισμέναΈξοδαΥπαλλήλων[],,1),0),MATCH(ΔιακυμάνσειςΕξόδωνΥπαλλήλων[[#Headers],[Αύγ]],ΠραγματικάΈξοδαΥπαλλήλων[#Headers],0))","v":{"v":24948,"d":"24,948.00 €"}},{"$f":"INDEX(ΠρογραμματισμέναΈξοδαΥπαλλήλων[],MATCH(INDEX(ΔιακυμάνσειςΕξόδωνΥπαλλήλων[],ROW()-ROW(ΔιακυμάνσειςΕξόδωνΥπαλλήλων[[#Headers],[Σεπ]]),1),INDEX(ΠρογραμματισμέναΈξοδαΥπαλλήλων[],,1),0),MATCH(ΔιακυμάνσειςΕξόδωνΥπαλλήλων[[#Headers],[Σεπ]],ΠρογραμματισμέναΈξοδαΥπαλλήλων[#Headers],0))-INDEX(ΠραγματικάΈξοδαΥπαλλήλων[],MATCH(INDEX(ΔιακυμάνσειςΕξόδωνΥπαλλήλων[],ROW()-ROW(ΔιακυμάνσειςΕξόδωνΥπαλλήλων[[#Headers],[Σεπ]]),1),INDEX(ΠρογραμματισμέναΈξοδαΥπαλλήλων[],,1),0),MATCH(ΔιακυμάνσειςΕξόδωνΥπαλλήλων[[#Headers],[Σεπ]],ΠραγματικάΈξοδαΥπαλλήλων[#Headers],0))","v":{"v":24948,"d":"24,948.00 €"}},{"$f":"INDEX(ΠρογραμματισμέναΈξοδαΥπαλλήλων[],MATCH(INDEX(ΔιακυμάνσειςΕξόδωνΥπαλλήλων[],ROW()-ROW(ΔιακυμάνσειςΕξόδωνΥπαλλήλων[[#Headers],[Οκτ]]),1),INDEX(ΠρογραμματισμέναΈξοδαΥπαλλήλων[],,1),0),MATCH(ΔιακυμάνσειςΕξόδωνΥπαλλήλων[[#Headers],[Οκτ]],ΠρογραμματισμέναΈξοδαΥπαλλήλων[#Headers],0))-INDEX(ΠραγματικάΈξοδαΥπαλλήλων[],MATCH(INDEX(ΔιακυμάνσειςΕξόδωνΥπαλλήλων[],ROW()-ROW(ΔιακυμάνσειςΕξόδωνΥπαλλήλων[[#Headers],[Οκτ]]),1),INDEX(ΠρογραμματισμέναΈξοδαΥπαλλήλων[],,1),0),MATCH(ΔιακυμάνσειςΕξόδωνΥπαλλήλων[[#Headers],[Οκτ]],ΠραγματικάΈξοδαΥπαλλήλων[#Headers],0))","v":{"v":24948,"d":"24,948.00 €"}},{"$f":"INDEX(ΠρογραμματισμέναΈξοδαΥπαλλήλων[],MATCH(INDEX(ΔιακυμάνσειςΕξόδωνΥπαλλήλων[],ROW()-ROW(ΔιακυμάνσειςΕξόδωνΥπαλλήλων[[#Headers],[Νοέ]]),1),INDEX(ΠρογραμματισμέναΈξοδαΥπαλλήλων[],,1),0),MATCH(ΔιακυμάνσειςΕξόδωνΥπαλλήλων[[#Headers],[Νοέ]],ΠρογραμματισμέναΈξοδαΥπαλλήλων[#Headers],0))-INDEX(ΠραγματικάΈξοδαΥπαλλήλων[],MATCH(INDEX(ΔιακυμάνσειςΕξόδωνΥπαλλήλων[],ROW()-ROW(ΔιακυμάνσειςΕξόδωνΥπαλλήλων[[#Headers],[Νοέ]]),1),INDEX(ΠρογραμματισμέναΈξοδαΥπαλλήλων[],,1),0),MATCH(ΔιακυμάνσειςΕξόδωνΥπαλλήλων[[#Headers],[Νοέ]],ΠραγματικάΈξοδαΥπαλλήλων[#Headers],0))","v":{"v":24948,"d":"24,948.00 €"}},{"$f":"INDEX(ΠρογραμματισμέναΈξοδαΥπαλλήλων[],MATCH(INDEX(ΔιακυμάνσειςΕξόδωνΥπαλλήλων[],ROW()-ROW(ΔιακυμάνσειςΕξόδωνΥπαλλήλων[[#Headers],[Δεκ]]),1),INDEX(ΠρογραμματισμέναΈξοδαΥπαλλήλων[],,1),0),MATCH(ΔιακυμάνσειςΕξόδωνΥπαλλήλων[[#Headers],[Δεκ]],ΠρογραμματισμέναΈξοδαΥπαλλήλων[#Headers],0))-INDEX(ΠραγματικάΈξοδαΥπαλλήλων[],MATCH(INDEX(ΔιακυμάνσειςΕξόδωνΥπαλλήλων[],ROW()-ROW(ΔιακυμάνσειςΕξόδωνΥπαλλήλων[[#Headers],[Δεκ]]),1),INDEX(ΠρογραμματισμέναΈξοδαΥπαλλήλων[],,1),0),MATCH(ΔιακυμάνσειςΕξόδωνΥπαλλήλων[[#Headers],[Δεκ]],ΠραγματικάΈξοδαΥπαλλήλων[#Headers],0))","v":{"v":24948,"d":"24,948.00 €"}},{"$f":"SUM(ΔιακυμάνσειςΕξόδωνΥπαλλήλων[[#This Row],[Ιαν]:[Δεκ]])","v":{"v":147960,"d":"147,960.00 €"}}]
[null,"Μερικό άθροισμα",{"$f":"SUBTOTAL(109,ΔιακυμάνσειςΕξόδωνΥπαλλήλων[Ιαν])","v":{"v":0,"d":"0.00 €"}},{"$f":"SUBTOTAL(109,ΔιακυμάνσειςΕξόδωνΥπαλλήλων[Φεβ])","v":{"v":0,"d":"0.00 €"}},{"$f":"SUBTOTAL(109,ΔιακυμάνσειςΕξόδωνΥπαλλήλων[Μάρ])","v":{"v":0,"d":"0.00 €"}},{"$f":"SUBTOTAL(109,ΔιακυμάνσειςΕξόδωνΥπαλλήλων[Απρ])","v":{"v":-635,"d":"-635.00 €"}},{"$f":"SUBTOTAL(109,ΔιακυμάνσειςΕξόδωνΥπαλλήλων[Μάι])","v":{"v":-635,"d":"-635.00 €"}},{"$f":"SUBTOTAL(109,ΔιακυμάνσειςΕξόδωνΥπαλλήλων[Ιούν])","v":{"v":-635,"d":"-635.00 €"}},{"$f":"SUBTOTAL(109,ΔιακυμάνσειςΕξόδωνΥπαλλήλων[Ιούλ])","v":{"v":111125,"d":"111,125.00 €"}},{"$f":"SUBTOTAL(109,ΔιακυμάνσειςΕξόδωνΥπαλλήλων[Αύγ])","v":{"v":117348,"d":"117,348.00 €"}},{"$f":"SUBTOTAL(109,ΔιακυμάνσειςΕξόδωνΥπαλλήλων[Σεπ])","v":{"v":117348,"d":"117,348.00 €"}},{"$f":"SUBTOTAL(109,ΔιακυμάνσειςΕξόδωνΥπαλλήλων[Οκτ])","v":{"v":117348,"d":"117,348.00 €"}},{"$f":"SUBTOTAL(109,ΔιακυμάνσειςΕξόδωνΥπαλλήλων[Νοέ])","v":{"v":117348,"d":"117,348.00 €"}},{"$f":"SUBTOTAL(109,ΔιακυμάνσειςΕξόδωνΥπαλλήλων[Δεκ])","v":{"v":117348,"d":"117,348.00 €"}},{"$f":"SUBTOTAL(109,ΔιακυμάνσειςΕξόδωνΥπαλλήλων[ΕΤΟΣ])","v":{"v":695960,"d":"695,960.00 €"}}]
[]
["Η διακύμανση στα έξοδα γραφείου υπολογίζεται αυτόματα στον πίνακα διακυμάνσεις εξόδων γραφείου που ξεκινά στο κελί στα δεξιά. Η επόμενη οδηγία βρίσκεται στο κελί A21.","Έξοδα γραφείου","Ιαν","Φεβ","Μάρ","Απρ","Μάι","Ιούν","Ιούλ","Αύγ","Σεπ","Οκτ","Νοε","Δεκ","ΕΤΟΣ"]
[null,"Μίσθωση γραφείου",{"$f":"INDEX(ΠρογραμματισμέναΈξοδαΓραφείου[],MATCH(INDEX(ΔιακυμάνσειςΕξόδωνΓραφείου[],ROW()-ROW(ΔιακυμάνσειςΕξόδωνΓραφείου[[#Headers],[Ιαν]]),1),INDEX(ΠρογραμματισμέναΈξοδαΓραφείου[],,1),0),MATCH(ΔιακυμάνσειςΕξόδωνΓραφείου[[#Headers],[Ιαν]],ΠρογραμματισμέναΈξοδαΓραφείου[#Headers],0))-INDEX(ΠραγματικάΈξοδαΓραφείου[],MATCH(INDEX(ΔιακυμάνσειςΕξόδωνΓραφείου[],ROW()-ROW(ΔιακυμάνσειςΕξόδωνΓραφείου[[#Headers],[Ιαν]]),1),INDEX(ΠρογραμματισμέναΈξοδαΓραφείου[],,1),0),MATCH(ΔιακυμάνσειςΕξόδωνΓραφείου[[#Headers],[Ιαν]],ΠραγματικάΈξοδαΓραφείου[#Headers],0))","v":{"v":0,"d":"0.00 €"}},{"$f":"INDEX(ΠρογραμματισμέναΈξοδαΓραφείου[],MATCH(INDEX(ΔιακυμάνσειςΕξόδωνΓραφείου[],ROW()-ROW(ΔιακυμάνσειςΕξόδωνΓραφείου[[#Headers],[Φεβ]]),1),INDEX(ΠρογραμματισμέναΈξοδαΓραφείου[],,1),0),MATCH(ΔιακυμάνσειςΕξόδωνΓραφείου[[#Headers],[Φεβ]],ΠρογραμματισμέναΈξοδαΓραφείου[#Headers],0))-INDEX(ΠραγματικάΈξοδαΓραφείου[],MATCH(INDEX(ΔιακυμάνσειςΕξόδωνΓραφείου[],ROW()-ROW(ΔιακυμάνσειςΕξόδωνΓραφείου[[#Headers],[Φεβ]]),1),INDEX(ΠρογραμματισμέναΈξοδαΓραφείου[],,1),0),MATCH(ΔιακυμάνσειςΕξόδωνΓραφείου[[#Headers],[Φεβ]],ΠραγματικάΈξοδαΓραφείου[#Headers],0))","v":{"v":0,"d":"0.00 €"}},{"$f":"INDEX(ΠρογραμματισμέναΈξοδαΓραφείου[],MATCH(INDEX(ΔιακυμάνσειςΕξόδωνΓραφείου[],ROW()-ROW(ΔιακυμάνσειςΕξόδωνΓραφείου[[#Headers],[Μάρ]]),1),INDEX(ΠρογραμματισμέναΈξοδαΓραφείου[],,1),0),MATCH(ΔιακυμάνσειςΕξόδωνΓραφείου[[#Headers],[Μάρ]],ΠρογραμματισμέναΈξοδαΓραφείου[#Headers],0))-INDEX(ΠραγματικάΈξοδαΓραφείου[],MATCH(INDEX(ΔιακυμάνσειςΕξόδωνΓραφείου[],ROW()-ROW(ΔιακυμάνσειςΕξόδωνΓραφείου[[#Headers],[Μάρ]]),1),INDEX(ΠρογραμματισμέναΈξοδαΓραφείου[],,1),0),MATCH(ΔιακυμάνσειςΕξόδωνΓραφείου[[#Headers],[Μάρ]],ΠραγματικάΈξοδαΓραφείου[#Headers],0))","v":{"v":0,"d":"0.00 €"}},{"$f":"INDEX(ΠρογραμματισμέναΈξοδαΓραφείου[],MATCH(INDEX(ΔιακυμάνσειςΕξόδωνΓραφείου[],ROW()-ROW(ΔιακυμάνσειςΕξόδωνΓραφείου[[#Headers],[Απρ]]),1),INDEX(ΠρογραμματισμέναΈξοδαΓραφείου[],,1),0),MATCH(ΔιακυμάνσειςΕξόδωνΓραφείου[[#Headers],[Απρ]],ΠρογραμματισμέναΈξοδαΓραφείου[#Headers],0))-INDEX(ΠραγματικάΈξοδαΓραφείου[],MATCH(INDEX(ΔιακυμάνσειςΕξόδωνΓραφείου[],ROW()-ROW(ΔιακυμάνσειςΕξόδωνΓραφείου[[#Headers],[Απρ]]),1),INDEX(ΠρογραμματισμέναΈξοδαΓραφείου[],,1),0),MATCH(ΔιακυμάνσειςΕξόδωνΓραφείου[[#Headers],[Απρ]],ΠραγματικάΈξοδαΓραφείου[#Headers],0))","v":{"v":0,"d":"0.00 €"}},{"$f":"INDEX(ΠρογραμματισμέναΈξοδαΓραφείου[],MATCH(INDEX(ΔιακυμάνσειςΕξόδωνΓραφείου[],ROW()-ROW(ΔιακυμάνσειςΕξόδωνΓραφείου[[#Headers],[Μάι]]),1),INDEX(ΠρογραμματισμέναΈξοδαΓραφείου[],,1),0),MATCH(ΔιακυμάνσειςΕξόδωνΓραφείου[[#Headers],[Μάι]],ΠρογραμματισμέναΈξοδαΓραφείου[#Headers],0))-INDEX(ΠραγματικάΈξοδαΓραφείου[],MATCH(INDEX(ΔιακυμάνσειςΕξόδωνΓραφείου[],ROW()-ROW(ΔιακυμάνσειςΕξόδωνΓραφείου[[#Headers],[Μάι]]),1),INDEX(ΠρογραμματισμέναΈξοδαΓραφείου[],,1),0),MATCH(ΔιακυμάνσειςΕξόδωνΓραφείου[[#Headers],[Μάι]],ΠραγματικάΈξοδαΓραφείου[#Headers],0))","v":{"v":0,"d":"0.00 €"}},{"$f":"INDEX(ΠρογραμματισμέναΈξοδαΓραφείου[],MATCH(INDEX(ΔιακυμάνσειςΕξόδωνΓραφείου[],ROW()-ROW(ΔιακυμάνσειςΕξόδωνΓραφείου[[#Headers],[Ιούν]]),1),INDEX(ΠρογραμματισμέναΈξοδαΓραφείου[],,1),0),MATCH(ΔιακυμάνσειςΕξόδωνΓραφείου[[#Headers],[Ιούν]],ΠρογραμματισμέναΈξοδαΓραφείου[#Headers],0))-INDEX(ΠραγματικάΈξοδαΓραφείου[],MATCH(INDEX(ΔιακυμάνσειςΕξόδωνΓραφείου[],ROW()-ROW(ΔιακυμάνσειςΕξόδωνΓραφείου[[#Headers],[Ιούν]]),1),INDEX(ΠρογραμματισμέναΈξοδαΓραφείου[],,1),0),MATCH(ΔιακυμάνσειςΕξόδωνΓραφείου[[#Headers],[Ιούν]],ΠραγματικάΈξοδαΓραφείου[#Headers],0))","v":{"v":0,"d":"0.00 €"}},{"$f":"INDEX(ΠρογραμματισμέναΈξοδαΓραφείου[],MATCH(INDEX(ΔιακυμάνσειςΕξόδωνΓραφείου[],ROW()-ROW(ΔιακυμάνσειςΕξόδωνΓραφείου[[#Headers],[Ιούλ]]),1),INDEX(ΠρογραμματισμέναΈξοδαΓραφείου[],,1),0),MATCH(ΔιακυμάνσειςΕξόδωνΓραφείου[[#Headers],[Ιούλ]],ΠρογραμματισμέναΈξοδαΓραφείου[#Headers],0))-INDEX(ΠραγματικάΈξοδαΓραφείου[],MATCH(INDEX(ΔιακυμάνσειςΕξόδωνΓραφείου[],ROW()-ROW(ΔιακυμάνσειςΕξόδωνΓραφείου[[#Headers],[Ιούλ]]),1),INDEX(ΠρογραμματισμέναΈξοδαΓραφείου[],,1),0),MATCH(ΔιακυμάνσειςΕξόδωνΓραφείου[[#Headers],[Ιούλ]],ΠραγματικάΈξοδαΓραφείου[#Headers],0))","v":{"v":9800,"d":"9,800.00 €"}},{"$f":"INDEX(ΠρογραμματισμέναΈξοδαΓραφείου[],MATCH(INDEX(ΔιακυμάνσειςΕξόδωνΓραφείου[],ROW()-ROW(ΔιακυμάνσειςΕξόδωνΓραφείου[[#Headers],[Αύγ]]),1),INDEX(ΠρογραμματισμέναΈξοδαΓραφείου[],,1),0),MATCH(ΔιακυμάνσειςΕξόδωνΓραφείου[[#Headers],[Αύγ]],ΠρογραμματισμέναΈξοδαΓραφείου[#Headers],0))-INDEX(ΠραγματικάΈξοδαΓραφείου[],MATCH(INDEX(ΔιακυμάνσειςΕξόδωνΓραφείου[],ROW()-ROW(ΔιακυμάνσειςΕξόδωνΓραφείου[[#Headers],[Αύγ]]),1),INDEX(ΠρογραμματισμέναΈξοδαΓραφείου[],,1),0),MATCH(ΔιακυμάνσειςΕξόδωνΓραφείου[[#Headers],[Αύγ]],ΠραγματικάΈξοδαΓραφείου[#Headers],0))","v":{"v":9800,"d":"9,800.00 €"}},{"$f":"INDEX(ΠρογραμματισμέναΈξοδαΓραφείου[],MATCH(INDEX(ΔιακυμάνσειςΕξόδωνΓραφείου[],ROW()-ROW(ΔιακυμάνσειςΕξόδωνΓραφείου[[#Headers],[Σεπ]]),1),INDEX(ΠρογραμματισμέναΈξοδαΓραφείου[],,1),0),MATCH(ΔιακυμάνσειςΕξόδωνΓραφείου[[#Headers],[Σεπ]],ΠρογραμματισμέναΈξοδαΓραφείου[#Headers],0))-INDEX(ΠραγματικάΈξοδαΓραφείου[],MATCH(INDEX(ΔιακυμάνσειςΕξόδωνΓραφείου[],ROW()-ROW(ΔιακυμάνσειςΕξόδωνΓραφείου[[#Headers],[Σεπ]]),1),INDEX(ΠρογραμματισμέναΈξοδαΓραφείου[],,1),0),MATCH(ΔιακυμάνσειςΕξόδωνΓραφείου[[#Headers],[Σεπ]],ΠραγματικάΈξοδαΓραφείου[#Headers],0))","v":{"v":9800,"d":"9,800.00 €"}},{"$f":"INDEX(ΠρογραμματισμέναΈξοδαΓραφείου[],MATCH(INDEX(ΔιακυμάνσειςΕξόδωνΓραφείου[],ROW()-ROW(ΔιακυμάνσειςΕξόδωνΓραφείου[[#Headers],[Οκτ]]),1),INDEX(ΠρογραμματισμέναΈξοδαΓραφείου[],,1),0),MATCH(ΔιακυμάνσειςΕξόδωνΓραφείου[[#Headers],[Οκτ]],ΠρογραμματισμέναΈξοδαΓραφείου[#Headers],0))-INDEX(ΠραγματικάΈξοδαΓραφείου[],MATCH(INDEX(ΔιακυμάνσειςΕξόδωνΓραφείου[],ROW()-ROW(ΔιακυμάνσειςΕξόδωνΓραφείου[[#Headers],[Οκτ]]),1),INDEX(ΠρογραμματισμέναΈξοδαΓραφείου[],,1),0),MATCH(ΔιακυμάνσειςΕξόδωνΓραφείου[[#Headers],[Οκτ]],ΠραγματικάΈξοδαΓραφείου[#Headers],0))","v":{"v":9800,"d":"9,800.00 €"}},{"$f":"INDEX(ΠρογραμματισμέναΈξοδαΓραφείου[],MATCH(INDEX(ΔιακυμάνσειςΕξόδωνΓραφείου[],ROW()-ROW(ΔιακυμάνσειςΕξόδωνΓραφείου[[#Headers],[Νοε]]),1),INDEX(ΠρογραμματισμέναΈξοδαΓραφείου[],,1),0),MATCH(ΔιακυμάνσειςΕξόδωνΓραφείου[[#Headers],[Νοε]],ΠρογραμματισμέναΈξοδαΓραφείου[#Headers],0))-INDEX(ΠραγματικάΈξοδαΓραφείου[],MATCH(INDEX(ΔιακυμάνσειςΕξόδωνΓραφείου[],ROW()-ROW(ΔιακυμάνσειςΕξόδωνΓραφείου[[#Headers],[Νοε]]),1),INDEX(ΠρογραμματισμέναΈξοδαΓραφείου[],,1),0),MATCH(ΔιακυμάνσειςΕξόδωνΓραφείου[[#Headers],[Νοε]],ΠραγματικάΈξοδαΓραφείου[#Headers],0))","v":{"v":9800,"d":"9,800.00 €"}},{"$f":"INDEX(ΠρογραμματισμέναΈξοδαΓραφείου[],MATCH(INDEX(ΔιακυμάνσειςΕξόδωνΓραφείου[],ROW()-ROW(ΔιακυμάνσειςΕξόδωνΓραφείου[[#Headers],[Δεκ]]),1),INDEX(ΠρογραμματισμέναΈξοδαΓραφείου[],,1),0),MATCH(ΔιακυμάνσειςΕξόδωνΓραφείου[[#Headers],[Δεκ]],ΠρογραμματισμέναΈξοδαΓραφείου[#Headers],0))-INDEX(ΠραγματικάΈξοδαΓραφείου[],MATCH(INDEX(ΔιακυμάνσειςΕξόδωνΓραφείου[],ROW()-ROW(ΔιακυμάνσειςΕξόδωνΓραφείου[[#Headers],[Δεκ]]),1),INDEX(ΠρογραμματισμέναΈξοδαΓραφείου[],,1),0),MATCH(ΔιακυμάνσειςΕξόδωνΓραφείου[[#Headers],[Δεκ]],ΠραγματικάΈξοδαΓραφείου[#Headers],0))","v":{"v":9800,"d":"9,800.00 €"}},{"$f":"SUM(ΔιακυμάνσειςΕξόδωνΓραφείου[[#This Row],[Ιαν]:[Δεκ]])","v":{"v":58800,"d":"58,800.00 €"}}]
[null,"Αέριο",{"$f":"INDEX(ΠρογραμματισμέναΈξοδαΓραφείου[],MATCH(INDEX(ΔιακυμάνσειςΕξόδωνΓραφείου[],ROW()-ROW(ΔιακυμάνσειςΕξόδωνΓραφείου[[#Headers],[Ιαν]]),1),INDEX(ΠρογραμματισμέναΈξοδαΓραφείου[],,1),0),MATCH(ΔιακυμάνσειςΕξόδωνΓραφείου[[#Headers],[Ιαν]],ΠρογραμματισμέναΈξοδαΓραφείου[#Headers],0))-INDEX(ΠραγματικάΈξοδαΓραφείου[],MATCH(INDEX(ΔιακυμάνσειςΕξόδωνΓραφείου[],ROW()-ROW(ΔιακυμάνσειςΕξόδωνΓραφείου[[#Headers],[Ιαν]]),1),INDEX(ΠρογραμματισμέναΈξοδαΓραφείου[],,1),0),MATCH(ΔιακυμάνσειςΕξόδωνΓραφείου[[#Headers],[Ιαν]],ΠραγματικάΈξοδαΓραφείου[#Headers],0))","v":{"v":-4,"d":"-4.00 €"}},{"$f":"INDEX(ΠρογραμματισμέναΈξοδαΓραφείου[],MATCH(INDEX(ΔιακυμάνσειςΕξόδωνΓραφείου[],ROW()-ROW(ΔιακυμάνσειςΕξόδωνΓραφείου[[#Headers],[Φεβ]]),1),INDEX(ΠρογραμματισμέναΈξοδαΓραφείου[],,1),0),MATCH(ΔιακυμάνσειςΕξόδωνΓραφείου[[#Headers],[Φεβ]],ΠρογραμματισμέναΈξοδαΓραφείου[#Headers],0))-INDEX(ΠραγματικάΈξοδαΓραφείου[],MATCH(INDEX(ΔιακυμάνσειςΕξόδωνΓραφείου[],ROW()-ROW(ΔιακυμάνσειςΕξόδωνΓραφείου[[#Headers],[Φεβ]]),1),INDEX(ΠρογραμματισμέναΈξοδαΓραφείου[],,1),0),MATCH(ΔιακυμάνσειςΕξόδωνΓραφείου[[#Headers],[Φεβ]],ΠραγματικάΈξοδαΓραφείου[#Headers],0))","v":{"v":-30,"d":"-30.00 €"}},{"$f":"INDEX(ΠρογραμματισμέναΈξοδαΓραφείου[],MATCH(INDEX(ΔιακυμάνσειςΕξόδωνΓραφείου[],ROW()-ROW(ΔιακυμάνσειςΕξόδωνΓραφείου[[#Headers],[Μάρ]]),1),INDEX(ΠρογραμματισμέναΈξοδαΓραφείου[],,1),0),MATCH(ΔιακυμάνσειςΕξόδωνΓραφείου[[#Headers],[Μάρ]],ΠρογραμματισμέναΈξοδαΓραφείου[#Headers],0))-INDEX(ΠραγματικάΈξοδαΓραφείου[],MATCH(INDEX(ΔιακυμάνσειςΕξόδωνΓραφείου[],ROW()-ROW(ΔιακυμάνσειςΕξόδωνΓραφείου[[#Headers],[Μάρ]]),1),INDEX(ΠρογραμματισμέναΈξοδαΓραφείου[],,1),0),MATCH(ΔιακυμάνσειςΕξόδωνΓραφείου[[#Headers],[Μάρ]],ΠραγματικάΈξοδαΓραφείου[#Headers],0))","v":{"v":15,"d":"15.00 €"}},{"$f":"INDEX(ΠρογραμματισμέναΈξοδαΓραφείου[],MATCH(INDEX(ΔιακυμάνσειςΕξόδωνΓραφείου[],ROW()-ROW(ΔιακυμάνσειςΕξόδωνΓραφείου[[#Headers],[Απρ]]),1),INDEX(ΠρογραμματισμέναΈξοδαΓραφείου[],,1),0),MATCH(ΔιακυμάνσειςΕξόδωνΓραφείου[[#Headers],[Απρ]],ΠρογραμματισμέναΈξοδαΓραφείου[#Headers],0))-INDEX(ΠραγματικάΈξοδαΓραφείου[],MATCH(INDEX(ΔιακυμάνσειςΕξόδωνΓραφείου[],ROW()-ROW(ΔιακυμάνσειςΕξόδωνΓραφείου[[#Headers],[Απρ]]),1),INDEX(ΠρογραμματισμέναΈξοδαΓραφείου[],,1),0),MATCH(ΔιακυμάνσειςΕξόδωνΓραφείου[[#Headers],[Απρ]],ΠραγματικάΈξοδαΓραφείου[#Headers],0))","v":{"v":-130,"d":"-130.00 €"}},{"$f":"INDEX(ΠρογραμματισμέναΈξοδαΓραφείου[],MATCH(INDEX(ΔιακυμάνσειςΕξόδωνΓραφείου[],ROW()-ROW(ΔιακυμάνσειςΕξόδωνΓραφείου[[#Headers],[Μάι]]),1),INDEX(ΠρογραμματισμέναΈξοδαΓραφείου[],,1),0),MATCH(ΔιακυμάνσειςΕξόδωνΓραφείου[[#Headers],[Μάι]],ΠρογραμματισμέναΈξοδαΓραφείου[#Headers],0))-INDEX(ΠραγματικάΈξοδαΓραφείου[],MATCH(INDEX(ΔιακυμάνσειςΕξόδωνΓραφείου[],ROW()-ROW(ΔιακυμάνσειςΕξόδωνΓραφείου[[#Headers],[Μάι]]),1),INDEX(ΠρογραμματισμέναΈξοδαΓραφείου[],,1),0),MATCH(ΔιακυμάνσειςΕξόδωνΓραφείου[[#Headers],[Μάι]],ΠραγματικάΈξοδαΓραφείου[#Headers],0))","v":{"v":13,"d":"13.00 €"}},{"$f":"INDEX(ΠρογραμματισμέναΈξοδαΓραφείου[],MATCH(INDEX(ΔιακυμάνσειςΕξόδωνΓραφείου[],ROW()-ROW(ΔιακυμάνσειςΕξόδωνΓραφείου[[#Headers],[Ιούν]]),1),INDEX(ΠρογραμματισμέναΈξοδαΓραφείου[],,1),0),MATCH(ΔιακυμάνσειςΕξόδωνΓραφείου[[#Headers],[Ιούν]],ΠρογραμματισμέναΈξοδαΓραφείου[#Headers],0))-INDEX(ΠραγματικάΈξοδαΓραφείου[],MATCH(INDEX(ΔιακυμάνσειςΕξόδωνΓραφείου[],ROW()-ROW(ΔιακυμάνσειςΕξόδωνΓραφείου[[#Headers],[Ιούν]]),1),INDEX(ΠρογραμματισμέναΈξοδαΓραφείου[],,1),0),MATCH(ΔιακυμάνσειςΕξόδωνΓραφείου[[#Headers],[Ιούν]],ΠραγματικάΈξοδαΓραφείου[#Headers],0))","v":{"v":12,"d":"12.00 €"}},{"$f":"INDEX(ΠρογραμματισμέναΈξοδαΓραφείου[],MATCH(INDEX(ΔιακυμάνσειςΕξόδωνΓραφείου[],ROW()-ROW(ΔιακυμάνσειςΕξόδωνΓραφείου[[#Headers],[Ιούλ]]),1),INDEX(ΠρογραμματισμέναΈξοδαΓραφείου[],,1),0),MATCH(ΔιακυμάνσειςΕξόδωνΓραφείου[[#Headers],[Ιούλ]],ΠρογραμματισμέναΈξοδαΓραφείου[#Headers],0))-INDEX(ΠραγματικάΈξοδαΓραφείου[],MATCH(INDEX(ΔιακυμάνσειςΕξόδωνΓραφείου[],ROW()-ROW(ΔιακυμάνσειςΕξόδωνΓραφείου[[#Headers],[Ιούλ]]),1),INDEX(ΠρογραμματισμέναΈξοδαΓραφείου[],,1),0),MATCH(ΔιακυμάνσειςΕξόδωνΓραφείου[[#Headers],[Ιούλ]],ΠραγματικάΈξοδαΓραφείου[#Headers],0))","v":{"v":100,"d":"100.00 €"}},{"$f":"INDEX(ΠρογραμματισμέναΈξοδαΓραφείου[],MATCH(INDEX(ΔιακυμάνσειςΕξόδωνΓραφείου[],ROW()-ROW(ΔιακυμάνσειςΕξόδωνΓραφείου[[#Headers],[Αύγ]]),1),INDEX(ΠρογραμματισμέναΈξοδαΓραφείου[],,1),0),MATCH(ΔιακυμάνσειςΕξόδωνΓραφείου[[#Headers],[Αύγ]],ΠρογραμματισμέναΈξοδαΓραφείου[#Headers],0))-INDEX(ΠραγματικάΈξοδαΓραφείου[],MATCH(INDEX(ΔιακυμάνσειςΕξόδωνΓραφείου[],ROW()-ROW(ΔιακυμάνσειςΕξόδωνΓραφείου[[#Headers],[Αύγ]]),1),INDEX(ΠρογραμματισμέναΈξοδαΓραφείου[],,1),0),MATCH(ΔιακυμάνσειςΕξόδωνΓραφείου[[#Headers],[Αύγ]],ΠραγματικάΈξοδαΓραφείου[#Headers],0))","v":{"v":100,"d":"100.00 €"}},{"$f":"INDEX(ΠρογραμματισμέναΈξοδαΓραφείου[],MATCH(INDEX(ΔιακυμάνσειςΕξόδωνΓραφείου[],ROW()-ROW(ΔιακυμάνσειςΕξόδωνΓραφείου[[#Headers],[Σεπ]]),1),INDEX(ΠρογραμματισμέναΈξοδαΓραφείου[],,1),0),MATCH(ΔιακυμάνσειςΕξόδωνΓραφείου[[#Headers],[Σεπ]],ΠρογραμματισμέναΈξοδαΓραφείου[#Headers],0))-INDEX(ΠραγματικάΈξοδαΓραφείου[],MATCH(INDEX(ΔιακυμάνσειςΕξόδωνΓραφείου[],ROW()-ROW(ΔιακυμάνσειςΕξόδωνΓραφείου[[#Headers],[Σεπ]]),1),INDEX(ΠρογραμματισμέναΈξοδαΓραφείου[],,1),0),MATCH(ΔιακυμάνσειςΕξόδωνΓραφείου[[#Headers],[Σεπ]],ΠραγματικάΈξοδαΓραφείου[#Headers],0))","v":{"v":100,"d":"100.00 €"}},{"$f":"INDEX(ΠρογραμματισμέναΈξοδαΓραφείου[],MATCH(INDEX(ΔιακυμάνσειςΕξόδωνΓραφείου[],ROW()-ROW(ΔιακυμάνσειςΕξόδωνΓραφείου[[#Headers],[Οκτ]]),1),INDEX(ΠρογραμματισμέναΈξοδαΓραφείου[],,1),0),MATCH(ΔιακυμάνσειςΕξόδωνΓραφείου[[#Headers],[Οκτ]],ΠρογραμματισμέναΈξοδαΓραφείου[#Headers],0))-INDEX(ΠραγματικάΈξοδαΓραφείου[],MATCH(INDEX(ΔιακυμάνσειςΕξόδωνΓραφείου[],ROW()-ROW(ΔιακυμάνσειςΕξόδωνΓραφείου[[#Headers],[Οκτ]]),1),INDEX(ΠρογραμματισμέναΈξοδαΓραφείου[],,1),0),MATCH(ΔιακυμάνσειςΕξόδωνΓραφείου[[#Headers],[Οκτ]],ΠραγματικάΈξοδαΓραφείου[#Headers],0))","v":{"v":100,"d":"100.00 €"}},{"$f":"INDEX(ΠρογραμματισμέναΈξοδαΓραφείου[],MATCH(INDEX(ΔιακυμάνσειςΕξόδωνΓραφείου[],ROW()-ROW(ΔιακυμάνσειςΕξόδωνΓραφείου[[#Headers],[Νοε]]),1),INDEX(ΠρογραμματισμέναΈξοδαΓραφείου[],,1),0),MATCH(ΔιακυμάνσειςΕξόδωνΓραφείου[[#Headers],[Νοε]],ΠρογραμματισμέναΈξοδαΓραφείου[#Headers],0))-INDEX(ΠραγματικάΈξοδαΓραφείου[],MATCH(INDEX(ΔιακυμάνσειςΕξόδωνΓραφείου[],ROW()-ROW(ΔιακυμάνσειςΕξόδωνΓραφείου[[#Headers],[Νοε]]),1),INDEX(ΠρογραμματισμέναΈξοδαΓραφείου[],,1),0),MATCH(ΔιακυμάνσειςΕξόδωνΓραφείου[[#Headers],[Νοε]],ΠραγματικάΈξοδαΓραφείου[#Headers],0))","v":{"v":400,"d":"400.00 €"}},{"$f":"INDEX(ΠρογραμματισμέναΈξοδαΓραφείου[],MATCH(INDEX(ΔιακυμάνσειςΕξόδωνΓραφείου[],ROW()-ROW(ΔιακυμάνσειςΕξόδωνΓραφείου[[#Headers],[Δεκ]]),1),INDEX(ΠρογραμματισμέναΈξοδαΓραφείου[],,1),0),MATCH(ΔιακυμάνσειςΕξόδωνΓραφείου[[#Headers],[Δεκ]],ΠρογραμματισμέναΈξοδαΓραφείου[#Headers],0))-INDEX(ΠραγματικάΈξοδαΓραφείου[],MATCH(INDEX(ΔιακυμάνσειςΕξόδωνΓραφείου[],ROW()-ROW(ΔιακυμάνσειςΕξόδωνΓραφείου[[#Headers],[Δεκ]]),1),INDEX(ΠρογραμματισμέναΈξοδαΓραφείου[],,1),0),MATCH(ΔιακυμάνσειςΕξόδωνΓραφείου[[#Headers],[Δεκ]],ΠραγματικάΈξοδαΓραφείου[#Headers],0))","v":{"v":400,"d":"400.00 €"}},{"$f":"SUM(ΔιακυμάνσειςΕξόδωνΓραφείου[[#This Row],[Ιαν]:[Δεκ]])","v":{"v":1076,"d":"1,076.00 €"}}]
[null,"Ηλεκτρικό",{"$f":"INDEX(ΠρογραμματισμέναΈξοδαΓραφείου[],MATCH(INDEX(ΔιακυμάνσειςΕξόδωνΓραφείου[],ROW()-ROW(ΔιακυμάνσειςΕξόδωνΓραφείου[[#Headers],[Ιαν]]),1),INDEX(ΠρογραμματισμέναΈξοδαΓραφείου[],,1),0),MATCH(ΔιακυμάνσειςΕξόδωνΓραφείου[[#Headers],[Ιαν]],ΠρογραμματισμέναΈξοδαΓραφείου[#Headers],0))-INDEX(ΠραγματικάΈξοδαΓραφείου[],MATCH(INDEX(ΔιακυμάνσειςΕξόδωνΓραφείου[],ROW()-ROW(ΔιακυμάνσειςΕξόδωνΓραφείου[[#Headers],[Ιαν]]),1),INDEX(ΠρογραμματισμέναΈξοδαΓραφείου[],,1),0),MATCH(ΔιακυμάνσειςΕξόδωνΓραφείου[[#Headers],[Ιαν]],ΠραγματικάΈξοδαΓραφείου[#Headers],0))","v":{"v":12,"d":"12.00 €"}},{"$f":"INDEX(ΠρογραμματισμέναΈξοδαΓραφείου[],MATCH(INDEX(ΔιακυμάνσειςΕξόδωνΓραφείου[],ROW()-ROW(ΔιακυμάνσειςΕξόδωνΓραφείου[[#Headers],[Φεβ]]),1),INDEX(ΠρογραμματισμέναΈξοδαΓραφείου[],,1),0),MATCH(ΔιακυμάνσειςΕξόδωνΓραφείου[[#Headers],[Φεβ]],ΠρογραμματισμέναΈξοδαΓραφείου[#Headers],0))-INDEX(ΠραγματικάΈξοδαΓραφείου[],MATCH(INDEX(ΔιακυμάνσειςΕξόδωνΓραφείου[],ROW()-ROW(ΔιακυμάνσειςΕξόδωνΓραφείου[[#Headers],[Φεβ]]),1),INDEX(ΠρογραμματισμέναΈξοδαΓραφείου[],,1),0),MATCH(ΔιακυμάνσειςΕξόδωνΓραφείου[[#Headers],[Φεβ]],ΠραγματικάΈξοδαΓραφείου[#Headers],0))","v":{"v":22,"d":"22.00 €"}},{"$f":"INDEX(ΠρογραμματισμέναΈξοδαΓραφείου[],MATCH(INDEX(ΔιακυμάνσειςΕξόδωνΓραφείου[],ROW()-ROW(ΔιακυμάνσειςΕξόδωνΓραφείου[[#Headers],[Μάρ]]),1),INDEX(ΠρογραμματισμέναΈξοδαΓραφείου[],,1),0),MATCH(ΔιακυμάνσειςΕξόδωνΓραφείου[[#Headers],[Μάρ]],ΠρογραμματισμέναΈξοδαΓραφείου[#Headers],0))-INDEX(ΠραγματικάΈξοδαΓραφείου[],MATCH(INDEX(ΔιακυμάνσειςΕξόδωνΓραφείου[],ROW()-ROW(ΔιακυμάνσειςΕξόδωνΓραφείου[[#Headers],[Μάρ]]),1),INDEX(ΠρογραμματισμέναΈξοδαΓραφείου[],,1),0),MATCH(ΔιακυμάνσειςΕξόδωνΓραφείου[[#Headers],[Μάρ]],ΠραγματικάΈξοδαΓραφείου[#Headers],0))","v":{"v":32,"d":"32.00 €"}},{"$f":"INDEX(ΠρογραμματισμέναΈξοδαΓραφείου[],MATCH(INDEX(ΔιακυμάνσειςΕξόδωνΓραφείου[],ROW()-ROW(ΔιακυμάνσειςΕξόδωνΓραφείου[[#Headers],[Απρ]]),1),INDEX(ΠρογραμματισμέναΈξοδαΓραφείου[],,1),0),MATCH(ΔιακυμάνσειςΕξόδωνΓραφείου[[#Headers],[Απρ]],ΠρογραμματισμέναΈξοδαΓραφείου[#Headers],0))-INDEX(ΠραγματικάΈξοδαΓραφείου[],MATCH(INDEX(ΔιακυμάνσειςΕξόδωνΓραφείου[],ROW()-ROW(ΔιακυμάνσειςΕξόδωνΓραφείου[[#Headers],[Απρ]]),1),INDEX(ΠρογραμματισμέναΈξοδαΓραφείου[],,1),0),MATCH(ΔιακυμάνσειςΕξόδωνΓραφείου[[#Headers],[Απρ]],ΠραγματικάΈξοδαΓραφείου[#Headers],0))","v":{"v":1,"d":"1.00 €"}},{"$f":"INDEX(ΠρογραμματισμέναΈξοδαΓραφείου[],MATCH(INDEX(ΔιακυμάνσειςΕξόδωνΓραφείου[],ROW()-ROW(ΔιακυμάνσειςΕξόδωνΓραφείου[[#Headers],[Μάι]]),1),INDEX(ΠρογραμματισμέναΈξοδαΓραφείου[],,1),0),MATCH(ΔιακυμάνσειςΕξόδωνΓραφείου[[#Headers],[Μάι]],ΠρογραμματισμέναΈξοδαΓραφείου[#Headers],0))-INDEX(ΠραγματικάΈξοδαΓραφείου[],MATCH(INDEX(ΔιακυμάνσειςΕξόδωνΓραφείου[],ROW()-ROW(ΔιακυμάνσειςΕξόδωνΓραφείου[[#Headers],[Μάι]]),1),INDEX(ΠρογραμματισμέναΈξοδαΓραφείου[],,1),0),MATCH(ΔιακυμάνσειςΕξόδωνΓραφείου[[#Headers],[Μάι]],ΠραγματικάΈξοδαΓραφείου[#Headers],0))","v":{"v":-6,"d":"-6.00 €"}},{"$f":"INDEX(ΠρογραμματισμέναΈξοδαΓραφείου[],MATCH(INDEX(ΔιακυμάνσειςΕξόδωνΓραφείου[],ROW()-ROW(ΔιακυμάνσειςΕξόδωνΓραφείου[[#Headers],[Ιούν]]),1),INDEX(ΠρογραμματισμέναΈξοδαΓραφείου[],,1),0),MATCH(ΔιακυμάνσειςΕξόδωνΓραφείου[[#Headers],[Ιούν]],ΠρογραμματισμέναΈξοδαΓραφείου[#Headers],0))-INDEX(ΠραγματικάΈξοδαΓραφείου[],MATCH(INDEX(ΔιακυμάνσειςΕξόδωνΓραφείου[],ROW()-ROW(ΔιακυμάνσειςΕξόδωνΓραφείου[[#Headers],[Ιούν]]),1),INDEX(ΠρογραμματισμέναΈξοδαΓραφείου[],,1),0),MATCH(ΔιακυμάνσειςΕξόδωνΓραφείου[[#Headers],[Ιούν]],ΠραγματικάΈξοδαΓραφείου[#Headers],0))","v":{"v":10,"d":"10.00 €"}},{"$f":"INDEX(ΠρογραμματισμέναΈξοδαΓραφείου[],MATCH(INDEX(ΔιακυμάνσειςΕξόδωνΓραφείου[],ROW()-ROW(ΔιακυμάνσειςΕξόδωνΓραφείου[[#Headers],[Ιούλ]]),1),INDEX(ΠρογραμματισμέναΈξοδαΓραφείου[],,1),0),MATCH(ΔιακυμάνσειςΕξόδωνΓραφείου[[#Headers],[Ιούλ]],ΠρογραμματισμέναΈξοδαΓραφείου[#Headers],0))-INDEX(ΠραγματικάΈξοδαΓραφείου[],MATCH(INDEX(ΔιακυμάνσειςΕξόδωνΓραφείου[],ROW()-ROW(ΔιακυμάνσειςΕξόδωνΓραφείου[[#Headers],[Ιούλ]]),1),INDEX(ΠρογραμματισμέναΈξοδαΓραφείου[],,1),0),MATCH(ΔιακυμάνσειςΕξόδωνΓραφείου[[#Headers],[Ιούλ]],ΠραγματικάΈξοδαΓραφείου[#Headers],0))","v":{"v":300,"d":"300.00 €"}},{"$f":"INDEX(ΠρογραμματισμέναΈξοδαΓραφείου[],MATCH(INDEX(ΔιακυμάνσειςΕξόδωνΓραφείου[],ROW()-ROW(ΔιακυμάνσειςΕξόδωνΓραφείου[[#Headers],[Αύγ]]),1),INDEX(ΠρογραμματισμέναΈξοδαΓραφείου[],,1),0),MATCH(ΔιακυμάνσειςΕξόδωνΓραφείου[[#Headers],[Αύγ]],ΠρογραμματισμέναΈξοδαΓραφείου[#Headers],0))-INDEX(ΠραγματικάΈξοδαΓραφείου[],MATCH(INDEX(ΔιακυμάνσειςΕξόδωνΓραφείου[],ROW()-ROW(ΔιακυμάνσειςΕξόδωνΓραφείου[[#Headers],[Αύγ]]),1),INDEX(ΠρογραμματισμέναΈξοδαΓραφείου[],,1),0),MATCH(ΔιακυμάνσειςΕξόδωνΓραφείου[[#Headers],[Αύγ]],ΠραγματικάΈξοδαΓραφείου[#Headers],0))","v":{"v":300,"d":"300.00 €"}},{"$f":"INDEX(ΠρογραμματισμέναΈξοδαΓραφείου[],MATCH(INDEX(ΔιακυμάνσειςΕξόδωνΓραφείου[],ROW()-ROW(ΔιακυμάνσειςΕξόδωνΓραφείου[[#Headers],[Σεπ]]),1),INDEX(ΠρογραμματισμέναΈξοδαΓραφείου[],,1),0),MATCH(ΔιακυμάνσειςΕξόδωνΓραφείου[[#Headers],[Σεπ]],ΠρογραμματισμέναΈξοδαΓραφείου[#Headers],0))-INDEX(ΠραγματικάΈξοδαΓραφείου[],MATCH(INDEX(ΔιακυμάνσειςΕξόδωνΓραφείου[],ROW()-ROW(ΔιακυμάνσειςΕξόδωνΓραφείου[[#Headers],[Σεπ]]),1),INDEX(ΠρογραμματισμέναΈξοδαΓραφείου[],,1),0),MATCH(ΔιακυμάνσειςΕξόδωνΓραφείου[[#Headers],[Σεπ]],ΠραγματικάΈξοδαΓραφείου[#Headers],0))","v":{"v":300,"d":"300.00 €"}},{"$f":"INDEX(ΠρογραμματισμέναΈξοδαΓραφείου[],MATCH(INDEX(ΔιακυμάνσειςΕξόδωνΓραφείου[],ROW()-ROW(ΔιακυμάνσειςΕξόδωνΓραφείου[[#Headers],[Οκτ]]),1),INDEX(ΠρογραμματισμέναΈξοδαΓραφείου[],,1),0),MATCH(ΔιακυμάνσειςΕξόδωνΓραφείου[[#Headers],[Οκτ]],ΠρογραμματισμέναΈξοδαΓραφείου[#Headers],0))-INDEX(ΠραγματικάΈξοδαΓραφείου[],MATCH(INDEX(ΔιακυμάνσειςΕξόδωνΓραφείου[],ROW()-ROW(ΔιακυμάνσειςΕξόδωνΓραφείου[[#Headers],[Οκτ]]),1),INDEX(ΠρογραμματισμέναΈξοδαΓραφείου[],,1),0),MATCH(ΔιακυμάνσειςΕξόδωνΓραφείου[[#Headers],[Οκτ]],ΠραγματικάΈξοδαΓραφείου[#Headers],0))","v":{"v":300,"d":"300.00 €"}},{"$f":"INDEX(ΠρογραμματισμέναΈξοδαΓραφείου[],MATCH(INDEX(ΔιακυμάνσειςΕξόδωνΓραφείου[],ROW()-ROW(ΔιακυμάνσειςΕξόδωνΓραφείου[[#Headers],[Νοε]]),1),INDEX(ΠρογραμματισμέναΈξοδαΓραφείου[],,1),0),MATCH(ΔιακυμάνσειςΕξόδωνΓραφείου[[#Headers],[Νοε]],ΠρογραμματισμέναΈξοδαΓραφείου[#Headers],0))-INDEX(ΠραγματικάΈξοδαΓραφείου[],MATCH(INDEX(ΔιακυμάνσειςΕξόδωνΓραφείου[],ROW()-ROW(ΔιακυμάνσειςΕξόδωνΓραφείου[[#Headers],[Νοε]]),1),INDEX(ΠρογραμματισμέναΈξοδαΓραφείου[],,1),0),MATCH(ΔιακυμάνσειςΕξόδωνΓραφείου[[#Headers],[Νοε]],ΠραγματικάΈξοδαΓραφείου[#Headers],0))","v":{"v":300,"d":"300.00 €"}},{"$f":"INDEX(ΠρογραμματισμέναΈξοδαΓραφείου[],MATCH(INDEX(ΔιακυμάνσειςΕξόδωνΓραφείου[],ROW()-ROW(ΔιακυμάνσειςΕξόδωνΓραφείου[[#Headers],[Δεκ]]),1),INDEX(ΠρογραμματισμέναΈξοδαΓραφείου[],,1),0),MATCH(ΔιακυμάνσειςΕξόδωνΓραφείου[[#Headers],[Δεκ]],ΠρογραμματισμέναΈξοδαΓραφείου[#Headers],0))-INDEX(ΠραγματικάΈξοδαΓραφείου[],MATCH(INDEX(ΔιακυμάνσειςΕξόδωνΓραφείου[],ROW()-ROW(ΔιακυμάνσειςΕξόδωνΓραφείου[[#Headers],[Δεκ]]),1),INDEX(ΠρογραμματισμέναΈξοδαΓραφείου[],,1),0),MATCH(ΔιακυμάνσειςΕξόδωνΓραφείου[[#Headers],[Δεκ]],ΠραγματικάΈξοδαΓραφείου[#Headers],0))","v":{"v":300,"d":"300.00 €"}},{"$f":"SUM(ΔιακυμάνσειςΕξόδωνΓραφείου[[#This Row],[Ιαν]:[Δεκ]])","v":{"v":1871,"d":"1,871.00 €"}}]
[null,"Νερό",{"$f":"INDEX(ΠρογραμματισμέναΈξοδαΓραφείου[],MATCH(INDEX(ΔιακυμάνσειςΕξόδωνΓραφείου[],ROW()-ROW(ΔιακυμάνσειςΕξόδωνΓραφείου[[#Headers],[Ιαν]]),1),INDEX(ΠρογραμματισμέναΈξοδαΓραφείου[],,1),0),MATCH(ΔιακυμάνσειςΕξόδωνΓραφείου[[#Headers],[Ιαν]],ΠρογραμματισμέναΈξοδαΓραφείου[#Headers],0))-INDEX(ΠραγματικάΈξοδαΓραφείου[],MATCH(INDEX(ΔιακυμάνσειςΕξόδωνΓραφείου[],ROW()-ROW(ΔιακυμάνσειςΕξόδωνΓραφείου[[#Headers],[Ιαν]]),1),INDEX(ΠρογραμματισμέναΈξοδαΓραφείου[],,1),0),MATCH(ΔιακυμάνσειςΕξόδωνΓραφείου[[#Headers],[Ιαν]],ΠραγματικάΈξοδαΓραφείου[#Headers],0))","v":{"v":5,"d":"5.00 €"}},{"$f":"INDEX(ΠρογραμματισμέναΈξοδαΓραφείου[],MATCH(INDEX(ΔιακυμάνσειςΕξόδωνΓραφείου[],ROW()-ROW(ΔιακυμάνσειςΕξόδωνΓραφείου[[#Headers],[Φεβ]]),1),INDEX(ΠρογραμματισμέναΈξοδαΓραφείου[],,1),0),MATCH(ΔιακυμάνσειςΕξόδωνΓραφείου[[#Headers],[Φεβ]],ΠρογραμματισμέναΈξοδαΓραφείου[#Headers],0))-INDEX(ΠραγματικάΈξοδαΓραφείου[],MATCH(INDEX(ΔιακυμάνσειςΕξόδωνΓραφείου[],ROW()-ROW(ΔιακυμάνσειςΕξόδωνΓραφείου[[#Headers],[Φεβ]]),1),INDEX(ΠρογραμματισμέναΈξοδαΓραφείου[],,1),0),MATCH(ΔιακυμάνσειςΕξόδωνΓραφείου[[#Headers],[Φεβ]],ΠραγματικάΈξοδαΓραφείου[#Headers],0))","v":{"v":7,"d":"7.00 €"}},{"$f":"INDEX(ΠρογραμματισμέναΈξοδαΓραφείου[],MATCH(INDEX(ΔιακυμάνσειςΕξόδωνΓραφείου[],ROW()-ROW(ΔιακυμάνσειςΕξόδωνΓραφείου[[#Headers],[Μάρ]]),1),INDEX(ΠρογραμματισμέναΈξοδαΓραφείου[],,1),0),MATCH(ΔιακυμάνσειςΕξόδωνΓραφείου[[#Headers],[Μάρ]],ΠρογραμματισμέναΈξοδαΓραφείου[#Headers],0))-INDEX(ΠραγματικάΈξοδαΓραφείου[],MATCH(INDEX(ΔιακυμάνσειςΕξόδωνΓραφείου[],ROW()-ROW(ΔιακυμάνσειςΕξόδωνΓραφείου[[#Headers],[Μάρ]]),1),INDEX(ΠρογραμματισμέναΈξοδαΓραφείου[],,1),0),MATCH(ΔιακυμάνσειςΕξόδωνΓραφείου[[#Headers],[Μάρ]],ΠραγματικάΈξοδαΓραφείου[#Headers],0))","v":{"v":6,"d":"6.00 €"}},{"$f":"INDEX(ΠρογραμματισμέναΈξοδαΓραφείου[],MATCH(INDEX(ΔιακυμάνσειςΕξόδωνΓραφείου[],ROW()-ROW(ΔιακυμάνσειςΕξόδωνΓραφείου[[#Headers],[Απρ]]),1),INDEX(ΠρογραμματισμέναΈξοδαΓραφείου[],,1),0),MATCH(ΔιακυμάνσειςΕξόδωνΓραφείου[[#Headers],[Απρ]],ΠρογραμματισμέναΈξοδαΓραφείου[#Headers],0))-INDEX(ΠραγματικάΈξοδαΓραφείου[],MATCH(INDEX(ΔιακυμάνσειςΕξόδωνΓραφείου[],ROW()-ROW(ΔιακυμάνσειςΕξόδωνΓραφείου[[#Headers],[Απρ]]),1),INDEX(ΠρογραμματισμέναΈξοδαΓραφείου[],,1),0),MATCH(ΔιακυμάνσειςΕξόδωνΓραφείου[[#Headers],[Απρ]],ΠραγματικάΈξοδαΓραφείου[#Headers],0))","v":{"v":4,"d":"4.00 €"}},{"$f":"INDEX(ΠρογραμματισμέναΈξοδαΓραφείου[],MATCH(INDEX(ΔιακυμάνσειςΕξόδωνΓραφείου[],ROW()-ROW(ΔιακυμάνσειςΕξόδωνΓραφείου[[#Headers],[Μάι]]),1),INDEX(ΠρογραμματισμέναΈξοδαΓραφείου[],,1),0),MATCH(ΔιακυμάνσειςΕξόδωνΓραφείου[[#Headers],[Μάι]],ΠρογραμματισμέναΈξοδαΓραφείου[#Headers],0))-INDEX(ΠραγματικάΈξοδαΓραφείου[],MATCH(INDEX(ΔιακυμάνσειςΕξόδωνΓραφείου[],ROW()-ROW(ΔιακυμάνσειςΕξόδωνΓραφείου[[#Headers],[Μάι]]),1),INDEX(ΠρογραμματισμέναΈξοδαΓραφείου[],,1),0),MATCH(ΔιακυμάνσειςΕξόδωνΓραφείου[[#Headers],[Μάι]],ΠραγματικάΈξοδαΓραφείου[#Headers],0))","v":{"v":6,"d":"6.00 €"}},{"$f":"INDEX(ΠρογραμματισμέναΈξοδαΓραφείου[],MATCH(INDEX(ΔιακυμάνσειςΕξόδωνΓραφείου[],ROW()-ROW(ΔιακυμάνσειςΕξόδωνΓραφείου[[#Headers],[Ιούν]]),1),INDEX(ΠρογραμματισμέναΈξοδαΓραφείου[],,1),0),MATCH(ΔιακυμάνσειςΕξόδωνΓραφείου[[#Headers],[Ιούν]],ΠρογραμματισμέναΈξοδαΓραφείου[#Headers],0))-INDEX(ΠραγματικάΈξοδαΓραφείου[],MATCH(INDEX(ΔιακυμάνσειςΕξόδωνΓραφείου[],ROW()-ROW(ΔιακυμάνσειςΕξόδωνΓραφείου[[#Headers],[Ιούν]]),1),INDEX(ΠρογραμματισμέναΈξοδαΓραφείου[],,1),0),MATCH(ΔιακυμάνσειςΕξόδωνΓραφείου[[#Headers],[Ιούν]],ΠραγματικάΈξοδαΓραφείου[#Headers],0))","v":{"v":4,"d":"4.00 €"}},{"$f":"INDEX(ΠρογραμματισμέναΈξοδαΓραφείου[],MATCH(INDEX(ΔιακυμάνσειςΕξόδωνΓραφείου[],ROW()-ROW(ΔιακυμάνσειςΕξόδωνΓραφείου[[#Headers],[Ιούλ]]),1),INDEX(ΠρογραμματισμέναΈξοδαΓραφείου[],,1),0),MATCH(ΔιακυμάνσειςΕξόδωνΓραφείου[[#Headers],[Ιούλ]],ΠρογραμματισμέναΈξοδαΓραφείου[#Headers],0))-INDEX(ΠραγματικάΈξοδαΓραφείου[],MATCH(INDEX(ΔιακυμάνσειςΕξόδωνΓραφείου[],ROW()-ROW(ΔιακυμάνσειςΕξόδωνΓραφείου[[#Headers],[Ιούλ]]),1),INDEX(ΠρογραμματισμέναΈξοδαΓραφείου[],,1),0),MATCH(ΔιακυμάνσειςΕξόδωνΓραφείου[[#Headers],[Ιούλ]],ΠραγματικάΈξοδαΓραφείου[#Headers],0))","v":{"v":40,"d":"40.00 €"}},{"$f":"INDEX(ΠρογραμματισμέναΈξοδαΓραφείου[],MATCH(INDEX(ΔιακυμάνσειςΕξόδωνΓραφείου[],ROW()-ROW(ΔιακυμάνσειςΕξόδωνΓραφείου[[#Headers],[Αύγ]]),1),INDEX(ΠρογραμματισμέναΈξοδαΓραφείου[],,1),0),MATCH(ΔιακυμάνσειςΕξόδωνΓραφείου[[#Headers],[Αύγ]],ΠρογραμματισμέναΈξοδαΓραφείου[#Headers],0))-INDEX(ΠραγματικάΈξοδαΓραφείου[],MATCH(INDEX(ΔιακυμάνσειςΕξόδωνΓραφείου[],ROW()-ROW(ΔιακυμάνσειςΕξόδωνΓραφείου[[#Headers],[Αύγ]]),1),INDEX(ΠρογραμματισμέναΈξοδαΓραφείου[],,1),0),MATCH(ΔιακυμάνσειςΕξόδωνΓραφείου[[#Headers],[Αύγ]],ΠραγματικάΈξοδαΓραφείου[#Headers],0))","v":{"v":40,"d":"40.00 €"}},{"$f":"INDEX(ΠρογραμματισμέναΈξοδαΓραφείου[],MATCH(INDEX(ΔιακυμάνσειςΕξόδωνΓραφείου[],ROW()-ROW(ΔιακυμάνσειςΕξόδωνΓραφείου[[#Headers],[Σεπ]]),1),INDEX(ΠρογραμματισμέναΈξοδαΓραφείου[],,1),0),MATCH(ΔιακυμάνσειςΕξόδωνΓραφείου[[#Headers],[Σεπ]],ΠρογραμματισμέναΈξοδαΓραφείου[#Headers],0))-INDEX(ΠραγματικάΈξοδαΓραφείου[],MATCH(INDEX(ΔιακυμάνσειςΕξόδωνΓραφείου[],ROW()-ROW(ΔιακυμάνσειςΕξόδωνΓραφείου[[#Headers],[Σεπ]]),1),INDEX(ΠρογραμματισμέναΈξοδαΓραφείου[],,1),0),MATCH(ΔιακυμάνσειςΕξόδωνΓραφείου[[#Headers],[Σεπ]],ΠραγματικάΈξοδαΓραφείου[#Headers],0))","v":{"v":40,"d":"40.00 €"}},{"$f":"INDEX(ΠρογραμματισμέναΈξοδαΓραφείου[],MATCH(INDEX(ΔιακυμάνσειςΕξόδωνΓραφείου[],ROW()-ROW(ΔιακυμάνσειςΕξόδωνΓραφείου[[#Headers],[Οκτ]]),1),INDEX(ΠρογραμματισμέναΈξοδαΓραφείου[],,1),0),MATCH(ΔιακυμάνσειςΕξόδωνΓραφείου[[#Headers],[Οκτ]],ΠρογραμματισμέναΈξοδαΓραφείου[#Headers],0))-INDEX(ΠραγματικάΈξοδαΓραφείου[],MATCH(INDEX(ΔιακυμάνσειςΕξόδωνΓραφείου[],ROW()-ROW(ΔιακυμάνσειςΕξόδωνΓραφείου[[#Headers],[Οκτ]]),1),INDEX(ΠρογραμματισμέναΈξοδαΓραφείου[],,1),0),MATCH(ΔιακυμάνσειςΕξόδωνΓραφείου[[#Headers],[Οκτ]],ΠραγματικάΈξοδαΓραφείου[#Headers],0))","v":{"v":40,"d":"40.00 €"}},{"$f":"INDEX(ΠρογραμματισμέναΈξοδαΓραφείου[],MATCH(INDEX(ΔιακυμάνσειςΕξόδωνΓραφείου[],ROW()-ROW(ΔιακυμάνσειςΕξόδωνΓραφείου[[#Headers],[Νοε]]),1),INDEX(ΠρογραμματισμέναΈξοδαΓραφείου[],,1),0),MATCH(ΔιακυμάνσειςΕξόδωνΓραφείου[[#Headers],[Νοε]],ΠρογραμματισμέναΈξοδαΓραφείου[#Headers],0))-INDEX(ΠραγματικάΈξοδαΓραφείου[],MATCH(INDEX(ΔιακυμάνσειςΕξόδωνΓραφείου[],ROW()-ROW(ΔιακυμάνσειςΕξόδωνΓραφείου[[#Headers],[Νοε]]),1),INDEX(ΠρογραμματισμέναΈξοδαΓραφείου[],,1),0),MATCH(ΔιακυμάνσειςΕξόδωνΓραφείου[[#Headers],[Νοε]],ΠραγματικάΈξοδαΓραφείου[#Headers],0))","v":{"v":40,"d":"40.00 €"}},{"$f":"INDEX(ΠρογραμματισμέναΈξοδαΓραφείου[],MATCH(INDEX(ΔιακυμάνσειςΕξόδωνΓραφείου[],ROW()-ROW(ΔιακυμάνσειςΕξόδωνΓραφείου[[#Headers],[Δεκ]]),1),INDEX(ΠρογραμματισμέναΈξοδαΓραφείου[],,1),0),MATCH(ΔιακυμάνσειςΕξόδωνΓραφείου[[#Headers],[Δεκ]],ΠρογραμματισμέναΈξοδαΓραφείου[#Headers],0))-INDEX(ΠραγματικάΈξοδαΓραφείου[],MATCH(INDEX(ΔιακυμάνσειςΕξόδωνΓραφείου[],ROW()-ROW(ΔιακυμάνσειςΕξόδωνΓραφείου[[#Headers],[Δεκ]]),1),INDEX(ΠρογραμματισμέναΈξοδαΓραφείου[],,1),0),MATCH(ΔιακυμάνσειςΕξόδωνΓραφείου[[#Headers],[Δεκ]],ΠραγματικάΈξοδαΓραφείου[#Headers],0))","v":{"v":40,"d":"40.00 €"}},{"$f":"SUM(ΔιακυμάνσειςΕξόδωνΓραφείου[[#This Row],[Ιαν]:[Δεκ]])","v":{"v":272,"d":"272.00 €"}}]
[null,"Τηλέφωνο",{"$f":"INDEX(ΠρογραμματισμέναΈξοδαΓραφείου[],MATCH(INDEX(ΔιακυμάνσειςΕξόδωνΓραφείου[],ROW()-ROW(ΔιακυμάνσειςΕξόδωνΓραφείου[[#Headers],[Ιαν]]),1),INDEX(ΠρογραμματισμέναΈξοδαΓραφείου[],,1),0),MATCH(ΔιακυμάνσειςΕξόδωνΓραφείου[[#Headers],[Ιαν]],ΠρογραμματισμέναΈξοδαΓραφείου[#Headers],0))-INDEX(ΠραγματικάΈξοδαΓραφείου[],MATCH(INDEX(ΔιακυμάνσειςΕξόδωνΓραφείου[],ROW()-ROW(ΔιακυμάνσειςΕξόδωνΓραφείου[[#Headers],[Ιαν]]),1),INDEX(ΠρογραμματισμέναΈξοδαΓραφείου[],,1),0),MATCH(ΔιακυμάνσειςΕξόδωνΓραφείου[[#Headers],[Ιαν]],ΠραγματικάΈξοδαΓραφείου[#Headers],0))","v":{"v":26,"d":"26.00 €"}},{"$f":"INDEX(ΠρογραμματισμέναΈξοδαΓραφείου[],MATCH(INDEX(ΔιακυμάνσειςΕξόδωνΓραφείου[],ROW()-ROW(ΔιακυμάνσειςΕξόδωνΓραφείου[[#Headers],[Φεβ]]),1),INDEX(ΠρογραμματισμέναΈξοδαΓραφείου[],,1),0),MATCH(ΔιακυμάνσειςΕξόδωνΓραφείου[[#Headers],[Φεβ]],ΠρογραμματισμέναΈξοδαΓραφείου[#Headers],0))-INDEX(ΠραγματικάΈξοδαΓραφείου[],MATCH(INDEX(ΔιακυμάνσειςΕξόδωνΓραφείου[],ROW()-ROW(ΔιακυμάνσειςΕξόδωνΓραφείου[[#Headers],[Φεβ]]),1),INDEX(ΠρογραμματισμέναΈξοδαΓραφείου[],,1),0),MATCH(ΔιακυμάνσειςΕξόδωνΓραφείου[[#Headers],[Φεβ]],ΠραγματικάΈξοδαΓραφείου[#Headers],0))","v":{"v":15,"d":"15.00 €"}},{"$f":"INDEX(ΠρογραμματισμέναΈξοδαΓραφείου[],MATCH(INDEX(ΔιακυμάνσειςΕξόδωνΓραφείου[],ROW()-ROW(ΔιακυμάνσειςΕξόδωνΓραφείου[[#Headers],[Μάρ]]),1),INDEX(ΠρογραμματισμέναΈξοδαΓραφείου[],,1),0),MATCH(ΔιακυμάνσειςΕξόδωνΓραφείου[[#Headers],[Μάρ]],ΠρογραμματισμέναΈξοδαΓραφείου[#Headers],0))-INDEX(ΠραγματικάΈξοδαΓραφείου[],MATCH(INDEX(ΔιακυμάνσειςΕξόδωνΓραφείου[],ROW()-ROW(ΔιακυμάνσειςΕξόδωνΓραφείου[[#Headers],[Μάρ]]),1),INDEX(ΠρογραμματισμέναΈξοδαΓραφείου[],,1),0),MATCH(ΔιακυμάνσειςΕξόδωνΓραφείου[[#Headers],[Μάρ]],ΠραγματικάΈξοδαΓραφείου[#Headers],0))","v":{"v":-15,"d":"-15.00 €"}},{"$f":"INDEX(ΠρογραμματισμέναΈξοδαΓραφείου[],MATCH(INDEX(ΔιακυμάνσειςΕξόδωνΓραφείου[],ROW()-ROW(ΔιακυμάνσειςΕξόδωνΓραφείου[[#Headers],[Απρ]]),1),INDEX(ΠρογραμματισμέναΈξοδαΓραφείου[],,1),0),MATCH(ΔιακυμάνσειςΕξόδωνΓραφείου[[#Headers],[Απρ]],ΠρογραμματισμέναΈξοδαΓραφείου[#Headers],0))-INDEX(ΠραγματικάΈξοδαΓραφείου[],MATCH(INDEX(ΔιακυμάνσειςΕξόδωνΓραφείου[],ROW()-ROW(ΔιακυμάνσειςΕξόδωνΓραφείου[[#Headers],[Απρ]]),1),INDEX(ΠρογραμματισμέναΈξοδαΓραφείου[],,1),0),MATCH(ΔιακυμάνσειςΕξόδωνΓραφείου[[#Headers],[Απρ]],ΠραγματικάΈξοδαΓραφείου[#Headers],0))","v":{"v":5,"d":"5.00 €"}},{"$f":"INDEX(ΠρογραμματισμέναΈξοδαΓραφείου[],MATCH(INDEX(ΔιακυμάνσειςΕξόδωνΓραφείου[],ROW()-ROW(ΔιακυμάνσειςΕξόδωνΓραφείου[[#Headers],[Μάι]]),1),INDEX(ΠρογραμματισμέναΈξοδαΓραφείου[],,1),0),MATCH(ΔιακυμάνσειςΕξόδωνΓραφείου[[#Headers],[Μάι]],ΠρογραμματισμέναΈξοδαΓραφείου[#Headers],0))-INDEX(ΠραγματικάΈξοδαΓραφείου[],MATCH(INDEX(ΔιακυμάνσειςΕξόδωνΓραφείου[],ROW()-ROW(ΔιακυμάνσειςΕξόδωνΓραφείου[[#Headers],[Μάι]]),1),INDEX(ΠρογραμματισμέναΈξοδαΓραφείου[],,1),0),MATCH(ΔιακυμάνσειςΕξόδωνΓραφείου[[#Headers],[Μάι]],ΠραγματικάΈξοδαΓραφείου[#Headers],0))","v":{"v":5,"d":"5.00 €"}},{"$f":"INDEX(ΠρογραμματισμέναΈξοδαΓραφείου[],MATCH(INDEX(ΔιακυμάνσειςΕξόδωνΓραφείου[],ROW()-ROW(ΔιακυμάνσειςΕξόδωνΓραφείου[[#Headers],[Ιούν]]),1),INDEX(ΠρογραμματισμέναΈξοδαΓραφείου[],,1),0),MATCH(ΔιακυμάνσειςΕξόδωνΓραφείου[[#Headers],[Ιούν]],ΠρογραμματισμέναΈξοδαΓραφείου[#Headers],0))-INDEX(ΠραγματικάΈξοδαΓραφείου[],MATCH(INDEX(ΔιακυμάνσειςΕξόδωνΓραφείου[],ROW()-ROW(ΔιακυμάνσειςΕξόδωνΓραφείου[[#Headers],[Ιούν]]),1),INDEX(ΠρογραμματισμέναΈξοδαΓραφείου[],,1),0),MATCH(ΔιακυμάνσειςΕξόδωνΓραφείου[[#Headers],[Ιούν]],ΠραγματικάΈξοδαΓραφείου[#Headers],0))","v":{"v":30,"d":"30.00 €"}},{"$f":"INDEX(ΠρογραμματισμέναΈξοδαΓραφείου[],MATCH(INDEX(ΔιακυμάνσειςΕξόδωνΓραφείου[],ROW()-ROW(ΔιακυμάνσειςΕξόδωνΓραφείου[[#Headers],[Ιούλ]]),1),INDEX(ΠρογραμματισμέναΈξοδαΓραφείου[],,1),0),MATCH(ΔιακυμάνσειςΕξόδωνΓραφείου[[#Headers],[Ιούλ]],ΠρογραμματισμέναΈξοδαΓραφείου[#Headers],0))-INDEX(ΠραγματικάΈξοδαΓραφείου[],MATCH(INDEX(ΔιακυμάνσειςΕξόδωνΓραφείου[],ROW()-ROW(ΔιακυμάνσειςΕξόδωνΓραφείου[[#Headers],[Ιούλ]]),1),INDEX(ΠρογραμματισμέναΈξοδαΓραφείου[],,1),0),MATCH(ΔιακυμάνσειςΕξόδωνΓραφείου[[#Headers],[Ιούλ]],ΠραγματικάΈξοδαΓραφείου[#Headers],0))","v":{"v":250,"d":"250.00 €"}},{"$f":"INDEX(ΠρογραμματισμέναΈξοδαΓραφείου[],MATCH(INDEX(ΔιακυμάνσειςΕξόδωνΓραφείου[],ROW()-ROW(ΔιακυμάνσειςΕξόδωνΓραφείου[[#Headers],[Αύγ]]),1),INDEX(ΠρογραμματισμέναΈξοδαΓραφείου[],,1),0),MATCH(ΔιακυμάνσειςΕξόδωνΓραφείου[[#Headers],[Αύγ]],ΠρογραμματισμέναΈξοδαΓραφείου[#Headers],0))-INDEX(ΠραγματικάΈξοδαΓραφείου[],MATCH(INDEX(ΔιακυμάνσειςΕξόδωνΓραφείου[],ROW()-ROW(ΔιακυμάνσειςΕξόδωνΓραφείου[[#Headers],[Αύγ]]),1),INDEX(ΠρογραμματισμέναΈξοδαΓραφείου[],,1),0),MATCH(ΔιακυμάνσειςΕξόδωνΓραφείου[[#Headers],[Αύγ]],ΠραγματικάΈξοδαΓραφείου[#Headers],0))","v":{"v":250,"d":"250.00 €"}},{"$f":"INDEX(ΠρογραμματισμέναΈξοδαΓραφείου[],MATCH(INDEX(ΔιακυμάνσειςΕξόδωνΓραφείου[],ROW()-ROW(ΔιακυμάνσειςΕξόδωνΓραφείου[[#Headers],[Σεπ]]),1),INDEX(ΠρογραμματισμέναΈξοδαΓραφείου[],,1),0),MATCH(ΔιακυμάνσειςΕξόδωνΓραφείου[[#Headers],[Σεπ]],ΠρογραμματισμέναΈξοδαΓραφείου[#Headers],0))-INDEX(ΠραγματικάΈξοδαΓραφείου[],MATCH(INDEX(ΔιακυμάνσειςΕξόδωνΓραφείου[],ROW()-ROW(ΔιακυμάνσειςΕξόδωνΓραφείου[[#Headers],[Σεπ]]),1),INDEX(ΠρογραμματισμέναΈξοδαΓραφείου[],,1),0),MATCH(ΔιακυμάνσειςΕξόδωνΓραφείου[[#Headers],[Σεπ]],ΠραγματικάΈξοδαΓραφείου[#Headers],0))","v":{"v":250,"d":"250.00 €"}},{"$f":"INDEX(ΠρογραμματισμέναΈξοδαΓραφείου[],MATCH(INDEX(ΔιακυμάνσειςΕξόδωνΓραφείου[],ROW()-ROW(ΔιακυμάνσειςΕξόδωνΓραφείου[[#Headers],[Οκτ]]),1),INDEX(ΠρογραμματισμέναΈξοδαΓραφείου[],,1),0),MATCH(ΔιακυμάνσειςΕξόδωνΓραφείου[[#Headers],[Οκτ]],ΠρογραμματισμέναΈξοδαΓραφείου[#Headers],0))-INDEX(ΠραγματικάΈξοδαΓραφείου[],MATCH(INDEX(ΔιακυμάνσειςΕξόδωνΓραφείου[],ROW()-ROW(ΔιακυμάνσειςΕξόδωνΓραφείου[[#Headers],[Οκτ]]),1),INDEX(ΠρογραμματισμέναΈξοδαΓραφείου[],,1),0),MATCH(ΔιακυμάνσειςΕξόδωνΓραφείου[[#Headers],[Οκτ]],ΠραγματικάΈξοδαΓραφείου[#Headers],0))","v":{"v":250,"d":"250.00 €"}},{"$f":"INDEX(ΠρογραμματισμέναΈξοδαΓραφείου[],MATCH(INDEX(ΔιακυμάνσειςΕξόδωνΓραφείου[],ROW()-ROW(ΔιακυμάνσειςΕξόδωνΓραφείου[[#Headers],[Νοε]]),1),INDEX(ΠρογραμματισμέναΈξοδαΓραφείου[],,1),0),MATCH(ΔιακυμάνσειςΕξόδωνΓραφείου[[#Headers],[Νοε]],ΠρογραμματισμέναΈξοδαΓραφείου[#Headers],0))-INDEX(ΠραγματικάΈξοδαΓραφείου[],MATCH(INDEX(ΔιακυμάνσειςΕξόδωνΓραφείου[],ROW()-ROW(ΔιακυμάνσειςΕξόδωνΓραφείου[[#Headers],[Νοε]]),1),INDEX(ΠρογραμματισμέναΈξοδαΓραφείου[],,1),0),MATCH(ΔιακυμάνσειςΕξόδωνΓραφείου[[#Headers],[Νοε]],ΠραγματικάΈξοδαΓραφείου[#Headers],0))","v":{"v":250,"d":"250.00 €"}},{"$f":"INDEX(ΠρογραμματισμέναΈξοδαΓραφείου[],MATCH(INDEX(ΔιακυμάνσειςΕξόδωνΓραφείου[],ROW()-ROW(ΔιακυμάνσειςΕξόδωνΓραφείου[[#Headers],[Δεκ]]),1),INDEX(ΠρογραμματισμέναΈξοδαΓραφείου[],,1),0),MATCH(ΔιακυμάνσειςΕξόδωνΓραφείου[[#Headers],[Δεκ]],ΠρογραμματισμέναΈξοδαΓραφείου[#Headers],0))-INDEX(ΠραγματικάΈξοδαΓραφείου[],MATCH(INDEX(ΔιακυμάνσειςΕξόδωνΓραφείου[],ROW()-ROW(ΔιακυμάνσειςΕξόδωνΓραφείου[[#Headers],[Δεκ]]),1),INDEX(ΠρογραμματισμέναΈξοδαΓραφείου[],,1),0),MATCH(ΔιακυμάνσειςΕξόδωνΓραφείου[[#Headers],[Δεκ]],ΠραγματικάΈξοδαΓραφείου[#Headers],0))","v":{"v":250,"d":"250.00 €"}},{"$f":"SUM(ΔιακυμάνσειςΕξόδωνΓραφείου[[#This Row],[Ιαν]:[Δεκ]])","v":{"v":1566,"d":"1,566.00 €"}}]
[null,"Πρόσβαση στο Internet",{"$f":"INDEX(ΠρογραμματισμέναΈξοδαΓραφείου[],MATCH(INDEX(ΔιακυμάνσειςΕξόδωνΓραφείου[],ROW()-ROW(ΔιακυμάνσειςΕξόδωνΓραφείου[[#Headers],[Ιαν]]),1),INDEX(ΠρογραμματισμέναΈξοδαΓραφείου[],,1),0),MATCH(ΔιακυμάνσειςΕξόδωνΓραφείου[[#Headers],[Ιαν]],ΠρογραμματισμέναΈξοδαΓραφείου[#Headers],0))-INDEX(ΠραγματικάΈξοδαΓραφείου[],MATCH(INDEX(ΔιακυμάνσειςΕξόδωνΓραφείου[],ROW()-ROW(ΔιακυμάνσειςΕξόδωνΓραφείου[[#Headers],[Ιαν]]),1),INDEX(ΠρογραμματισμέναΈξοδαΓραφείου[],,1),0),MATCH(ΔιακυμάνσειςΕξόδωνΓραφείου[[#Headers],[Ιαν]],ΠραγματικάΈξοδαΓραφείου[#Headers],0))","v":{"v":0,"d":"0.00 €"}},{"$f":"INDEX(ΠρογραμματισμέναΈξοδαΓραφείου[],MATCH(INDEX(ΔιακυμάνσειςΕξόδωνΓραφείου[],ROW()-ROW(ΔιακυμάνσειςΕξόδωνΓραφείου[[#Headers],[Φεβ]]),1),INDEX(ΠρογραμματισμέναΈξοδαΓραφείου[],,1),0),MATCH(ΔιακυμάνσειςΕξόδωνΓραφείου[[#Headers],[Φεβ]],ΠρογραμματισμέναΈξοδαΓραφείου[#Headers],0))-INDEX(ΠραγματικάΈξοδαΓραφείου[],MATCH(INDEX(ΔιακυμάνσειςΕξόδωνΓραφείου[],ROW()-ROW(ΔιακυμάνσειςΕξόδωνΓραφείου[[#Headers],[Φεβ]]),1),INDEX(ΠρογραμματισμέναΈξοδαΓραφείου[],,1),0),MATCH(ΔιακυμάνσειςΕξόδωνΓραφείου[[#Headers],[Φεβ]],ΠραγματικάΈξοδαΓραφείου[#Headers],0))","v":{"v":0,"d":"0.00 €"}},{"$f":"INDEX(ΠρογραμματισμέναΈξοδαΓραφείου[],MATCH(INDEX(ΔιακυμάνσειςΕξόδωνΓραφείου[],ROW()-ROW(ΔιακυμάνσειςΕξόδωνΓραφείου[[#Headers],[Μάρ]]),1),INDEX(ΠρογραμματισμέναΈξοδαΓραφείου[],,1),0),MATCH(ΔιακυμάνσειςΕξόδωνΓραφείου[[#Headers],[Μάρ]],ΠρογραμματισμέναΈξοδαΓραφείου[#Headers],0))-INDEX(ΠραγματικάΈξοδαΓραφείου[],MATCH(INDEX(ΔιακυμάνσειςΕξόδωνΓραφείου[],ROW()-ROW(ΔιακυμάνσειςΕξόδωνΓραφείου[[#Headers],[Μάρ]]),1),INDEX(ΠρογραμματισμέναΈξοδαΓραφείου[],,1),0),MATCH(ΔιακυμάνσειςΕξόδωνΓραφείου[[#Headers],[Μάρ]],ΠραγματικάΈξοδαΓραφείου[#Headers],0))","v":{"v":0,"d":"0.00 €"}},{"$f":"INDEX(ΠρογραμματισμέναΈξοδαΓραφείου[],MATCH(INDEX(ΔιακυμάνσειςΕξόδωνΓραφείου[],ROW()-ROW(ΔιακυμάνσειςΕξόδωνΓραφείου[[#Headers],[Απρ]]),1),INDEX(ΠρογραμματισμέναΈξοδαΓραφείου[],,1),0),MATCH(ΔιακυμάνσειςΕξόδωνΓραφείου[[#Headers],[Απρ]],ΠρογραμματισμέναΈξοδαΓραφείου[#Headers],0))-INDEX(ΠραγματικάΈξοδαΓραφείου[],MATCH(INDEX(ΔιακυμάνσειςΕξόδωνΓραφείου[],ROW()-ROW(ΔιακυμάνσειςΕξόδωνΓραφείου[[#Headers],[Απρ]]),1),INDEX(ΠρογραμματισμέναΈξοδαΓραφείου[],,1),0),MATCH(ΔιακυμάνσειςΕξόδωνΓραφείου[[#Headers],[Απρ]],ΠραγματικάΈξοδαΓραφείου[#Headers],0))","v":{"v":0,"d":"0.00 €"}},{"$f":"INDEX(ΠρογραμματισμέναΈξοδαΓραφείου[],MATCH(INDEX(ΔιακυμάνσειςΕξόδωνΓραφείου[],ROW()-ROW(ΔιακυμάνσειςΕξόδωνΓραφείου[[#Headers],[Μάι]]),1),INDEX(ΠρογραμματισμέναΈξοδαΓραφείου[],,1),0),MATCH(ΔιακυμάνσειςΕξόδωνΓραφείου[[#Headers],[Μάι]],ΠρογραμματισμέναΈξοδαΓραφείου[#Headers],0))-INDEX(ΠραγματικάΈξοδαΓραφείου[],MATCH(INDEX(ΔιακυμάνσειςΕξόδωνΓραφείου[],ROW()-ROW(ΔιακυμάνσειςΕξόδωνΓραφείου[[#Headers],[Μάι]]),1),INDEX(ΠρογραμματισμέναΈξοδαΓραφείου[],,1),0),MATCH(ΔιακυμάνσειςΕξόδωνΓραφείου[[#Headers],[Μάι]],ΠραγματικάΈξοδαΓραφείου[#Headers],0))","v":{"v":0,"d":"0.00 €"}},{"$f":"INDEX(ΠρογραμματισμέναΈξοδαΓραφείου[],MATCH(INDEX(ΔιακυμάνσειςΕξόδωνΓραφείου[],ROW()-ROW(ΔιακυμάνσειςΕξόδωνΓραφείου[[#Headers],[Ιούν]]),1),INDEX(ΠρογραμματισμέναΈξοδαΓραφείου[],,1),0),MATCH(ΔιακυμάνσειςΕξόδωνΓραφείου[[#Headers],[Ιούν]],ΠρογραμματισμέναΈξοδαΓραφείου[#Headers],0))-INDEX(ΠραγματικάΈξοδαΓραφείου[],MATCH(INDEX(ΔιακυμάνσειςΕξόδωνΓραφείου[],ROW()-ROW(ΔιακυμάνσειςΕξόδωνΓραφείου[[#Headers],[Ιούν]]),1),INDEX(ΠρογραμματισμέναΈξοδαΓραφείου[],,1),0),MATCH(ΔιακυμάνσειςΕξόδωνΓραφείου[[#Headers],[Ιούν]],ΠραγματικάΈξοδαΓραφείου[#Headers],0))","v":{"v":0,"d":"0.00 €"}},{"$f":"INDEX(ΠρογραμματισμέναΈξοδαΓραφείου[],MATCH(INDEX(ΔιακυμάνσειςΕξόδωνΓραφείου[],ROW()-ROW(ΔιακυμάνσειςΕξόδωνΓραφείου[[#Headers],[Ιούλ]]),1),INDEX(ΠρογραμματισμέναΈξοδαΓραφείου[],,1),0),MATCH(ΔιακυμάνσειςΕξόδωνΓραφείου[[#Headers],[Ιούλ]],ΠρογραμματισμέναΈξοδαΓραφείου[#Headers],0))-INDEX(ΠραγματικάΈξοδαΓραφείου[],MATCH(INDEX(ΔιακυμάνσειςΕξόδωνΓραφείου[],ROW()-ROW(ΔιακυμάνσειςΕξόδωνΓραφείου[[#Headers],[Ιούλ]]),1),INDEX(ΠρογραμματισμέναΈξοδαΓραφείου[],,1),0),MATCH(ΔιακυμάνσειςΕξόδωνΓραφείου[[#Headers],[Ιούλ]],ΠραγματικάΈξοδαΓραφείου[#Headers],0))","v":{"v":180,"d":"180.00 €"}},{"$f":"INDEX(ΠρογραμματισμέναΈξοδαΓραφείου[],MATCH(INDEX(ΔιακυμάνσειςΕξόδωνΓραφείου[],ROW()-ROW(ΔιακυμάνσειςΕξόδωνΓραφείου[[#Headers],[Αύγ]]),1),INDEX(ΠρογραμματισμέναΈξοδαΓραφείου[],,1),0),MATCH(ΔιακυμάνσειςΕξόδωνΓραφείου[[#Headers],[Αύγ]],ΠρογραμματισμέναΈξοδαΓραφείου[#Headers],0))-INDEX(ΠραγματικάΈξοδαΓραφείου[],MATCH(INDEX(ΔιακυμάνσειςΕξόδωνΓραφείου[],ROW()-ROW(ΔιακυμάνσειςΕξόδωνΓραφείου[[#Headers],[Αύγ]]),1),INDEX(ΠρογραμματισμέναΈξοδαΓραφείου[],,1),0),MATCH(ΔιακυμάνσειςΕξόδωνΓραφείου[[#Headers],[Αύγ]],ΠραγματικάΈξοδαΓραφείου[#Headers],0))","v":{"v":180,"d":"180.00 €"}},{"$f":"INDEX(ΠρογραμματισμέναΈξοδαΓραφείου[],MATCH(INDEX(ΔιακυμάνσειςΕξόδωνΓραφείου[],ROW()-ROW(ΔιακυμάνσειςΕξόδωνΓραφείου[[#Headers],[Σεπ]]),1),INDEX(ΠρογραμματισμέναΈξοδαΓραφείου[],,1),0),MATCH(ΔιακυμάνσειςΕξόδωνΓραφείου[[#Headers],[Σεπ]],ΠρογραμματισμέναΈξοδαΓραφείου[#Headers],0))-INDEX(ΠραγματικάΈξοδαΓραφείου[],MATCH(INDEX(ΔιακυμάνσειςΕξόδωνΓραφείου[],ROW()-ROW(ΔιακυμάνσειςΕξόδωνΓραφείου[[#Headers],[Σεπ]]),1),INDEX(ΠρογραμματισμέναΈξοδαΓραφείου[],,1),0),MATCH(ΔιακυμάνσειςΕξόδωνΓραφείου[[#Headers],[Σεπ]],ΠραγματικάΈξοδαΓραφείου[#Headers],0))","v":{"v":180,"d":"180.00 €"}},{"$f":"INDEX(ΠρογραμματισμέναΈξοδαΓραφείου[],MATCH(INDEX(ΔιακυμάνσειςΕξόδωνΓραφείου[],ROW()-ROW(ΔιακυμάνσειςΕξόδωνΓραφείου[[#Headers],[Οκτ]]),1),INDEX(ΠρογραμματισμέναΈξοδαΓραφείου[],,1),0),MATCH(ΔιακυμάνσειςΕξόδωνΓραφείου[[#Headers],[Οκτ]],ΠρογραμματισμέναΈξοδαΓραφείου[#Headers],0))-INDEX(ΠραγματικάΈξοδαΓραφείου[],MATCH(INDEX(ΔιακυμάνσειςΕξόδωνΓραφείου[],ROW()-ROW(ΔιακυμάνσειςΕξόδωνΓραφείου[[#Headers],[Οκτ]]),1),INDEX(ΠρογραμματισμέναΈξοδαΓραφείου[],,1),0),MATCH(ΔιακυμάνσειςΕξόδωνΓραφείου[[#Headers],[Οκτ]],ΠραγματικάΈξοδαΓραφείου[#Headers],0))","v":{"v":180,"d":"180.00 €"}},{"$f":"INDEX(ΠρογραμματισμέναΈξοδαΓραφείου[],MATCH(INDEX(ΔιακυμάνσειςΕξόδωνΓραφείου[],ROW()-ROW(ΔιακυμάνσειςΕξόδωνΓραφείου[[#Headers],[Νοε]]),1),INDEX(ΠρογραμματισμέναΈξοδαΓραφείου[],,1),0),MATCH(ΔιακυμάνσειςΕξόδωνΓραφείου[[#Headers],[Νοε]],ΠρογραμματισμέναΈξοδαΓραφείου[#Headers],0))-INDEX(ΠραγματικάΈξοδαΓραφείου[],MATCH(INDEX(ΔιακυμάνσειςΕξόδωνΓραφείου[],ROW()-ROW(ΔιακυμάνσειςΕξόδωνΓραφείου[[#Headers],[Νοε]]),1),INDEX(ΠρογραμματισμέναΈξοδαΓραφείου[],,1),0),MATCH(ΔιακυμάνσειςΕξόδωνΓραφείου[[#Headers],[Νοε]],ΠραγματικάΈξοδαΓραφείου[#Headers],0))","v":{"v":180,"d":"180.00 €"}},{"$f":"INDEX(ΠρογραμματισμέναΈξοδαΓραφείου[],MATCH(INDEX(ΔιακυμάνσειςΕξόδωνΓραφείου[],ROW()-ROW(ΔιακυμάνσειςΕξόδωνΓραφείου[[#Headers],[Δεκ]]),1),INDEX(ΠρογραμματισμέναΈξοδαΓραφείου[],,1),0),MATCH(ΔιακυμάνσειςΕξόδωνΓραφείου[[#Headers],[Δεκ]],ΠρογραμματισμέναΈξοδαΓραφείου[#Headers],0))-INDEX(ΠραγματικάΈξοδαΓραφείου[],MATCH(INDEX(ΔιακυμάνσειςΕξόδωνΓραφείου[],ROW()-ROW(ΔιακυμάνσειςΕξόδωνΓραφείου[[#Headers],[Δεκ]]),1),INDEX(ΠρογραμματισμέναΈξοδαΓραφείου[],,1),0),MATCH(ΔιακυμάνσειςΕξόδωνΓραφείου[[#Headers],[Δεκ]],ΠραγματικάΈξοδαΓραφείου[#Headers],0))","v":{"v":180,"d":"180.00 €"}},{"$f":"SUM(ΔιακυμάνσειςΕξόδωνΓραφείου[[#This Row],[Ιαν]:[Δεκ]])","v":{"v":1080,"d":"1,080.00 €"}}]
[null,"Προμήθειες γραφείου",{"$f":"INDEX(ΠρογραμματισμέναΈξοδαΓραφείου[],MATCH(INDEX(ΔιακυμάνσειςΕξόδωνΓραφείου[],ROW()-ROW(ΔιακυμάνσειςΕξόδωνΓραφείου[[#Headers],[Ιαν]]),1),INDEX(ΠρογραμματισμέναΈξοδαΓραφείου[],,1),0),MATCH(ΔιακυμάνσειςΕξόδωνΓραφείου[[#Headers],[Ιαν]],ΠρογραμματισμέναΈξοδαΓραφείου[#Headers],0))-INDEX(ΠραγματικάΈξοδαΓραφείου[],MATCH(INDEX(ΔιακυμάνσειςΕξόδωνΓραφείου[],ROW()-ROW(ΔιακυμάνσειςΕξόδωνΓραφείου[[#Headers],[Ιαν]]),1),INDEX(ΠρογραμματισμέναΈξοδαΓραφείου[],,1),0),MATCH(ΔιακυμάνσειςΕξόδωνΓραφείου[[#Headers],[Ιαν]],ΠραγματικάΈξοδαΓραφείου[#Headers],0))","v":{"v":-56,"d":"-56.00 €"}},{"$f":"INDEX(ΠρογραμματισμέναΈξοδαΓραφείου[],MATCH(INDEX(ΔιακυμάνσειςΕξόδωνΓραφείου[],ROW()-ROW(ΔιακυμάνσειςΕξόδωνΓραφείου[[#Headers],[Φεβ]]),1),INDEX(ΠρογραμματισμέναΈξοδαΓραφείου[],,1),0),MATCH(ΔιακυμάνσειςΕξόδωνΓραφείου[[#Headers],[Φεβ]],ΠρογραμματισμέναΈξοδαΓραφείου[#Headers],0))-INDEX(ΠραγματικάΈξοδαΓραφείου[],MATCH(INDEX(ΔιακυμάνσειςΕξόδωνΓραφείου[],ROW()-ROW(ΔιακυμάνσειςΕξόδωνΓραφείου[[#Headers],[Φεβ]]),1),INDEX(ΠρογραμματισμέναΈξοδαΓραφείου[],,1),0),MATCH(ΔιακυμάνσειςΕξόδωνΓραφείου[[#Headers],[Φεβ]],ΠραγματικάΈξοδαΓραφείου[#Headers],0))","v":{"v":58,"d":"58.00 €"}},{"$f":"INDEX(ΠρογραμματισμέναΈξοδαΓραφείου[],MATCH(INDEX(ΔιακυμάνσειςΕξόδωνΓραφείου[],ROW()-ROW(ΔιακυμάνσειςΕξόδωνΓραφείου[[#Headers],[Μάρ]]),1),INDEX(ΠρογραμματισμέναΈξοδαΓραφείου[],,1),0),MATCH(ΔιακυμάνσειςΕξόδωνΓραφείου[[#Headers],[Μάρ]],ΠρογραμματισμέναΈξοδαΓραφείου[#Headers],0))-INDEX(ΠραγματικάΈξοδαΓραφείου[],MATCH(INDEX(ΔιακυμάνσειςΕξόδωνΓραφείου[],ROW()-ROW(ΔιακυμάνσειςΕξόδωνΓραφείου[[#Headers],[Μάρ]]),1),INDEX(ΠρογραμματισμέναΈξοδαΓραφείου[],,1),0),MATCH(ΔιακυμάνσειςΕξόδωνΓραφείου[[#Headers],[Μάρ]],ΠραγματικάΈξοδαΓραφείου[#Headers],0))","v":{"v":40,"d":"40.00 €"}},{"$f":"INDEX(ΠρογραμματισμέναΈξοδαΓραφείου[],MATCH(INDEX(ΔιακυμάνσειςΕξόδωνΓραφείου[],ROW()-ROW(ΔιακυμάνσειςΕξόδωνΓραφείου[[#Headers],[Απρ]]),1),INDEX(ΠρογραμματισμέναΈξοδαΓραφείου[],,1),0),MATCH(ΔιακυμάνσειςΕξόδωνΓραφείου[[#Headers],[Απρ]],ΠρογραμματισμέναΈξοδαΓραφείου[#Headers],0))-INDEX(ΠραγματικάΈξοδαΓραφείου[],MATCH(INDEX(ΔιακυμάνσειςΕξόδωνΓραφείου[],ROW()-ROW(ΔιακυμάνσειςΕξόδωνΓραφείου[[#Headers],[Απρ]]),1),INDEX(ΠρογραμματισμέναΈξοδαΓραφείου[],,1),0),MATCH(ΔιακυμάνσειςΕξόδωνΓραφείου[[#Headers],[Απρ]],ΠραγματικάΈξοδαΓραφείου[#Headers],0))","v":{"v":-21,"d":"-21.00 €"}},{"$f":"INDEX(ΠρογραμματισμέναΈξοδαΓραφείου[],MATCH(INDEX(ΔιακυμάνσειςΕξόδωνΓραφείου[],ROW()-ROW(ΔιακυμάνσειςΕξόδωνΓραφείου[[#Headers],[Μάι]]),1),INDEX(ΠρογραμματισμέναΈξοδαΓραφείου[],,1),0),MATCH(ΔιακυμάνσειςΕξόδωνΓραφείου[[#Headers],[Μάι]],ΠρογραμματισμέναΈξοδαΓραφείου[#Headers],0))-INDEX(ΠραγματικάΈξοδαΓραφείου[],MATCH(INDEX(ΔιακυμάνσειςΕξόδωνΓραφείου[],ROW()-ROW(ΔιακυμάνσειςΕξόδωνΓραφείου[[#Headers],[Μάι]]),1),INDEX(ΠρογραμματισμέναΈξοδαΓραφείου[],,1),0),MATCH(ΔιακυμάνσειςΕξόδωνΓραφείου[[#Headers],[Μάι]],ΠραγματικάΈξοδαΓραφείου[#Headers],0))","v":{"v":-56,"d":"-56.00 €"}},{"$f":"INDEX(ΠρογραμματισμέναΈξοδαΓραφείου[],MATCH(INDEX(ΔιακυμάνσειςΕξόδωνΓραφείου[],ROW()-ROW(ΔιακυμάνσειςΕξόδωνΓραφείου[[#Headers],[Ιούν]]),1),INDEX(ΠρογραμματισμέναΈξοδαΓραφείου[],,1),0),MATCH(ΔιακυμάνσειςΕξόδωνΓραφείου[[#Headers],[Ιούν]],ΠρογραμματισμέναΈξοδαΓραφείου[#Headers],0))-INDEX(ΠραγματικάΈξοδαΓραφείου[],MATCH(INDEX(ΔιακυμάνσειςΕξόδωνΓραφείου[],ROW()-ROW(ΔιακυμάνσειςΕξόδωνΓραφείου[[#Headers],[Ιούν]]),1),INDEX(ΠρογραμματισμέναΈξοδαΓραφείου[],,1),0),MATCH(ΔιακυμάνσειςΕξόδωνΓραφείου[[#Headers],[Ιούν]],ΠραγματικάΈξοδαΓραφείου[#Headers],0))","v":{"v":-40,"d":"-40.00 €"}},{"$f":"INDEX(ΠρογραμματισμέναΈξοδαΓραφείου[],MATCH(INDEX(ΔιακυμάνσειςΕξόδωνΓραφείου[],ROW()-ROW(ΔιακυμάνσειςΕξόδωνΓραφείου[[#Headers],[Ιούλ]]),1),INDEX(ΠρογραμματισμέναΈξοδαΓραφείου[],,1),0),MATCH(ΔιακυμάνσειςΕξόδωνΓραφείου[[#Headers],[Ιούλ]],ΠρογραμματισμέναΈξοδαΓραφείου[#Headers],0))-INDEX(ΠραγματικάΈξοδαΓραφείου[],MATCH(INDEX(ΔιακυμάνσειςΕξόδωνΓραφείου[],ROW()-ROW(ΔιακυμάνσειςΕξόδωνΓραφείου[[#Headers],[Ιούλ]]),1),INDEX(ΠρογραμματισμέναΈξοδαΓραφείου[],,1),0),MATCH(ΔιακυμάνσειςΕξόδωνΓραφείου[[#Headers],[Ιούλ]],ΠραγματικάΈξοδαΓραφείου[#Headers],0))","v":{"v":200,"d":"200.00 €"}},{"$f":"INDEX(ΠρογραμματισμέναΈξοδαΓραφείου[],MATCH(INDEX(ΔιακυμάνσειςΕξόδωνΓραφείου[],ROW()-ROW(ΔιακυμάνσειςΕξόδωνΓραφείου[[#Headers],[Αύγ]]),1),INDEX(ΠρογραμματισμέναΈξοδαΓραφείου[],,1),0),MATCH(ΔιακυμάνσειςΕξόδωνΓραφείου[[#Headers],[Αύγ]],ΠρογραμματισμέναΈξοδαΓραφείου[#Headers],0))-INDEX(ΠραγματικάΈξοδαΓραφείου[],MATCH(INDEX(ΔιακυμάνσειςΕξόδωνΓραφείου[],ROW()-ROW(ΔιακυμάνσειςΕξόδωνΓραφείου[[#Headers],[Αύγ]]),1),INDEX(ΠρογραμματισμέναΈξοδαΓραφείου[],,1),0),MATCH(ΔιακυμάνσειςΕξόδωνΓραφείου[[#Headers],[Αύγ]],ΠραγματικάΈξοδαΓραφείου[#Headers],0))","v":{"v":200,"d":"200.00 €"}},{"$f":"INDEX(ΠρογραμματισμέναΈξοδαΓραφείου[],MATCH(INDEX(ΔιακυμάνσειςΕξόδωνΓραφείου[],ROW()-ROW(ΔιακυμάνσειςΕξόδωνΓραφείου[[#Headers],[Σεπ]]),1),INDEX(ΠρογραμματισμέναΈξοδαΓραφείου[],,1),0),MATCH(ΔιακυμάνσειςΕξόδωνΓραφείου[[#Headers],[Σεπ]],ΠρογραμματισμέναΈξοδαΓραφείου[#Headers],0))-INDEX(ΠραγματικάΈξοδαΓραφείου[],MATCH(INDEX(ΔιακυμάνσειςΕξόδωνΓραφείου[],ROW()-ROW(ΔιακυμάνσειςΕξόδωνΓραφείου[[#Headers],[Σεπ]]),1),INDEX(ΠρογραμματισμέναΈξοδαΓραφείου[],,1),0),MATCH(ΔιακυμάνσειςΕξόδωνΓραφείου[[#Headers],[Σεπ]],ΠραγματικάΈξοδαΓραφείου[#Headers],0))","v":{"v":200,"d":"200.00 €"}},{"$f":"INDEX(ΠρογραμματισμέναΈξοδαΓραφείου[],MATCH(INDEX(ΔιακυμάνσειςΕξόδωνΓραφείου[],ROW()-ROW(ΔιακυμάνσειςΕξόδωνΓραφείου[[#Headers],[Οκτ]]),1),INDEX(ΠρογραμματισμέναΈξοδαΓραφείου[],,1),0),MATCH(ΔιακυμάνσειςΕξόδωνΓραφείου[[#Headers],[Οκτ]],ΠρογραμματισμέναΈξοδαΓραφείου[#Headers],0))-INDEX(ΠραγματικάΈξοδαΓραφείου[],MATCH(INDEX(ΔιακυμάνσειςΕξόδωνΓραφείου[],ROW()-ROW(ΔιακυμάνσειςΕξόδωνΓραφείου[[#Headers],[Οκτ]]),1),INDEX(ΠρογραμματισμέναΈξοδαΓραφείου[],,1),0),MATCH(ΔιακυμάνσειςΕξόδωνΓραφείου[[#Headers],[Οκτ]],ΠραγματικάΈξοδαΓραφείου[#Headers],0))","v":{"v":200,"d":"200.00 €"}},{"$f":"INDEX(ΠρογραμματισμέναΈξοδαΓραφείου[],MATCH(INDEX(ΔιακυμάνσειςΕξόδωνΓραφείου[],ROW()-ROW(ΔιακυμάνσειςΕξόδωνΓραφείου[[#Headers],[Νοε]]),1),INDEX(ΠρογραμματισμέναΈξοδαΓραφείου[],,1),0),MATCH(ΔιακυμάνσειςΕξόδωνΓραφείου[[#Headers],[Νοε]],ΠρογραμματισμέναΈξοδαΓραφείου[#Headers],0))-INDEX(ΠραγματικάΈξοδαΓραφείου[],MATCH(INDEX(ΔιακυμάνσειςΕξόδωνΓραφείου[],ROW()-ROW(ΔιακυμάνσειςΕξόδωνΓραφείου[[#Headers],[Νοε]]),1),INDEX(ΠρογραμματισμέναΈξοδαΓραφείου[],,1),0),MATCH(ΔιακυμάνσειςΕξόδωνΓραφείου[[#Headers],[Νοε]],ΠραγματικάΈξοδαΓραφείου[#Headers],0))","v":{"v":200,"d":"200.00 €"}},{"$f":"INDEX(ΠρογραμματισμέναΈξοδαΓραφείου[],MATCH(INDEX(ΔιακυμάνσειςΕξόδωνΓραφείου[],ROW()-ROW(ΔιακυμάνσειςΕξόδωνΓραφείου[[#Headers],[Δεκ]]),1),INDEX(ΠρογραμματισμέναΈξοδαΓραφείου[],,1),0),MATCH(ΔιακυμάνσειςΕξόδωνΓραφείου[[#Headers],[Δεκ]],ΠρογραμματισμέναΈξοδαΓραφείου[#Headers],0))-INDEX(ΠραγματικάΈξοδαΓραφείου[],MATCH(INDEX(ΔιακυμάνσειςΕξόδωνΓραφείου[],ROW()-ROW(ΔιακυμάνσειςΕξόδωνΓραφείου[[#Headers],[Δεκ]]),1),INDEX(ΠρογραμματισμέναΈξοδαΓραφείου[],,1),0),MATCH(ΔιακυμάνσειςΕξόδωνΓραφείου[[#Headers],[Δεκ]],ΠραγματικάΈξοδαΓραφείου[#Headers],0))","v":{"v":200,"d":"200.00 €"}},{"$f":"SUM(ΔιακυμάνσειςΕξόδωνΓραφείου[[#This Row],[Ιαν]:[Δεκ]])","v":{"v":1125,"d":"1,125.00 €"}}]
[null,"Ασφάλεια",{"$f":"INDEX(ΠρογραμματισμέναΈξοδαΓραφείου[],MATCH(INDEX(ΔιακυμάνσειςΕξόδωνΓραφείου[],ROW()-ROW(ΔιακυμάνσειςΕξόδωνΓραφείου[[#Headers],[Ιαν]]),1),INDEX(ΠρογραμματισμέναΈξοδαΓραφείου[],,1),0),MATCH(ΔιακυμάνσειςΕξόδωνΓραφείου[[#Headers],[Ιαν]],ΠρογραμματισμέναΈξοδαΓραφείου[#Headers],0))-INDEX(ΠραγματικάΈξοδαΓραφείου[],MATCH(INDEX(ΔιακυμάνσειςΕξόδωνΓραφείου[],ROW()-ROW(ΔιακυμάνσειςΕξόδωνΓραφείου[[#Headers],[Ιαν]]),1),INDEX(ΠρογραμματισμέναΈξοδαΓραφείου[],,1),0),MATCH(ΔιακυμάνσειςΕξόδωνΓραφείου[[#Headers],[Ιαν]],ΠραγματικάΈξοδαΓραφείου[#Headers],0))","v":{"v":0,"d":"0.00 €"}},{"$f":"INDEX(ΠρογραμματισμέναΈξοδαΓραφείου[],MATCH(INDEX(ΔιακυμάνσειςΕξόδωνΓραφείου[],ROW()-ROW(ΔιακυμάνσειςΕξόδωνΓραφείου[[#Headers],[Φεβ]]),1),INDEX(ΠρογραμματισμέναΈξοδαΓραφείου[],,1),0),MATCH(ΔιακυμάνσειςΕξόδωνΓραφείου[[#Headers],[Φεβ]],ΠρογραμματισμέναΈξοδαΓραφείου[#Headers],0))-INDEX(ΠραγματικάΈξοδαΓραφείου[],MATCH(INDEX(ΔιακυμάνσειςΕξόδωνΓραφείου[],ROW()-ROW(ΔιακυμάνσειςΕξόδωνΓραφείου[[#Headers],[Φεβ]]),1),INDEX(ΠρογραμματισμέναΈξοδαΓραφείου[],,1),0),MATCH(ΔιακυμάνσειςΕξόδωνΓραφείου[[#Headers],[Φεβ]],ΠραγματικάΈξοδαΓραφείου[#Headers],0))","v":{"v":0,"d":"0.00 €"}},{"$f":"INDEX(ΠρογραμματισμέναΈξοδαΓραφείου[],MATCH(INDEX(ΔιακυμάνσειςΕξόδωνΓραφείου[],ROW()-ROW(ΔιακυμάνσειςΕξόδωνΓραφείου[[#Headers],[Μάρ]]),1),INDEX(ΠρογραμματισμέναΈξοδαΓραφείου[],,1),0),MATCH(ΔιακυμάνσειςΕξόδωνΓραφείου[[#Headers],[Μάρ]],ΠρογραμματισμέναΈξοδαΓραφείου[#Headers],0))-INDEX(ΠραγματικάΈξοδαΓραφείου[],MATCH(INDEX(ΔιακυμάνσειςΕξόδωνΓραφείου[],ROW()-ROW(ΔιακυμάνσειςΕξόδωνΓραφείου[[#Headers],[Μάρ]]),1),INDEX(ΠρογραμματισμέναΈξοδαΓραφείου[],,1),0),MATCH(ΔιακυμάνσειςΕξόδωνΓραφείου[[#Headers],[Μάρ]],ΠραγματικάΈξοδαΓραφείου[#Headers],0))","v":{"v":0,"d":"0.00 €"}},{"$f":"INDEX(ΠρογραμματισμέναΈξοδαΓραφείου[],MATCH(INDEX(ΔιακυμάνσειςΕξόδωνΓραφείου[],ROW()-ROW(ΔιακυμάνσειςΕξόδωνΓραφείου[[#Headers],[Απρ]]),1),INDEX(ΠρογραμματισμέναΈξοδαΓραφείου[],,1),0),MATCH(ΔιακυμάνσειςΕξόδωνΓραφείου[[#Headers],[Απρ]],ΠρογραμματισμέναΈξοδαΓραφείου[#Headers],0))-INDEX(ΠραγματικάΈξοδαΓραφείου[],MATCH(INDEX(ΔιακυμάνσειςΕξόδωνΓραφείου[],ROW()-ROW(ΔιακυμάνσειςΕξόδωνΓραφείου[[#Headers],[Απρ]]),1),INDEX(ΠρογραμματισμέναΈξοδαΓραφείου[],,1),0),MATCH(ΔιακυμάνσειςΕξόδωνΓραφείου[[#Headers],[Απρ]],ΠραγματικάΈξοδαΓραφείου[#Headers],0))","v":{"v":0,"d":"0.00 €"}},{"$f":"INDEX(ΠρογραμματισμέναΈξοδαΓραφείου[],MATCH(INDEX(ΔιακυμάνσειςΕξόδωνΓραφείου[],ROW()-ROW(ΔιακυμάνσειςΕξόδωνΓραφείου[[#Headers],[Μάι]]),1),INDEX(ΠρογραμματισμέναΈξοδαΓραφείου[],,1),0),MATCH(ΔιακυμάνσειςΕξόδωνΓραφείου[[#Headers],[Μάι]],ΠρογραμματισμέναΈξοδαΓραφείου[#Headers],0))-INDEX(ΠραγματικάΈξοδαΓραφείου[],MATCH(INDEX(ΔιακυμάνσειςΕξόδωνΓραφείου[],ROW()-ROW(ΔιακυμάνσειςΕξόδωνΓραφείου[[#Headers],[Μάι]]),1),INDEX(ΠρογραμματισμέναΈξοδαΓραφείου[],,1),0),MATCH(ΔιακυμάνσειςΕξόδωνΓραφείου[[#Headers],[Μάι]],ΠραγματικάΈξοδαΓραφείου[#Headers],0))","v":{"v":0,"d":"0.00 €"}},{"$f":"INDEX(ΠρογραμματισμέναΈξοδαΓραφείου[],MATCH(INDEX(ΔιακυμάνσειςΕξόδωνΓραφείου[],ROW()-ROW(ΔιακυμάνσειςΕξόδωνΓραφείου[[#Headers],[Ιούν]]),1),INDEX(ΠρογραμματισμέναΈξοδαΓραφείου[],,1),0),MATCH(ΔιακυμάνσειςΕξόδωνΓραφείου[[#Headers],[Ιούν]],ΠρογραμματισμέναΈξοδαΓραφείου[#Headers],0))-INDEX(ΠραγματικάΈξοδαΓραφείου[],MATCH(INDEX(ΔιακυμάνσειςΕξόδωνΓραφείου[],ROW()-ROW(ΔιακυμάνσειςΕξόδωνΓραφείου[[#Headers],[Ιούν]]),1),INDEX(ΠρογραμματισμέναΈξοδαΓραφείου[],,1),0),MATCH(ΔιακυμάνσειςΕξόδωνΓραφείου[[#Headers],[Ιούν]],ΠραγματικάΈξοδαΓραφείου[#Headers],0))","v":{"v":0,"d":"0.00 €"}},{"$f":"INDEX(ΠρογραμματισμέναΈξοδαΓραφείου[],MATCH(INDEX(ΔιακυμάνσειςΕξόδωνΓραφείου[],ROW()-ROW(ΔιακυμάνσειςΕξόδωνΓραφείου[[#Headers],[Ιούλ]]),1),INDEX(ΠρογραμματισμέναΈξοδαΓραφείου[],,1),0),MATCH(ΔιακυμάνσειςΕξόδωνΓραφείου[[#Headers],[Ιούλ]],ΠρογραμματισμέναΈξοδαΓραφείου[#Headers],0))-INDEX(ΠραγματικάΈξοδαΓραφείου[],MATCH(INDEX(ΔιακυμάνσειςΕξόδωνΓραφείου[],ROW()-ROW(ΔιακυμάνσειςΕξόδωνΓραφείου[[#Headers],[Ιούλ]]),1),INDEX(ΠρογραμματισμέναΈξοδαΓραφείου[],,1),0),MATCH(ΔιακυμάνσειςΕξόδωνΓραφείου[[#Headers],[Ιούλ]],ΠραγματικάΈξοδαΓραφείου[#Headers],0))","v":{"v":600,"d":"600.00 €"}},{"$f":"INDEX(ΠρογραμματισμέναΈξοδαΓραφείου[],MATCH(INDEX(ΔιακυμάνσειςΕξόδωνΓραφείου[],ROW()-ROW(ΔιακυμάνσειςΕξόδωνΓραφείου[[#Headers],[Αύγ]]),1),INDEX(ΠρογραμματισμέναΈξοδαΓραφείου[],,1),0),MATCH(ΔιακυμάνσειςΕξόδωνΓραφείου[[#Headers],[Αύγ]],ΠρογραμματισμέναΈξοδαΓραφείου[#Headers],0))-INDEX(ΠραγματικάΈξοδαΓραφείου[],MATCH(INDEX(ΔιακυμάνσειςΕξόδωνΓραφείου[],ROW()-ROW(ΔιακυμάνσειςΕξόδωνΓραφείου[[#Headers],[Αύγ]]),1),INDEX(ΠρογραμματισμέναΈξοδαΓραφείου[],,1),0),MATCH(ΔιακυμάνσειςΕξόδωνΓραφείου[[#Headers],[Αύγ]],ΠραγματικάΈξοδαΓραφείου[#Headers],0))","v":{"v":600,"d":"600.00 €"}},{"$f":"INDEX(ΠρογραμματισμέναΈξοδαΓραφείου[],MATCH(INDEX(ΔιακυμάνσειςΕξόδωνΓραφείου[],ROW()-ROW(ΔιακυμάνσειςΕξόδωνΓραφείου[[#Headers],[Σεπ]]),1),INDEX(ΠρογραμματισμέναΈξοδαΓραφείου[],,1),0),MATCH(ΔιακυμάνσειςΕξόδωνΓραφείου[[#Headers],[Σεπ]],ΠρογραμματισμέναΈξοδαΓραφείου[#Headers],0))-INDEX(ΠραγματικάΈξοδαΓραφείου[],MATCH(INDEX(ΔιακυμάνσειςΕξόδωνΓραφείου[],ROW()-ROW(ΔιακυμάνσειςΕξόδωνΓραφείου[[#Headers],[Σεπ]]),1),INDEX(ΠρογραμματισμέναΈξοδαΓραφείου[],,1),0),MATCH(ΔιακυμάνσειςΕξόδωνΓραφείου[[#Headers],[Σεπ]],ΠραγματικάΈξοδαΓραφείου[#Headers],0))","v":{"v":600,"d":"600.00 €"}},{"$f":"INDEX(ΠρογραμματισμέναΈξοδαΓραφείου[],MATCH(INDEX(ΔιακυμάνσειςΕξόδωνΓραφείου[],ROW()-ROW(ΔιακυμάνσειςΕξόδωνΓραφείου[[#Headers],[Οκτ]]),1),INDEX(ΠρογραμματισμέναΈξοδαΓραφείου[],,1),0),MATCH(ΔιακυμάνσειςΕξόδωνΓραφείου[[#Headers],[Οκτ]],ΠρογραμματισμέναΈξοδαΓραφείου[#Headers],0))-INDEX(ΠραγματικάΈξοδαΓραφείου[],MATCH(INDEX(ΔιακυμάνσειςΕξόδωνΓραφείου[],ROW()-ROW(ΔιακυμάνσειςΕξόδωνΓραφείου[[#Headers],[Οκτ]]),1),INDEX(ΠρογραμματισμέναΈξοδαΓραφείου[],,1),0),MATCH(ΔιακυμάνσειςΕξόδωνΓραφείου[[#Headers],[Οκτ]],ΠραγματικάΈξοδαΓραφείου[#Headers],0))","v":{"v":600,"d":"600.00 €"}},{"$f":"INDEX(ΠρογραμματισμέναΈξοδαΓραφείου[],MATCH(INDEX(ΔιακυμάνσειςΕξόδωνΓραφείου[],ROW()-ROW(ΔιακυμάνσειςΕξόδωνΓραφείου[[#Headers],[Νοε]]),1),INDEX(ΠρογραμματισμέναΈξοδαΓραφείου[],,1),0),MATCH(ΔιακυμάνσειςΕξόδωνΓραφείου[[#Headers],[Νοε]],ΠρογραμματισμέναΈξοδαΓραφείου[#Headers],0))-INDEX(ΠραγματικάΈξοδαΓραφείου[],MATCH(INDEX(ΔιακυμάνσειςΕξόδωνΓραφείου[],ROW()-ROW(ΔιακυμάνσειςΕξόδωνΓραφείου[[#Headers],[Νοε]]),1),INDEX(ΠρογραμματισμέναΈξοδαΓραφείου[],,1),0),MATCH(ΔιακυμάνσειςΕξόδωνΓραφείου[[#Headers],[Νοε]],ΠραγματικάΈξοδαΓραφείου[#Headers],0))","v":{"v":600,"d":"600.00 €"}},{"$f":"INDEX(ΠρογραμματισμέναΈξοδαΓραφείου[],MATCH(INDEX(ΔιακυμάνσειςΕξόδωνΓραφείου[],ROW()-ROW(ΔιακυμάνσειςΕξόδωνΓραφείου[[#Headers],[Δεκ]]),1),INDEX(ΠρογραμματισμέναΈξοδαΓραφείου[],,1),0),MATCH(ΔιακυμάνσειςΕξόδωνΓραφείου[[#Headers],[Δεκ]],ΠρογραμματισμέναΈξοδαΓραφείου[#Headers],0))-INDEX(ΠραγματικάΈξοδαΓραφείου[],MATCH(INDEX(ΔιακυμάνσειςΕξόδωνΓραφείου[],ROW()-ROW(ΔιακυμάνσειςΕξόδωνΓραφείου[[#Headers],[Δεκ]]),1),INDEX(ΠρογραμματισμέναΈξοδαΓραφείου[],,1),0),MATCH(ΔιακυμάνσειςΕξόδωνΓραφείου[[#Headers],[Δεκ]],ΠραγματικάΈξοδαΓραφείου[#Headers],0))","v":{"v":600,"d":"600.00 €"}},{"$f":"SUM(ΔιακυμάνσειςΕξόδωνΓραφείου[[#This Row],[Ιαν]:[Δεκ]])","v":{"v":3600,"d":"3,600.00 €"}}]
[null,"Μερικό άθροισμα",{"$f":"SUBTOTAL(109,ΔιακυμάνσειςΕξόδωνΓραφείου[Ιαν])","v":{"v":-17,"d":"-17.00 €"}},{"$f":"SUBTOTAL(109,ΔιακυμάνσειςΕξόδωνΓραφείου[Φεβ])","v":{"v":72,"d":"72.00 €"}},{"$f":"SUBTOTAL(109,ΔιακυμάνσειςΕξόδωνΓραφείου[Μάρ])","v":{"v":78,"d":"78.00 €"}},{"$f":"SUBTOTAL(109,ΔιακυμάνσειςΕξόδωνΓραφείου[Απρ])","v":{"v":-141,"d":"-141.00 €"}},{"$f":"SUBTOTAL(109,ΔιακυμάνσειςΕξόδωνΓραφείου[Μάι])","v":{"v":-38,"d":"-38.00 €"}},{"$f":"SUBTOTAL(109,ΔιακυμάνσειςΕξόδωνΓραφείου[Ιούν])","v":{"v":16,"d":"16.00 €"}},{"$f":"SUBTOTAL(109,ΔιακυμάνσειςΕξόδωνΓραφείου[Ιούλ])","v":{"v":11470,"d":"11,470.00 €"}},{"$f":"SUBTOTAL(109,ΔιακυμάνσειςΕξόδωνΓραφείου[Αύγ])","v":{"v":11470,"d":"11,470.00 €"}},{"$f":"SUBTOTAL(109,ΔιακυμάνσειςΕξόδωνΓραφείου[Σεπ])","v":{"v":11470,"d":"11,470.00 €"}},{"$f":"SUBTOTAL(109,ΔιακυμάνσειςΕξόδωνΓραφείου[Οκτ])","v":{"v":11470,"d":"11,470.00 €"}},{"$f":"SUBTOTAL(109,ΔιακυμάνσειςΕξόδωνΓραφείου[Νοε])","v":{"v":11770,"d":"11,770.00 €"}},{"$f":"SUBTOTAL(109,ΔιακυμάνσειςΕξόδωνΓραφείου[Δεκ])","v":{"v":11770,"d":"11,770.00 €"}},{"$f":"SUBTOTAL(109,ΔιακυμάνσειςΕξόδωνΓραφείου[ΕΤΟΣ])","v":{"v":69390,"d":"69,390.00 €"}}]
[]
["Η διακύμανση στα έξοδα μάρκετινγκ υπολογίζεται αυτόματα στον πίνακα διακυμάνσεις εξόδων μάρκετινγκ που ξεκινά στο κελί στα δεξιά. Η επόμενη οδηγία βρίσκεται στο κελί A30.","Έξοδα μάρκετινγκ","Ιαν","Φεβ","Μάρ","Απρ","Μάι","Ιούν","Ιούλ","Αύγ","Σεπ","Οκτ","Νοε","Δεκ","ΕΤΟΣ"]
[null,"Φιλοξενία τοποθεσίας Web",{"$f":"INDEX(ΠρογραμματισμέναΈξοδαΜάρκετινγκ[],MATCH(INDEX(ΔιακυμάνσειςΕξόδωνΜάρκετινγκ[],ROW()-ROW(ΔιακυμάνσειςΕξόδωνΜάρκετινγκ[[#Headers],[Ιαν]]),1),INDEX(ΠρογραμματισμέναΈξοδαΜάρκετινγκ[],,1),0),MATCH(ΔιακυμάνσειςΕξόδωνΜάρκετινγκ[[#Headers],[Ιαν]],ΠρογραμματισμέναΈξοδαΜάρκετινγκ[#Headers],0))-INDEX(ΠραγματικάΈξοδαΜάρκετινγκ[],MATCH(INDEX(ΔιακυμάνσειςΕξόδωνΜάρκετινγκ[],ROW()-ROW(ΔιακυμάνσειςΕξόδωνΜάρκετινγκ[[#Headers],[Ιαν]]),1),INDEX(ΠρογραμματισμέναΈξοδαΜάρκετινγκ[],,1),0),MATCH(ΔιακυμάνσειςΕξόδωνΜάρκετινγκ[[#Headers],[Ιαν]],ΠραγματικάΈξοδαΜάρκετινγκ[#Headers],0))","v":{"v":0,"d":"0.00 €"}},{"$f":"INDEX(ΠρογραμματισμέναΈξοδαΜάρκετινγκ[],MATCH(INDEX(ΔιακυμάνσειςΕξόδωνΜάρκετινγκ[],ROW()-ROW(ΔιακυμάνσειςΕξόδωνΜάρκετινγκ[[#Headers],[Φεβ]]),1),INDEX(ΠρογραμματισμέναΈξοδαΜάρκετινγκ[],,1),0),MATCH(ΔιακυμάνσειςΕξόδωνΜάρκετινγκ[[#Headers],[Φεβ]],ΠρογραμματισμέναΈξοδαΜάρκετινγκ[#Headers],0))-INDEX(ΠραγματικάΈξοδαΜάρκετινγκ[],MATCH(INDEX(ΔιακυμάνσειςΕξόδωνΜάρκετινγκ[],ROW()-ROW(ΔιακυμάνσειςΕξόδωνΜάρκετινγκ[[#Headers],[Φεβ]]),1),INDEX(ΠρογραμματισμέναΈξοδαΜάρκετινγκ[],,1),0),MATCH(ΔιακυμάνσειςΕξόδωνΜάρκετινγκ[[#Headers],[Φεβ]],ΠραγματικάΈξοδαΜάρκετινγκ[#Headers],0))","v":{"v":0,"d":"0.00 €"}},{"$f":"INDEX(ΠρογραμματισμέναΈξοδαΜάρκετινγκ[],MATCH(INDEX(ΔιακυμάνσειςΕξόδωνΜάρκετινγκ[],ROW()-ROW(ΔιακυμάνσειςΕξόδωνΜάρκετινγκ[[#Headers],[Μάρ]]),1),INDEX(ΠρογραμματισμέναΈξοδαΜάρκετινγκ[],,1),0),MATCH(ΔιακυμάνσειςΕξόδωνΜάρκετινγκ[[#Headers],[Μάρ]],ΠρογραμματισμέναΈξοδαΜάρκετινγκ[#Headers],0))-INDEX(ΠραγματικάΈξοδαΜάρκετινγκ[],MATCH(INDEX(ΔιακυμάνσειςΕξόδωνΜάρκετινγκ[],ROW()-ROW(ΔιακυμάνσειςΕξόδωνΜάρκετινγκ[[#Headers],[Μάρ]]),1),INDEX(ΠρογραμματισμέναΈξοδαΜάρκετινγκ[],,1),0),MATCH(ΔιακυμάνσειςΕξόδωνΜάρκετινγκ[[#Headers],[Μάρ]],ΠραγματικάΈξοδαΜάρκετινγκ[#Headers],0))","v":{"v":0,"d":"0.00 €"}},{"$f":"INDEX(ΠρογραμματισμέναΈξοδαΜάρκετινγκ[],MATCH(INDEX(ΔιακυμάνσειςΕξόδωνΜάρκετινγκ[],ROW()-ROW(ΔιακυμάνσειςΕξόδωνΜάρκετινγκ[[#Headers],[Απρ]]),1),INDEX(ΠρογραμματισμέναΈξοδαΜάρκετινγκ[],,1),0),MATCH(ΔιακυμάνσειςΕξόδωνΜάρκετινγκ[[#Headers],[Απρ]],ΠρογραμματισμέναΈξοδαΜάρκετινγκ[#Headers],0))-INDEX(ΠραγματικάΈξοδαΜάρκετινγκ[],MATCH(INDEX(ΔιακυμάνσειςΕξόδωνΜάρκετινγκ[],ROW()-ROW(ΔιακυμάνσειςΕξόδωνΜάρκετινγκ[[#Headers],[Απρ]]),1),INDEX(ΠρογραμματισμέναΈξοδαΜάρκετινγκ[],,1),0),MATCH(ΔιακυμάνσειςΕξόδωνΜάρκετινγκ[[#Headers],[Απρ]],ΠραγματικάΈξοδαΜάρκετινγκ[#Headers],0))","v":{"v":0,"d":"0.00 €"}},{"$f":"INDEX(ΠρογραμματισμέναΈξοδαΜάρκετινγκ[],MATCH(INDEX(ΔιακυμάνσειςΕξόδωνΜάρκετινγκ[],ROW()-ROW(ΔιακυμάνσειςΕξόδωνΜάρκετινγκ[[#Headers],[Μάι]]),1),INDEX(ΠρογραμματισμέναΈξοδαΜάρκετινγκ[],,1),0),MATCH(ΔιακυμάνσειςΕξόδωνΜάρκετινγκ[[#Headers],[Μάι]],ΠρογραμματισμέναΈξοδαΜάρκετινγκ[#Headers],0))-INDEX(ΠραγματικάΈξοδαΜάρκετινγκ[],MATCH(INDEX(ΔιακυμάνσειςΕξόδωνΜάρκετινγκ[],ROW()-ROW(ΔιακυμάνσειςΕξόδωνΜάρκετινγκ[[#Headers],[Μάι]]),1),INDEX(ΠρογραμματισμέναΈξοδαΜάρκετινγκ[],,1),0),MATCH(ΔιακυμάνσειςΕξόδωνΜάρκετινγκ[[#Headers],[Μάι]],ΠραγματικάΈξοδαΜάρκετινγκ[#Headers],0))","v":{"v":0,"d":"0.00 €"}},{"$f":"INDEX(ΠρογραμματισμέναΈξοδαΜάρκετινγκ[],MATCH(INDEX(ΔιακυμάνσειςΕξόδωνΜάρκετινγκ[],ROW()-ROW(ΔιακυμάνσειςΕξόδωνΜάρκετινγκ[[#Headers],[Ιούν]]),1),INDEX(ΠρογραμματισμέναΈξοδαΜάρκετινγκ[],,1),0),MATCH(ΔιακυμάνσειςΕξόδωνΜάρκετινγκ[[#Headers],[Ιούν]],ΠρογραμματισμέναΈξοδαΜάρκετινγκ[#Headers],0))-INDEX(ΠραγματικάΈξοδαΜάρκετινγκ[],MATCH(INDEX(ΔιακυμάνσειςΕξόδωνΜάρκετινγκ[],ROW()-ROW(ΔιακυμάνσειςΕξόδωνΜάρκετινγκ[[#Headers],[Ιούν]]),1),INDEX(ΠρογραμματισμέναΈξοδαΜάρκετινγκ[],,1),0),MATCH(ΔιακυμάνσειςΕξόδωνΜάρκετινγκ[[#Headers],[Ιούν]],ΠραγματικάΈξοδαΜάρκετινγκ[#Headers],0))","v":{"v":0,"d":"0.00 €"}},{"$f":"INDEX(ΠρογραμματισμέναΈξοδαΜάρκετινγκ[],MATCH(INDEX(ΔιακυμάνσειςΕξόδωνΜάρκετινγκ[],ROW()-ROW(ΔιακυμάνσειςΕξόδωνΜάρκετινγκ[[#Headers],[Ιούλ]]),1),INDEX(ΠρογραμματισμέναΈξοδαΜάρκετινγκ[],,1),0),MATCH(ΔιακυμάνσειςΕξόδωνΜάρκετινγκ[[#Headers],[Ιούλ]],ΠρογραμματισμέναΈξοδαΜάρκετινγκ[#Headers],0))-INDEX(ΠραγματικάΈξοδαΜάρκετινγκ[],MATCH(INDEX(ΔιακυμάνσειςΕξόδωνΜάρκετινγκ[],ROW()-ROW(ΔιακυμάνσειςΕξόδωνΜάρκετινγκ[[#Headers],[Ιούλ]]),1),INDEX(ΠρογραμματισμέναΈξοδαΜάρκετινγκ[],,1),0),MATCH(ΔιακυμάνσειςΕξόδωνΜάρκετινγκ[[#Headers],[Ιούλ]],ΠραγματικάΈξοδαΜάρκετινγκ[#Headers],0))","v":{"v":500,"d":"500.00 €"}},{"$f":"INDEX(ΠρογραμματισμέναΈξοδαΜάρκετινγκ[],MATCH(INDEX(ΔιακυμάνσειςΕξόδωνΜάρκετινγκ[],ROW()-ROW(ΔιακυμάνσειςΕξόδωνΜάρκετινγκ[[#Headers],[Αύγ]]),1),INDEX(ΠρογραμματισμέναΈξοδαΜάρκετινγκ[],,1),0),MATCH(ΔιακυμάνσειςΕξόδωνΜάρκετινγκ[[#Headers],[Αύγ]],ΠρογραμματισμέναΈξοδαΜάρκετινγκ[#Headers],0))-INDEX(ΠραγματικάΈξοδαΜάρκετινγκ[],MATCH(INDEX(ΔιακυμάνσειςΕξόδωνΜάρκετινγκ[],ROW()-ROW(ΔιακυμάνσειςΕξόδωνΜάρκετινγκ[[#Headers],[Αύγ]]),1),INDEX(ΠρογραμματισμέναΈξοδαΜάρκετινγκ[],,1),0),MATCH(ΔιακυμάνσειςΕξόδωνΜάρκετινγκ[[#Headers],[Αύγ]],ΠραγματικάΈξοδαΜάρκετινγκ[#Headers],0))","v":{"v":500,"d":"500.00 €"}},{"$f":"INDEX(ΠρογραμματισμέναΈξοδαΜάρκετινγκ[],MATCH(INDEX(ΔιακυμάνσειςΕξόδωνΜάρκετινγκ[],ROW()-ROW(ΔιακυμάνσειςΕξόδωνΜάρκετινγκ[[#Headers],[Σεπ]]),1),INDEX(ΠρογραμματισμέναΈξοδαΜάρκετινγκ[],,1),0),MATCH(ΔιακυμάνσειςΕξόδωνΜάρκετινγκ[[#Headers],[Σεπ]],ΠρογραμματισμέναΈξοδαΜάρκετινγκ[#Headers],0))-INDEX(ΠραγματικάΈξοδαΜάρκετινγκ[],MATCH(INDEX(ΔιακυμάνσειςΕξόδωνΜάρκετινγκ[],ROW()-ROW(ΔιακυμάνσειςΕξόδωνΜάρκετινγκ[[#Headers],[Σεπ]]),1),INDEX(ΠρογραμματισμέναΈξοδαΜάρκετινγκ[],,1),0),MATCH(ΔιακυμάνσειςΕξόδωνΜάρκετινγκ[[#Headers],[Σεπ]],ΠραγματικάΈξοδαΜάρκετινγκ[#Headers],0))","v":{"v":500,"d":"500.00 €"}},{"$f":"INDEX(ΠρογραμματισμέναΈξοδαΜάρκετινγκ[],MATCH(INDEX(ΔιακυμάνσειςΕξόδωνΜάρκετινγκ[],ROW()-ROW(ΔιακυμάνσειςΕξόδωνΜάρκετινγκ[[#Headers],[Οκτ]]),1),INDEX(ΠρογραμματισμέναΈξοδαΜάρκετινγκ[],,1),0),MATCH(ΔιακυμάνσειςΕξόδωνΜάρκετινγκ[[#Headers],[Οκτ]],ΠρογραμματισμέναΈξοδαΜάρκετινγκ[#Headers],0))-INDEX(ΠραγματικάΈξοδαΜάρκετινγκ[],MATCH(INDEX(ΔιακυμάνσειςΕξόδωνΜάρκετινγκ[],ROW()-ROW(ΔιακυμάνσειςΕξόδωνΜάρκετινγκ[[#Headers],[Οκτ]]),1),INDEX(ΠρογραμματισμέναΈξοδαΜάρκετινγκ[],,1),0),MATCH(ΔιακυμάνσειςΕξόδωνΜάρκετινγκ[[#Headers],[Οκτ]],ΠραγματικάΈξοδαΜάρκετινγκ[#Headers],0))","v":{"v":500,"d":"500.00 €"}},{"$f":"INDEX(ΠρογραμματισμέναΈξοδαΜάρκετινγκ[],MATCH(INDEX(ΔιακυμάνσειςΕξόδωνΜάρκετινγκ[],ROW()-ROW(ΔιακυμάνσειςΕξόδωνΜάρκετινγκ[[#Headers],[Νοε]]),1),INDEX(ΠρογραμματισμέναΈξοδαΜάρκετινγκ[],,1),0),MATCH(ΔιακυμάνσειςΕξόδωνΜάρκετινγκ[[#Headers],[Νοε]],ΠρογραμματισμέναΈξοδαΜάρκετινγκ[#Headers],0))-INDEX(ΠραγματικάΈξοδαΜάρκετινγκ[],MATCH(INDEX(ΔιακυμάνσειςΕξόδωνΜάρκετινγκ[],ROW()-ROW(ΔιακυμάνσειςΕξόδωνΜάρκετινγκ[[#Headers],[Νοε]]),1),INDEX(ΠρογραμματισμέναΈξοδαΜάρκετινγκ[],,1),0),MATCH(ΔιακυμάνσειςΕξόδωνΜάρκετινγκ[[#Headers],[Νοε]],ΠραγματικάΈξοδαΜάρκετινγκ[#Headers],0))","v":{"v":500,"d":"500.00 €"}},{"$f":"INDEX(ΠρογραμματισμέναΈξοδαΜάρκετινγκ[],MATCH(INDEX(ΔιακυμάνσειςΕξόδωνΜάρκετινγκ[],ROW()-ROW(ΔιακυμάνσειςΕξόδωνΜάρκετινγκ[[#Headers],[Δεκ]]),1),INDEX(ΠρογραμματισμέναΈξοδαΜάρκετινγκ[],,1),0),MATCH(ΔιακυμάνσειςΕξόδωνΜάρκετινγκ[[#Headers],[Δεκ]],ΠρογραμματισμέναΈξοδαΜάρκετινγκ[#Headers],0))-INDEX(ΠραγματικάΈξοδαΜάρκετινγκ[],MATCH(INDEX(ΔιακυμάνσειςΕξόδωνΜάρκετινγκ[],ROW()-ROW(ΔιακυμάνσειςΕξόδωνΜάρκετινγκ[[#Headers],[Δεκ]]),1),INDEX(ΠρογραμματισμέναΈξοδαΜάρκετινγκ[],,1),0),MATCH(ΔιακυμάνσειςΕξόδωνΜάρκετινγκ[[#Headers],[Δεκ]],ΠραγματικάΈξοδαΜάρκετινγκ[#Headers],0))","v":{"v":500,"d":"500.00 €"}},{"$f":"SUM(ΔιακυμάνσειςΕξόδωνΜάρκετινγκ[[#This Row],[Ιαν]:[Δεκ]])","v":{"v":3000,"d":"3,000.00 €"}}]
[null,"Ενημερώσεις τοποθεσίας Web",{"$f":"INDEX(ΠρογραμματισμέναΈξοδαΜάρκετινγκ[],MATCH(INDEX(ΔιακυμάνσειςΕξόδωνΜάρκετινγκ[],ROW()-ROW(ΔιακυμάνσειςΕξόδωνΜάρκετινγκ[[#Headers],[Ιαν]]),1),INDEX(ΠρογραμματισμέναΈξοδαΜάρκετινγκ[],,1),0),MATCH(ΔιακυμάνσειςΕξόδωνΜάρκετινγκ[[#Headers],[Ιαν]],ΠρογραμματισμέναΈξοδαΜάρκετινγκ[#Headers],0))-INDEX(ΠραγματικάΈξοδαΜάρκετινγκ[],MATCH(INDEX(ΔιακυμάνσειςΕξόδωνΜάρκετινγκ[],ROW()-ROW(ΔιακυμάνσειςΕξόδωνΜάρκετινγκ[[#Headers],[Ιαν]]),1),INDEX(ΠρογραμματισμέναΈξοδαΜάρκετινγκ[],,1),0),MATCH(ΔιακυμάνσειςΕξόδωνΜάρκετινγκ[[#Headers],[Ιαν]],ΠραγματικάΈξοδαΜάρκετινγκ[#Headers],0))","v":{"v":0,"d":"0.00 €"}},{"$f":"INDEX(ΠρογραμματισμέναΈξοδαΜάρκετινγκ[],MATCH(INDEX(ΔιακυμάνσειςΕξόδωνΜάρκετινγκ[],ROW()-ROW(ΔιακυμάνσειςΕξόδωνΜάρκετινγκ[[#Headers],[Φεβ]]),1),INDEX(ΠρογραμματισμέναΈξοδαΜάρκετινγκ[],,1),0),MATCH(ΔιακυμάνσειςΕξόδωνΜάρκετινγκ[[#Headers],[Φεβ]],ΠρογραμματισμέναΈξοδαΜάρκετινγκ[#Headers],0))-INDEX(ΠραγματικάΈξοδαΜάρκετινγκ[],MATCH(INDEX(ΔιακυμάνσειςΕξόδωνΜάρκετινγκ[],ROW()-ROW(ΔιακυμάνσειςΕξόδωνΜάρκετινγκ[[#Headers],[Φεβ]]),1),INDEX(ΠρογραμματισμέναΈξοδαΜάρκετινγκ[],,1),0),MATCH(ΔιακυμάνσειςΕξόδωνΜάρκετινγκ[[#Headers],[Φεβ]],ΠραγματικάΈξοδαΜάρκετινγκ[#Headers],0))","v":{"v":0,"d":"0.00 €"}},{"$f":"INDEX(ΠρογραμματισμέναΈξοδαΜάρκετινγκ[],MATCH(INDEX(ΔιακυμάνσειςΕξόδωνΜάρκετινγκ[],ROW()-ROW(ΔιακυμάνσειςΕξόδωνΜάρκετινγκ[[#Headers],[Μάρ]]),1),INDEX(ΠρογραμματισμέναΈξοδαΜάρκετινγκ[],,1),0),MATCH(ΔιακυμάνσειςΕξόδωνΜάρκετινγκ[[#Headers],[Μάρ]],ΠρογραμματισμέναΈξοδαΜάρκετινγκ[#Headers],0))-INDEX(ΠραγματικάΈξοδαΜάρκετινγκ[],MATCH(INDEX(ΔιακυμάνσειςΕξόδωνΜάρκετινγκ[],ROW()-ROW(ΔιακυμάνσειςΕξόδωνΜάρκετινγκ[[#Headers],[Μάρ]]),1),INDEX(ΠρογραμματισμέναΈξοδαΜάρκετινγκ[],,1),0),MATCH(ΔιακυμάνσειςΕξόδωνΜάρκετινγκ[[#Headers],[Μάρ]],ΠραγματικάΈξοδαΜάρκετινγκ[#Headers],0))","v":{"v":0,"d":"0.00 €"}},{"$f":"INDEX(ΠρογραμματισμέναΈξοδαΜάρκετινγκ[],MATCH(INDEX(ΔιακυμάνσειςΕξόδωνΜάρκετινγκ[],ROW()-ROW(ΔιακυμάνσειςΕξόδωνΜάρκετινγκ[[#Headers],[Απρ]]),1),INDEX(ΠρογραμματισμέναΈξοδαΜάρκετινγκ[],,1),0),MATCH(ΔιακυμάνσειςΕξόδωνΜάρκετινγκ[[#Headers],[Απρ]],ΠρογραμματισμέναΈξοδαΜάρκετινγκ[#Headers],0))-INDEX(ΠραγματικάΈξοδαΜάρκετινγκ[],MATCH(INDEX(ΔιακυμάνσειςΕξόδωνΜάρκετινγκ[],ROW()-ROW(ΔιακυμάνσειςΕξόδωνΜάρκετινγκ[[#Headers],[Απρ]]),1),INDEX(ΠρογραμματισμέναΈξοδαΜάρκετινγκ[],,1),0),MATCH(ΔιακυμάνσειςΕξόδωνΜάρκετινγκ[[#Headers],[Απρ]],ΠραγματικάΈξοδαΜάρκετινγκ[#Headers],0))","v":{"v":0,"d":"0.00 €"}},{"$f":"INDEX(ΠρογραμματισμέναΈξοδαΜάρκετινγκ[],MATCH(INDEX(ΔιακυμάνσειςΕξόδωνΜάρκετινγκ[],ROW()-ROW(ΔιακυμάνσειςΕξόδωνΜάρκετινγκ[[#Headers],[Μάι]]),1),INDEX(ΠρογραμματισμέναΈξοδαΜάρκετινγκ[],,1),0),MATCH(ΔιακυμάνσειςΕξόδωνΜάρκετινγκ[[#Headers],[Μάι]],ΠρογραμματισμέναΈξοδαΜάρκετινγκ[#Headers],0))-INDEX(ΠραγματικάΈξοδαΜάρκετινγκ[],MATCH(INDEX(ΔιακυμάνσειςΕξόδωνΜάρκετινγκ[],ROW()-ROW(ΔιακυμάνσειςΕξόδωνΜάρκετινγκ[[#Headers],[Μάι]]),1),INDEX(ΠρογραμματισμέναΈξοδαΜάρκετινγκ[],,1),0),MATCH(ΔιακυμάνσειςΕξόδωνΜάρκετινγκ[[#Headers],[Μάι]],ΠραγματικάΈξοδαΜάρκετινγκ[#Headers],0))","v":{"v":0,"d":"0.00 €"}},{"$f":"INDEX(ΠρογραμματισμέναΈξοδαΜάρκετινγκ[],MATCH(INDEX(ΔιακυμάνσειςΕξόδωνΜάρκετινγκ[],ROW()-ROW(ΔιακυμάνσειςΕξόδωνΜάρκετινγκ[[#Headers],[Ιούν]]),1),INDEX(ΠρογραμματισμέναΈξοδαΜάρκετινγκ[],,1),0),MATCH(ΔιακυμάνσειςΕξόδωνΜάρκετινγκ[[#Headers],[Ιούν]],ΠρογραμματισμέναΈξοδαΜάρκετινγκ[#Headers],0))-INDEX(ΠραγματικάΈξοδαΜάρκετινγκ[],MATCH(INDEX(ΔιακυμάνσειςΕξόδωνΜάρκετινγκ[],ROW()-ROW(ΔιακυμάνσειςΕξόδωνΜάρκετινγκ[[#Headers],[Ιούν]]),1),INDEX(ΠρογραμματισμέναΈξοδαΜάρκετινγκ[],,1),0),MATCH(ΔιακυμάνσειςΕξόδωνΜάρκετινγκ[[#Headers],[Ιούν]],ΠραγματικάΈξοδαΜάρκετινγκ[#Headers],0))","v":{"v":-500,"d":"-500.00 €"}},{"$f":"INDEX(ΠρογραμματισμέναΈξοδαΜάρκετινγκ[],MATCH(INDEX(ΔιακυμάνσειςΕξόδωνΜάρκετινγκ[],ROW()-ROW(ΔιακυμάνσειςΕξόδωνΜάρκετινγκ[[#Headers],[Ιούλ]]),1),INDEX(ΠρογραμματισμέναΈξοδαΜάρκετινγκ[],,1),0),MATCH(ΔιακυμάνσειςΕξόδωνΜάρκετινγκ[[#Headers],[Ιούλ]],ΠρογραμματισμέναΈξοδαΜάρκετινγκ[#Headers],0))-INDEX(ΠραγματικάΈξοδαΜάρκετινγκ[],MATCH(INDEX(ΔιακυμάνσειςΕξόδωνΜάρκετινγκ[],ROW()-ROW(ΔιακυμάνσειςΕξόδωνΜάρκετινγκ[[#Headers],[Ιούλ]]),1),INDEX(ΠρογραμματισμέναΈξοδαΜάρκετινγκ[],,1),0),MATCH(ΔιακυμάνσειςΕξόδωνΜάρκετινγκ[[#Headers],[Ιούλ]],ΠραγματικάΈξοδαΜάρκετινγκ[#Headers],0))","v":{"v":200,"d":"200.00 €"}},{"$f":"INDEX(ΠρογραμματισμέναΈξοδαΜάρκετινγκ[],MATCH(INDEX(ΔιακυμάνσειςΕξόδωνΜάρκετινγκ[],ROW()-ROW(ΔιακυμάνσειςΕξόδωνΜάρκετινγκ[[#Headers],[Αύγ]]),1),INDEX(ΠρογραμματισμέναΈξοδαΜάρκετινγκ[],,1),0),MATCH(ΔιακυμάνσειςΕξόδωνΜάρκετινγκ[[#Headers],[Αύγ]],ΠρογραμματισμέναΈξοδαΜάρκετινγκ[#Headers],0))-INDEX(ΠραγματικάΈξοδαΜάρκετινγκ[],MATCH(INDEX(ΔιακυμάνσειςΕξόδωνΜάρκετινγκ[],ROW()-ROW(ΔιακυμάνσειςΕξόδωνΜάρκετινγκ[[#Headers],[Αύγ]]),1),INDEX(ΠρογραμματισμέναΈξοδαΜάρκετινγκ[],,1),0),MATCH(ΔιακυμάνσειςΕξόδωνΜάρκετινγκ[[#Headers],[Αύγ]],ΠραγματικάΈξοδαΜάρκετινγκ[#Headers],0))","v":{"v":200,"d":"200.00 €"}},{"$f":"INDEX(ΠρογραμματισμέναΈξοδαΜάρκετινγκ[],MATCH(INDEX(ΔιακυμάνσειςΕξόδωνΜάρκετινγκ[],ROW()-ROW(ΔιακυμάνσειςΕξόδωνΜάρκετινγκ[[#Headers],[Σεπ]]),1),INDEX(ΠρογραμματισμέναΈξοδαΜάρκετινγκ[],,1),0),MATCH(ΔιακυμάνσειςΕξόδωνΜάρκετινγκ[[#Headers],[Σεπ]],ΠρογραμματισμέναΈξοδαΜάρκετινγκ[#Headers],0))-INDEX(ΠραγματικάΈξοδαΜάρκετινγκ[],MATCH(INDEX(ΔιακυμάνσειςΕξόδωνΜάρκετινγκ[],ROW()-ROW(ΔιακυμάνσειςΕξόδωνΜάρκετινγκ[[#Headers],[Σεπ]]),1),INDEX(ΠρογραμματισμέναΈξοδαΜάρκετινγκ[],,1),0),MATCH(ΔιακυμάνσειςΕξόδωνΜάρκετινγκ[[#Headers],[Σεπ]],ΠραγματικάΈξοδαΜάρκετινγκ[#Headers],0))","v":{"v":200,"d":"200.00 €"}},{"$f":"INDEX(ΠρογραμματισμέναΈξοδαΜάρκετινγκ[],MATCH(INDEX(ΔιακυμάνσειςΕξόδωνΜάρκετινγκ[],ROW()-ROW(ΔιακυμάνσειςΕξόδωνΜάρκετινγκ[[#Headers],[Οκτ]]),1),INDEX(ΠρογραμματισμέναΈξοδαΜάρκετινγκ[],,1),0),MATCH(ΔιακυμάνσειςΕξόδωνΜάρκετινγκ[[#Headers],[Οκτ]],ΠρογραμματισμέναΈξοδαΜάρκετινγκ[#Headers],0))-INDEX(ΠραγματικάΈξοδαΜάρκετινγκ[],MATCH(INDEX(ΔιακυμάνσειςΕξόδωνΜάρκετινγκ[],ROW()-ROW(ΔιακυμάνσειςΕξόδωνΜάρκετινγκ[[#Headers],[Οκτ]]),1),INDEX(ΠρογραμματισμέναΈξοδαΜάρκετινγκ[],,1),0),MATCH(ΔιακυμάνσειςΕξόδωνΜάρκετινγκ[[#Headers],[Οκτ]],ΠραγματικάΈξοδαΜάρκετινγκ[#Headers],0))","v":{"v":200,"d":"200.00 €"}},{"$f":"INDEX(ΠρογραμματισμέναΈξοδαΜάρκετινγκ[],MATCH(INDEX(ΔιακυμάνσειςΕξόδωνΜάρκετινγκ[],ROW()-ROW(ΔιακυμάνσειςΕξόδωνΜάρκετινγκ[[#Headers],[Νοε]]),1),INDEX(ΠρογραμματισμέναΈξοδαΜάρκετινγκ[],,1),0),MATCH(ΔιακυμάνσειςΕξόδωνΜάρκετινγκ[[#Headers],[Νοε]],ΠρογραμματισμέναΈξοδαΜάρκετινγκ[#Headers],0))-INDEX(ΠραγματικάΈξοδαΜάρκετινγκ[],MATCH(INDEX(ΔιακυμάνσειςΕξόδωνΜάρκετινγκ[],ROW()-ROW(ΔιακυμάνσειςΕξόδωνΜάρκετινγκ[[#Headers],[Νοε]]),1),INDEX(ΠρογραμματισμέναΈξοδαΜάρκετινγκ[],,1),0),MATCH(ΔιακυμάνσειςΕξόδωνΜάρκετινγκ[[#Headers],[Νοε]],ΠραγματικάΈξοδαΜάρκετινγκ[#Headers],0))","v":{"v":200,"d":"200.00 €"}},{"$f":"INDEX(ΠρογραμματισμέναΈξοδαΜάρκετινγκ[],MATCH(INDEX(ΔιακυμάνσειςΕξόδωνΜάρκετινγκ[],ROW()-ROW(ΔιακυμάνσειςΕξόδωνΜάρκετινγκ[[#Headers],[Δεκ]]),1),INDEX(ΠρογραμματισμέναΈξοδαΜάρκετινγκ[],,1),0),MATCH(ΔιακυμάνσειςΕξόδωνΜάρκετινγκ[[#Headers],[Δεκ]],ΠρογραμματισμέναΈξοδαΜάρκετινγκ[#Headers],0))-INDEX(ΠραγματικάΈξοδαΜάρκετινγκ[],MATCH(INDEX(ΔιακυμάνσειςΕξόδωνΜάρκετινγκ[],ROW()-ROW(ΔιακυμάνσειςΕξόδωνΜάρκετινγκ[[#Headers],[Δεκ]]),1),INDEX(ΠρογραμματισμέναΈξοδαΜάρκετινγκ[],,1),0),MATCH(ΔιακυμάνσειςΕξόδωνΜάρκετινγκ[[#Headers],[Δεκ]],ΠραγματικάΈξοδαΜάρκετινγκ[#Headers],0))","v":{"v":1000,"d":"1,000.00 €"}},{"$f":"SUM(ΔιακυμάνσειςΕξόδωνΜάρκετινγκ[[#This Row],[Ιαν]:[Δεκ]])","v":{"v":1500,"d":"1,500.00 €"}}]
[null,"Προετοιμασία εντύπων",{"$f":"INDEX(ΠρογραμματισμέναΈξοδαΜάρκετινγκ[],MATCH(INDEX(ΔιακυμάνσειςΕξόδωνΜάρκετινγκ[],ROW()-ROW(ΔιακυμάνσειςΕξόδωνΜάρκετινγκ[[#Headers],[Ιαν]]),1),INDEX(ΠρογραμματισμέναΈξοδαΜάρκετινγκ[],,1),0),MATCH(ΔιακυμάνσειςΕξόδωνΜάρκετινγκ[[#Headers],[Ιαν]],ΠρογραμματισμέναΈξοδαΜάρκετινγκ[#Headers],0))-INDEX(ΠραγματικάΈξοδαΜάρκετινγκ[],MATCH(INDEX(ΔιακυμάνσειςΕξόδωνΜάρκετινγκ[],ROW()-ROW(ΔιακυμάνσειςΕξόδωνΜάρκετινγκ[[#Headers],[Ιαν]]),1),INDEX(ΠρογραμματισμέναΈξοδαΜάρκετινγκ[],,1),0),MATCH(ΔιακυμάνσειςΕξόδωνΜάρκετινγκ[[#Headers],[Ιαν]],ΠραγματικάΈξοδαΜάρκετινγκ[#Headers],0))","v":{"v":200,"d":"200.00 €"}},{"$f":"INDEX(ΠρογραμματισμέναΈξοδαΜάρκετινγκ[],MATCH(INDEX(ΔιακυμάνσειςΕξόδωνΜάρκετινγκ[],ROW()-ROW(ΔιακυμάνσειςΕξόδωνΜάρκετινγκ[[#Headers],[Φεβ]]),1),INDEX(ΠρογραμματισμέναΈξοδαΜάρκετινγκ[],,1),0),MATCH(ΔιακυμάνσειςΕξόδωνΜάρκετινγκ[[#Headers],[Φεβ]],ΠρογραμματισμέναΈξοδαΜάρκετινγκ[#Headers],0))-INDEX(ΠραγματικάΈξοδαΜάρκετινγκ[],MATCH(INDEX(ΔιακυμάνσειςΕξόδωνΜάρκετινγκ[],ROW()-ROW(ΔιακυμάνσειςΕξόδωνΜάρκετινγκ[[#Headers],[Φεβ]]),1),INDEX(ΠρογραμματισμέναΈξοδαΜάρκετινγκ[],,1),0),MATCH(ΔιακυμάνσειςΕξόδωνΜάρκετινγκ[[#Headers],[Φεβ]],ΠραγματικάΈξοδαΜάρκετινγκ[#Headers],0))","v":{"v":0,"d":"0.00 €"}},{"$f":"INDEX(ΠρογραμματισμέναΈξοδαΜάρκετινγκ[],MATCH(INDEX(ΔιακυμάνσειςΕξόδωνΜάρκετινγκ[],ROW()-ROW(ΔιακυμάνσειςΕξόδωνΜάρκετινγκ[[#Headers],[Μάρ]]),1),INDEX(ΠρογραμματισμέναΈξοδαΜάρκετινγκ[],,1),0),MATCH(ΔιακυμάνσειςΕξόδωνΜάρκετινγκ[[#Headers],[Μάρ]],ΠρογραμματισμέναΈξοδαΜάρκετινγκ[#Headers],0))-INDEX(ΠραγματικάΈξοδαΜάρκετινγκ[],MATCH(INDEX(ΔιακυμάνσειςΕξόδωνΜάρκετινγκ[],ROW()-ROW(ΔιακυμάνσειςΕξόδωνΜάρκετινγκ[[#Headers],[Μάρ]]),1),INDEX(ΠρογραμματισμέναΈξοδαΜάρκετινγκ[],,1),0),MATCH(ΔιακυμάνσειςΕξόδωνΜάρκετινγκ[[#Headers],[Μάρ]],ΠραγματικάΈξοδαΜάρκετινγκ[#Headers],0))","v":{"v":0,"d":"0.00 €"}},{"$f":"INDEX(ΠρογραμματισμέναΈξοδαΜάρκετινγκ[],MATCH(INDEX(ΔιακυμάνσειςΕξόδωνΜάρκετινγκ[],ROW()-ROW(ΔιακυμάνσειςΕξόδωνΜάρκετινγκ[[#Headers],[Απρ]]),1),INDEX(ΠρογραμματισμέναΈξοδαΜάρκετινγκ[],,1),0),MATCH(ΔιακυμάνσειςΕξόδωνΜάρκετινγκ[[#Headers],[Απρ]],ΠρογραμματισμέναΈξοδαΜάρκετινγκ[#Headers],0))-INDEX(ΠραγματικάΈξοδαΜάρκετινγκ[],MATCH(INDEX(ΔιακυμάνσειςΕξόδωνΜάρκετινγκ[],ROW()-ROW(ΔιακυμάνσειςΕξόδωνΜάρκετινγκ[[#Headers],[Απρ]]),1),INDEX(ΠρογραμματισμέναΈξοδαΜάρκετινγκ[],,1),0),MATCH(ΔιακυμάνσειςΕξόδωνΜάρκετινγκ[[#Headers],[Απρ]],ΠραγματικάΈξοδαΜάρκετινγκ[#Headers],0))","v":{"v":-500,"d":"-500.00 €"}},{"$f":"INDEX(ΠρογραμματισμέναΈξοδαΜάρκετινγκ[],MATCH(INDEX(ΔιακυμάνσειςΕξόδωνΜάρκετινγκ[],ROW()-ROW(ΔιακυμάνσειςΕξόδωνΜάρκετινγκ[[#Headers],[Μάι]]),1),INDEX(ΠρογραμματισμέναΈξοδαΜάρκετινγκ[],,1),0),MATCH(ΔιακυμάνσειςΕξόδωνΜάρκετινγκ[[#Headers],[Μάι]],ΠρογραμματισμέναΈξοδαΜάρκετινγκ[#Headers],0))-INDEX(ΠραγματικάΈξοδαΜάρκετινγκ[],MATCH(INDEX(ΔιακυμάνσειςΕξόδωνΜάρκετινγκ[],ROW()-ROW(ΔιακυμάνσειςΕξόδωνΜάρκετινγκ[[#Headers],[Μάι]]),1),INDEX(ΠρογραμματισμέναΈξοδαΜάρκετινγκ[],,1),0),MATCH(ΔιακυμάνσειςΕξόδωνΜάρκετινγκ[[#Headers],[Μάι]],ΠραγματικάΈξοδαΜάρκετινγκ[#Headers],0))","v":{"v":0,"d":"0.00 €"}},{"$f":"INDEX(ΠρογραμματισμέναΈξοδαΜάρκετινγκ[],MATCH(INDEX(ΔιακυμάνσειςΕξόδωνΜάρκετινγκ[],ROW()-ROW(ΔιακυμάνσειςΕξόδωνΜάρκετινγκ[[#Headers],[Ιούν]]),1),INDEX(ΠρογραμματισμέναΈξοδαΜάρκετινγκ[],,1),0),MATCH(ΔιακυμάνσειςΕξόδωνΜάρκετινγκ[[#Headers],[Ιούν]],ΠρογραμματισμέναΈξοδαΜάρκετινγκ[#Headers],0))-INDEX(ΠραγματικάΈξοδαΜάρκετινγκ[],MATCH(INDEX(ΔιακυμάνσειςΕξόδωνΜάρκετινγκ[],ROW()-ROW(ΔιακυμάνσειςΕξόδωνΜάρκετινγκ[[#Headers],[Ιούν]]),1),INDEX(ΠρογραμματισμέναΈξοδαΜάρκετινγκ[],,1),0),MATCH(ΔιακυμάνσειςΕξόδωνΜάρκετινγκ[[#Headers],[Ιούν]],ΠραγματικάΈξοδαΜάρκετινγκ[#Headers],0))","v":{"v":0,"d":"0.00 €"}},{"$f":"INDEX(ΠρογραμματισμέναΈξοδαΜάρκετινγκ[],MATCH(INDEX(ΔιακυμάνσειςΕξόδωνΜάρκετινγκ[],ROW()-ROW(ΔιακυμάνσειςΕξόδωνΜάρκετινγκ[[#Headers],[Ιούλ]]),1),INDEX(ΠρογραμματισμέναΈξοδαΜάρκετινγκ[],,1),0),MATCH(ΔιακυμάνσειςΕξόδωνΜάρκετινγκ[[#Headers],[Ιούλ]],ΠρογραμματισμέναΈξοδαΜάρκετινγκ[#Headers],0))-INDEX(ΠραγματικάΈξοδαΜάρκετινγκ[],MATCH(INDEX(ΔιακυμάνσειςΕξόδωνΜάρκετινγκ[],ROW()-ROW(ΔιακυμάνσειςΕξόδωνΜάρκετινγκ[[#Headers],[Ιούλ]]),1),INDEX(ΠρογραμματισμέναΈξοδαΜάρκετινγκ[],,1),0),MATCH(ΔιακυμάνσειςΕξόδωνΜάρκετινγκ[[#Headers],[Ιούλ]],ΠραγματικάΈξοδαΜάρκετινγκ[#Headers],0))","v":{"v":5000,"d":"5,000.00 €"}},{"$f":"INDEX(ΠρογραμματισμέναΈξοδαΜάρκετινγκ[],MATCH(INDEX(ΔιακυμάνσειςΕξόδωνΜάρκετινγκ[],ROW()-ROW(ΔιακυμάνσειςΕξόδωνΜάρκετινγκ[[#Headers],[Αύγ]]),1),INDEX(ΠρογραμματισμέναΈξοδαΜάρκετινγκ[],,1),0),MATCH(ΔιακυμάνσειςΕξόδωνΜάρκετινγκ[[#Headers],[Αύγ]],ΠρογραμματισμέναΈξοδαΜάρκετινγκ[#Headers],0))-INDEX(ΠραγματικάΈξοδαΜάρκετινγκ[],MATCH(INDEX(ΔιακυμάνσειςΕξόδωνΜάρκετινγκ[],ROW()-ROW(ΔιακυμάνσειςΕξόδωνΜάρκετινγκ[[#Headers],[Αύγ]]),1),INDEX(ΠρογραμματισμέναΈξοδαΜάρκετινγκ[],,1),0),MATCH(ΔιακυμάνσειςΕξόδωνΜάρκετινγκ[[#Headers],[Αύγ]],ΠραγματικάΈξοδαΜάρκετινγκ[#Headers],0))","v":{"v":0,"d":"0.00 €"}},{"$f":"INDEX(ΠρογραμματισμέναΈξοδαΜάρκετινγκ[],MATCH(INDEX(ΔιακυμάνσειςΕξόδωνΜάρκετινγκ[],ROW()-ROW(ΔιακυμάνσειςΕξόδωνΜάρκετινγκ[[#Headers],[Σεπ]]),1),INDEX(ΠρογραμματισμέναΈξοδαΜάρκετινγκ[],,1),0),MATCH(ΔιακυμάνσειςΕξόδωνΜάρκετινγκ[[#Headers],[Σεπ]],ΠρογραμματισμέναΈξοδαΜάρκετινγκ[#Headers],0))-INDEX(ΠραγματικάΈξοδαΜάρκετινγκ[],MATCH(INDEX(ΔιακυμάνσειςΕξόδωνΜάρκετινγκ[],ROW()-ROW(ΔιακυμάνσειςΕξόδωνΜάρκετινγκ[[#Headers],[Σεπ]]),1),INDEX(ΠρογραμματισμέναΈξοδαΜάρκετινγκ[],,1),0),MATCH(ΔιακυμάνσειςΕξόδωνΜάρκετινγκ[[#Headers],[Σεπ]],ΠραγματικάΈξοδαΜάρκετινγκ[#Headers],0))","v":{"v":0,"d":"0.00 €"}},{"$f":"INDEX(ΠρογραμματισμέναΈξοδαΜάρκετινγκ[],MATCH(INDEX(ΔιακυμάνσειςΕξόδωνΜάρκετινγκ[],ROW()-ROW(ΔιακυμάνσειςΕξόδωνΜάρκετινγκ[[#Headers],[Οκτ]]),1),INDEX(ΠρογραμματισμέναΈξοδαΜάρκετινγκ[],,1),0),MATCH(ΔιακυμάνσειςΕξόδωνΜάρκετινγκ[[#Headers],[Οκτ]],ΠρογραμματισμέναΈξοδαΜάρκετινγκ[#Headers],0))-INDEX(ΠραγματικάΈξοδαΜάρκετινγκ[],MATCH(INDEX(ΔιακυμάνσειςΕξόδωνΜάρκετινγκ[],ROW()-ROW(ΔιακυμάνσειςΕξόδωνΜάρκετινγκ[[#Headers],[Οκτ]]),1),INDEX(ΠρογραμματισμέναΈξοδαΜάρκετινγκ[],,1),0),MATCH(ΔιακυμάνσειςΕξόδωνΜάρκετινγκ[[#Headers],[Οκτ]],ΠραγματικάΈξοδαΜάρκετινγκ[#Headers],0))","v":{"v":5000,"d":"5,000.00 €"}},{"$f":"INDEX(ΠρογραμματισμέναΈξοδαΜάρκετινγκ[],MATCH(INDEX(ΔιακυμάνσειςΕξόδωνΜάρκετινγκ[],ROW()-ROW(ΔιακυμάνσειςΕξόδωνΜάρκετινγκ[[#Headers],[Νοε]]),1),INDEX(ΠρογραμματισμέναΈξοδαΜάρκετινγκ[],,1),0),MATCH(ΔιακυμάνσειςΕξόδωνΜάρκετινγκ[[#Headers],[Νοε]],ΠρογραμματισμέναΈξοδαΜάρκετινγκ[#Headers],0))-INDEX(ΠραγματικάΈξοδαΜάρκετινγκ[],MATCH(INDEX(ΔιακυμάνσειςΕξόδωνΜάρκετινγκ[],ROW()-ROW(ΔιακυμάνσειςΕξόδωνΜάρκετινγκ[[#Headers],[Νοε]]),1),INDEX(ΠρογραμματισμέναΈξοδαΜάρκετινγκ[],,1),0),MATCH(ΔιακυμάνσειςΕξόδωνΜάρκετινγκ[[#Headers],[Νοε]],ΠραγματικάΈξοδαΜάρκετινγκ[#Headers],0))","v":{"v":0,"d":"0.00 €"}},{"$f":"INDEX(ΠρογραμματισμέναΈξοδαΜάρκετινγκ[],MATCH(INDEX(ΔιακυμάνσειςΕξόδωνΜάρκετινγκ[],ROW()-ROW(ΔιακυμάνσειςΕξόδωνΜάρκετινγκ[[#Headers],[Δεκ]]),1),INDEX(ΠρογραμματισμέναΈξοδαΜάρκετινγκ[],,1),0),MATCH(ΔιακυμάνσειςΕξόδωνΜάρκετινγκ[[#Headers],[Δεκ]],ΠρογραμματισμέναΈξοδαΜάρκετινγκ[#Headers],0))-INDEX(ΠραγματικάΈξοδαΜάρκετινγκ[],MATCH(INDEX(ΔιακυμάνσειςΕξόδωνΜάρκετινγκ[],ROW()-ROW(ΔιακυμάνσειςΕξόδωνΜάρκετινγκ[[#Headers],[Δεκ]]),1),INDEX(ΠρογραμματισμέναΈξοδαΜάρκετινγκ[],,1),0),MATCH(ΔιακυμάνσειςΕξόδωνΜάρκετινγκ[[#Headers],[Δεκ]],ΠραγματικάΈξοδαΜάρκετινγκ[#Headers],0))","v":{"v":0,"d":"0.00 €"}},{"$f":"SUM(ΔιακυμάνσειςΕξόδωνΜάρκετινγκ[[#This Row],[Ιαν]:[Δεκ]])","v":{"v":9700,"d":"9,700.00 €"}}]
[null,"Εκτύπωση εντύπων",{"$f":"INDEX(ΠρογραμματισμέναΈξοδαΜάρκετινγκ[],MATCH(INDEX(ΔιακυμάνσειςΕξόδωνΜάρκετινγκ[],ROW()-ROW(ΔιακυμάνσειςΕξόδωνΜάρκετινγκ[[#Headers],[Ιαν]]),1),INDEX(ΠρογραμματισμέναΈξοδαΜάρκετινγκ[],,1),0),MATCH(ΔιακυμάνσειςΕξόδωνΜάρκετινγκ[[#Headers],[Ιαν]],ΠρογραμματισμέναΈξοδαΜάρκετινγκ[#Headers],0))-INDEX(ΠραγματικάΈξοδαΜάρκετινγκ[],MATCH(INDEX(ΔιακυμάνσειςΕξόδωνΜάρκετινγκ[],ROW()-ROW(ΔιακυμάνσειςΕξόδωνΜάρκετινγκ[[#Headers],[Ιαν]]),1),INDEX(ΠρογραμματισμέναΈξοδαΜάρκετινγκ[],,1),0),MATCH(ΔιακυμάνσειςΕξόδωνΜάρκετινγκ[[#Headers],[Ιαν]],ΠραγματικάΈξοδαΜάρκετινγκ[#Headers],0))","v":{"v":100,"d":"100.00 €"}},{"$f":"INDEX(ΠρογραμματισμέναΈξοδαΜάρκετινγκ[],MATCH(INDEX(ΔιακυμάνσειςΕξόδωνΜάρκετινγκ[],ROW()-ROW(ΔιακυμάνσειςΕξόδωνΜάρκετινγκ[[#Headers],[Φεβ]]),1),INDEX(ΠρογραμματισμέναΈξοδαΜάρκετινγκ[],,1),0),MATCH(ΔιακυμάνσειςΕξόδωνΜάρκετινγκ[[#Headers],[Φεβ]],ΠρογραμματισμέναΈξοδαΜάρκετινγκ[#Headers],0))-INDEX(ΠραγματικάΈξοδαΜάρκετινγκ[],MATCH(INDEX(ΔιακυμάνσειςΕξόδωνΜάρκετινγκ[],ROW()-ROW(ΔιακυμάνσειςΕξόδωνΜάρκετινγκ[[#Headers],[Φεβ]]),1),INDEX(ΠρογραμματισμέναΈξοδαΜάρκετινγκ[],,1),0),MATCH(ΔιακυμάνσειςΕξόδωνΜάρκετινγκ[[#Headers],[Φεβ]],ΠραγματικάΈξοδαΜάρκετινγκ[#Headers],0))","v":{"v":-300,"d":"-300.00 €"}},{"$f":"INDEX(ΠρογραμματισμέναΈξοδαΜάρκετινγκ[],MATCH(INDEX(ΔιακυμάνσειςΕξόδωνΜάρκετινγκ[],ROW()-ROW(ΔιακυμάνσειςΕξόδωνΜάρκετινγκ[[#Headers],[Μάρ]]),1),INDEX(ΠρογραμματισμέναΈξοδαΜάρκετινγκ[],,1),0),MATCH(ΔιακυμάνσειςΕξόδωνΜάρκετινγκ[[#Headers],[Μάρ]],ΠρογραμματισμέναΈξοδαΜάρκετινγκ[#Headers],0))-INDEX(ΠραγματικάΈξοδαΜάρκετινγκ[],MATCH(INDEX(ΔιακυμάνσειςΕξόδωνΜάρκετινγκ[],ROW()-ROW(ΔιακυμάνσειςΕξόδωνΜάρκετινγκ[[#Headers],[Μάρ]]),1),INDEX(ΠρογραμματισμέναΈξοδαΜάρκετινγκ[],,1),0),MATCH(ΔιακυμάνσειςΕξόδωνΜάρκετινγκ[[#Headers],[Μάρ]],ΠραγματικάΈξοδαΜάρκετινγκ[#Headers],0))","v":{"v":100,"d":"100.00 €"}},{"$f":"INDEX(ΠρογραμματισμέναΈξοδαΜάρκετινγκ[],MATCH(INDEX(ΔιακυμάνσειςΕξόδωνΜάρκετινγκ[],ROW()-ROW(ΔιακυμάνσειςΕξόδωνΜάρκετινγκ[[#Headers],[Απρ]]),1),INDEX(ΠρογραμματισμέναΈξοδαΜάρκετινγκ[],,1),0),MATCH(ΔιακυμάνσειςΕξόδωνΜάρκετινγκ[[#Headers],[Απρ]],ΠρογραμματισμέναΈξοδαΜάρκετινγκ[#Headers],0))-INDEX(ΠραγματικάΈξοδαΜάρκετινγκ[],MATCH(INDEX(ΔιακυμάνσειςΕξόδωνΜάρκετινγκ[],ROW()-ROW(ΔιακυμάνσειςΕξόδωνΜάρκετινγκ[[#Headers],[Απρ]]),1),INDEX(ΠρογραμματισμέναΈξοδαΜάρκετινγκ[],,1),0),MATCH(ΔιακυμάνσειςΕξόδωνΜάρκετινγκ[[#Headers],[Απρ]],ΠραγματικάΈξοδαΜάρκετινγκ[#Headers],0))","v":{"v":100,"d":"100.00 €"}},{"$f":"INDEX(ΠρογραμματισμέναΈξοδαΜάρκετινγκ[],MATCH(INDEX(ΔιακυμάνσειςΕξόδωνΜάρκετινγκ[],ROW()-ROW(ΔιακυμάνσειςΕξόδωνΜάρκετινγκ[[#Headers],[Μάι]]),1),INDEX(ΠρογραμματισμέναΈξοδαΜάρκετινγκ[],,1),0),MATCH(ΔιακυμάνσειςΕξόδωνΜάρκετινγκ[[#Headers],[Μάι]],ΠρογραμματισμέναΈξοδαΜάρκετινγκ[#Headers],0))-INDEX(ΠραγματικάΈξοδαΜάρκετινγκ[],MATCH(INDEX(ΔιακυμάνσειςΕξόδωνΜάρκετινγκ[],ROW()-ROW(ΔιακυμάνσειςΕξόδωνΜάρκετινγκ[[#Headers],[Μάι]]),1),INDEX(ΠρογραμματισμέναΈξοδαΜάρκετινγκ[],,1),0),MATCH(ΔιακυμάνσειςΕξόδωνΜάρκετινγκ[[#Headers],[Μάι]],ΠραγματικάΈξοδαΜάρκετινγκ[#Headers],0))","v":{"v":-400,"d":"-400.00 €"}},{"$f":"INDEX(ΠρογραμματισμέναΈξοδαΜάρκετινγκ[],MATCH(INDEX(ΔιακυμάνσειςΕξόδωνΜάρκετινγκ[],ROW()-ROW(ΔιακυμάνσειςΕξόδωνΜάρκετινγκ[[#Headers],[Ιούν]]),1),INDEX(ΠρογραμματισμέναΈξοδαΜάρκετινγκ[],,1),0),MATCH(ΔιακυμάνσειςΕξόδωνΜάρκετινγκ[[#Headers],[Ιούν]],ΠρογραμματισμέναΈξοδαΜάρκετινγκ[#Headers],0))-INDEX(ΠραγματικάΈξοδαΜάρκετινγκ[],MATCH(INDEX(ΔιακυμάνσειςΕξόδωνΜάρκετινγκ[],ROW()-ROW(ΔιακυμάνσειςΕξόδωνΜάρκετινγκ[[#Headers],[Ιούν]]),1),INDEX(ΠρογραμματισμέναΈξοδαΜάρκετινγκ[],,1),0),MATCH(ΔιακυμάνσειςΕξόδωνΜάρκετινγκ[[#Headers],[Ιούν]],ΠραγματικάΈξοδαΜάρκετινγκ[#Headers],0))","v":{"v":20,"d":"20.00 €"}},{"$f":"INDEX(ΠρογραμματισμέναΈξοδαΜάρκετινγκ[],MATCH(INDEX(ΔιακυμάνσειςΕξόδωνΜάρκετινγκ[],ROW()-ROW(ΔιακυμάνσειςΕξόδωνΜάρκετινγκ[[#Headers],[Ιούλ]]),1),INDEX(ΠρογραμματισμέναΈξοδαΜάρκετινγκ[],,1),0),MATCH(ΔιακυμάνσειςΕξόδωνΜάρκετινγκ[[#Headers],[Ιούλ]],ΠρογραμματισμέναΈξοδαΜάρκετινγκ[#Headers],0))-INDEX(ΠραγματικάΈξοδαΜάρκετινγκ[],MATCH(INDEX(ΔιακυμάνσειςΕξόδωνΜάρκετινγκ[],ROW()-ROW(ΔιακυμάνσειςΕξόδωνΜάρκετινγκ[[#Headers],[Ιούλ]]),1),INDEX(ΠρογραμματισμέναΈξοδαΜάρκετινγκ[],,1),0),MATCH(ΔιακυμάνσειςΕξόδωνΜάρκετινγκ[[#Headers],[Ιούλ]],ΠραγματικάΈξοδαΜάρκετινγκ[#Headers],0))","v":{"v":200,"d":"200.00 €"}},{"$f":"INDEX(ΠρογραμματισμέναΈξοδαΜάρκετινγκ[],MATCH(INDEX(ΔιακυμάνσειςΕξόδωνΜάρκετινγκ[],ROW()-ROW(ΔιακυμάνσειςΕξόδωνΜάρκετινγκ[[#Headers],[Αύγ]]),1),INDEX(ΠρογραμματισμέναΈξοδαΜάρκετινγκ[],,1),0),MATCH(ΔιακυμάνσειςΕξόδωνΜάρκετινγκ[[#Headers],[Αύγ]],ΠρογραμματισμέναΈξοδαΜάρκετινγκ[#Headers],0))-INDEX(ΠραγματικάΈξοδαΜάρκετινγκ[],MATCH(INDEX(ΔιακυμάνσειςΕξόδωνΜάρκετινγκ[],ROW()-ROW(ΔιακυμάνσειςΕξόδωνΜάρκετινγκ[[#Headers],[Αύγ]]),1),INDEX(ΠρογραμματισμέναΈξοδαΜάρκετινγκ[],,1),0),MATCH(ΔιακυμάνσειςΕξόδωνΜάρκετινγκ[[#Headers],[Αύγ]],ΠραγματικάΈξοδαΜάρκετινγκ[#Headers],0))","v":{"v":200,"d":"200.00 €"}},{"$f":"INDEX(ΠρογραμματισμέναΈξοδαΜάρκετινγκ[],MATCH(INDEX(ΔιακυμάνσειςΕξόδωνΜάρκετινγκ[],ROW()-ROW(ΔιακυμάνσειςΕξόδωνΜάρκετινγκ[[#Headers],[Σεπ]]),1),INDEX(ΠρογραμματισμέναΈξοδαΜάρκετινγκ[],,1),0),MATCH(ΔιακυμάνσειςΕξόδωνΜάρκετινγκ[[#Headers],[Σεπ]],ΠρογραμματισμέναΈξοδαΜάρκετινγκ[#Headers],0))-INDEX(ΠραγματικάΈξοδαΜάρκετινγκ[],MATCH(INDEX(ΔιακυμάνσειςΕξόδωνΜάρκετινγκ[],ROW()-ROW(ΔιακυμάνσειςΕξόδωνΜάρκετινγκ[[#Headers],[Σεπ]]),1),INDEX(ΠρογραμματισμέναΈξοδαΜάρκετινγκ[],,1),0),MATCH(ΔιακυμάνσειςΕξόδωνΜάρκετινγκ[[#Headers],[Σεπ]],ΠραγματικάΈξοδαΜάρκετινγκ[#Headers],0))","v":{"v":200,"d":"200.00 €"}},{"$f":"INDEX(ΠρογραμματισμέναΈξοδαΜάρκετινγκ[],MATCH(INDEX(ΔιακυμάνσειςΕξόδωνΜάρκετινγκ[],ROW()-ROW(ΔιακυμάνσειςΕξόδωνΜάρκετινγκ[[#Headers],[Οκτ]]),1),INDEX(ΠρογραμματισμέναΈξοδαΜάρκετινγκ[],,1),0),MATCH(ΔιακυμάνσειςΕξόδωνΜάρκετινγκ[[#Headers],[Οκτ]],ΠρογραμματισμέναΈξοδαΜάρκετινγκ[#Headers],0))-INDEX(ΠραγματικάΈξοδαΜάρκετινγκ[],MATCH(INDEX(ΔιακυμάνσειςΕξόδωνΜάρκετινγκ[],ROW()-ROW(ΔιακυμάνσειςΕξόδωνΜάρκετινγκ[[#Headers],[Οκτ]]),1),INDEX(ΠρογραμματισμέναΈξοδαΜάρκετινγκ[],,1),0),MATCH(ΔιακυμάνσειςΕξόδωνΜάρκετινγκ[[#Headers],[Οκτ]],ΠραγματικάΈξοδαΜάρκετινγκ[#Headers],0))","v":{"v":200,"d":"200.00 €"}},{"$f":"INDEX(ΠρογραμματισμέναΈξοδαΜάρκετινγκ[],MATCH(INDEX(ΔιακυμάνσειςΕξόδωνΜάρκετινγκ[],ROW()-ROW(ΔιακυμάνσειςΕξόδωνΜάρκετινγκ[[#Headers],[Νοε]]),1),INDEX(ΠρογραμματισμέναΈξοδαΜάρκετινγκ[],,1),0),MATCH(ΔιακυμάνσειςΕξόδωνΜάρκετινγκ[[#Headers],[Νοε]],ΠρογραμματισμέναΈξοδαΜάρκετινγκ[#Headers],0))-INDEX(ΠραγματικάΈξοδαΜάρκετινγκ[],MATCH(INDEX(ΔιακυμάνσειςΕξόδωνΜάρκετινγκ[],ROW()-ROW(ΔιακυμάνσειςΕξόδωνΜάρκετινγκ[[#Headers],[Νοε]]),1),INDEX(ΠρογραμματισμέναΈξοδαΜάρκετινγκ[],,1),0),MATCH(ΔιακυμάνσειςΕξόδωνΜάρκετινγκ[[#Headers],[Νοε]],ΠραγματικάΈξοδαΜάρκετινγκ[#Headers],0))","v":{"v":200,"d":"200.00 €"}},{"$f":"INDEX(ΠρογραμματισμέναΈξοδαΜάρκετινγκ[],MATCH(INDEX(ΔιακυμάνσειςΕξόδωνΜάρκετινγκ[],ROW()-ROW(ΔιακυμάνσειςΕξόδωνΜάρκετινγκ[[#Headers],[Δεκ]]),1),INDEX(ΠρογραμματισμέναΈξοδαΜάρκετινγκ[],,1),0),MATCH(ΔιακυμάνσειςΕξόδωνΜάρκετινγκ[[#Headers],[Δεκ]],ΠρογραμματισμέναΈξοδαΜάρκετινγκ[#Headers],0))-INDEX(ΠραγματικάΈξοδαΜάρκετινγκ[],MATCH(INDEX(ΔιακυμάνσειςΕξόδωνΜάρκετινγκ[],ROW()-ROW(ΔιακυμάνσειςΕξόδωνΜάρκετινγκ[[#Headers],[Δεκ]]),1),INDEX(ΠρογραμματισμέναΈξοδαΜάρκετινγκ[],,1),0),MATCH(ΔιακυμάνσειςΕξόδωνΜάρκετινγκ[[#Headers],[Δεκ]],ΠραγματικάΈξοδαΜάρκετινγκ[#Headers],0))","v":{"v":200,"d":"200.00 €"}},{"$f":"SUM(ΔιακυμάνσειςΕξόδωνΜάρκετινγκ[[#This Row],[Ιαν]:[Δεκ]])","v":{"v":820,"d":"820.00 €"}}]
[null,"Εκδηλώσεις μάρκετινγκ",{"$f":"INDEX(ΠρογραμματισμέναΈξοδαΜάρκετινγκ[],MATCH(INDEX(ΔιακυμάνσειςΕξόδωνΜάρκετινγκ[],ROW()-ROW(ΔιακυμάνσειςΕξόδωνΜάρκετινγκ[[#Headers],[Ιαν]]),1),INDEX(ΠρογραμματισμέναΈξοδαΜάρκετινγκ[],,1),0),MATCH(ΔιακυμάνσειςΕξόδωνΜάρκετινγκ[[#Headers],[Ιαν]],ΠρογραμματισμέναΈξοδαΜάρκετινγκ[#Headers],0))-INDEX(ΠραγματικάΈξοδαΜάρκετινγκ[],MATCH(INDEX(ΔιακυμάνσειςΕξόδωνΜάρκετινγκ[],ROW()-ROW(ΔιακυμάνσειςΕξόδωνΜάρκετινγκ[[#Headers],[Ιαν]]),1),INDEX(ΠρογραμματισμέναΈξοδαΜάρκετινγκ[],,1),0),MATCH(ΔιακυμάνσειςΕξόδωνΜάρκετινγκ[[#Headers],[Ιαν]],ΠραγματικάΈξοδαΜάρκετινγκ[#Headers],0))","v":{"v":200,"d":"200.00 €"}},{"$f":"INDEX(ΠρογραμματισμέναΈξοδαΜάρκετινγκ[],MATCH(INDEX(ΔιακυμάνσειςΕξόδωνΜάρκετινγκ[],ROW()-ROW(ΔιακυμάνσειςΕξόδωνΜάρκετινγκ[[#Headers],[Φεβ]]),1),INDEX(ΠρογραμματισμέναΈξοδαΜάρκετινγκ[],,1),0),MATCH(ΔιακυμάνσειςΕξόδωνΜάρκετινγκ[[#Headers],[Φεβ]],ΠρογραμματισμέναΈξοδαΜάρκετινγκ[#Headers],0))-INDEX(ΠραγματικάΈξοδαΜάρκετινγκ[],MATCH(INDEX(ΔιακυμάνσειςΕξόδωνΜάρκετινγκ[],ROW()-ROW(ΔιακυμάνσειςΕξόδωνΜάρκετινγκ[[#Headers],[Φεβ]]),1),INDEX(ΠρογραμματισμέναΈξοδαΜάρκετινγκ[],,1),0),MATCH(ΔιακυμάνσειςΕξόδωνΜάρκετινγκ[[#Headers],[Φεβ]],ΠραγματικάΈξοδαΜάρκετινγκ[#Headers],0))","v":{"v":-200,"d":"-200.00 €"}},{"$f":"INDEX(ΠρογραμματισμέναΈξοδαΜάρκετινγκ[],MATCH(INDEX(ΔιακυμάνσειςΕξόδωνΜάρκετινγκ[],ROW()-ROW(ΔιακυμάνσειςΕξόδωνΜάρκετινγκ[[#Headers],[Μάρ]]),1),INDEX(ΠρογραμματισμέναΈξοδαΜάρκετινγκ[],,1),0),MATCH(ΔιακυμάνσειςΕξόδωνΜάρκετινγκ[[#Headers],[Μάρ]],ΠρογραμματισμέναΈξοδαΜάρκετινγκ[#Headers],0))-INDEX(ΠραγματικάΈξοδαΜάρκετινγκ[],MATCH(INDEX(ΔιακυμάνσειςΕξόδωνΜάρκετινγκ[],ROW()-ROW(ΔιακυμάνσειςΕξόδωνΜάρκετινγκ[[#Headers],[Μάρ]]),1),INDEX(ΠρογραμματισμέναΈξοδαΜάρκετινγκ[],,1),0),MATCH(ΔιακυμάνσειςΕξόδωνΜάρκετινγκ[[#Headers],[Μάρ]],ΠραγματικάΈξοδαΜάρκετινγκ[#Headers],0))","v":{"v":-200,"d":"-200.00 €"}},{"$f":"INDEX(ΠρογραμματισμέναΈξοδαΜάρκετινγκ[],MATCH(INDEX(ΔιακυμάνσειςΕξόδωνΜάρκετινγκ[],ROW()-ROW(ΔιακυμάνσειςΕξόδωνΜάρκετινγκ[[#Headers],[Απρ]]),1),INDEX(ΠρογραμματισμέναΈξοδαΜάρκετινγκ[],,1),0),MATCH(ΔιακυμάνσειςΕξόδωνΜάρκετινγκ[[#Headers],[Απρ]],ΠρογραμματισμέναΈξοδαΜάρκετινγκ[#Headers],0))-INDEX(ΠραγματικάΈξοδαΜάρκετινγκ[],MATCH(INDEX(ΔιακυμάνσειςΕξόδωνΜάρκετινγκ[],ROW()-ROW(ΔιακυμάνσειςΕξόδωνΜάρκετινγκ[[#Headers],[Απρ]]),1),INDEX(ΠρογραμματισμέναΈξοδαΜάρκετινγκ[],,1),0),MATCH(ΔιακυμάνσειςΕξόδωνΜάρκετινγκ[[#Headers],[Απρ]],ΠραγματικάΈξοδαΜάρκετινγκ[#Headers],0))","v":{"v":300,"d":"300.00 €"}},{"$f":"INDEX(ΠρογραμματισμέναΈξοδαΜάρκετινγκ[],MATCH(INDEX(ΔιακυμάνσειςΕξόδωνΜάρκετινγκ[],ROW()-ROW(ΔιακυμάνσειςΕξόδωνΜάρκετινγκ[[#Headers],[Μάι]]),1),INDEX(ΠρογραμματισμέναΈξοδαΜάρκετινγκ[],,1),0),MATCH(ΔιακυμάνσειςΕξόδωνΜάρκετινγκ[[#Headers],[Μάι]],ΠρογραμματισμέναΈξοδαΜάρκετινγκ[#Headers],0))-INDEX(ΠραγματικάΈξοδαΜάρκετινγκ[],MATCH(INDEX(ΔιακυμάνσειςΕξόδωνΜάρκετινγκ[],ROW()-ROW(ΔιακυμάνσειςΕξόδωνΜάρκετινγκ[[#Headers],[Μάι]]),1),INDEX(ΠρογραμματισμέναΈξοδαΜάρκετινγκ[],,1),0),MATCH(ΔιακυμάνσειςΕξόδωνΜάρκετινγκ[[#Headers],[Μάι]],ΠραγματικάΈξοδαΜάρκετινγκ[#Headers],0))","v":{"v":500,"d":"500.00 €"}},{"$f":"INDEX(ΠρογραμματισμέναΈξοδαΜάρκετινγκ[],MATCH(INDEX(ΔιακυμάνσειςΕξόδωνΜάρκετινγκ[],ROW()-ROW(ΔιακυμάνσειςΕξόδωνΜάρκετινγκ[[#Headers],[Ιούν]]),1),INDEX(ΠρογραμματισμέναΈξοδαΜάρκετινγκ[],,1),0),MATCH(ΔιακυμάνσειςΕξόδωνΜάρκετινγκ[[#Headers],[Ιούν]],ΠρογραμματισμέναΈξοδαΜάρκετινγκ[#Headers],0))-INDEX(ΠραγματικάΈξοδαΜάρκετινγκ[],MATCH(INDEX(ΔιακυμάνσειςΕξόδωνΜάρκετινγκ[],ROW()-ROW(ΔιακυμάνσειςΕξόδωνΜάρκετινγκ[[#Headers],[Ιούν]]),1),INDEX(ΠρογραμματισμέναΈξοδαΜάρκετινγκ[],,1),0),MATCH(ΔιακυμάνσειςΕξόδωνΜάρκετινγκ[[#Headers],[Ιούν]],ΠραγματικάΈξοδαΜάρκετινγκ[#Headers],0))","v":{"v":-300,"d":"-300.00 €"}},{"$f":"INDEX(ΠρογραμματισμέναΈξοδαΜάρκετινγκ[],MATCH(INDEX(ΔιακυμάνσειςΕξόδωνΜάρκετινγκ[],ROW()-ROW(ΔιακυμάνσειςΕξόδωνΜάρκετινγκ[[#Headers],[Ιούλ]]),1),INDEX(ΠρογραμματισμέναΈξοδαΜάρκετινγκ[],,1),0),MATCH(ΔιακυμάνσειςΕξόδωνΜάρκετινγκ[[#Headers],[Ιούλ]],ΠρογραμματισμέναΈξοδαΜάρκετινγκ[#Headers],0))-INDEX(ΠραγματικάΈξοδαΜάρκετινγκ[],MATCH(INDEX(ΔιακυμάνσειςΕξόδωνΜάρκετινγκ[],ROW()-ROW(ΔιακυμάνσειςΕξόδωνΜάρκετινγκ[[#Headers],[Ιούλ]]),1),INDEX(ΠρογραμματισμέναΈξοδαΜάρκετινγκ[],,1),0),MATCH(ΔιακυμάνσειςΕξόδωνΜάρκετινγκ[[#Headers],[Ιούλ]],ΠραγματικάΈξοδαΜάρκετινγκ[#Headers],0))","v":{"v":2000,"d":"2,000.00 €"}},{"$f":"INDEX(ΠρογραμματισμέναΈξοδαΜάρκετινγκ[],MATCH(INDEX(ΔιακυμάνσειςΕξόδωνΜάρκετινγκ[],ROW()-ROW(ΔιακυμάνσειςΕξόδωνΜάρκετινγκ[[#Headers],[Αύγ]]),1),INDEX(ΠρογραμματισμέναΈξοδαΜάρκετινγκ[],,1),0),MATCH(ΔιακυμάνσειςΕξόδωνΜάρκετινγκ[[#Headers],[Αύγ]],ΠρογραμματισμέναΈξοδαΜάρκετινγκ[#Headers],0))-INDEX(ΠραγματικάΈξοδαΜάρκετινγκ[],MATCH(INDEX(ΔιακυμάνσειςΕξόδωνΜάρκετινγκ[],ROW()-ROW(ΔιακυμάνσειςΕξόδωνΜάρκετινγκ[[#Headers],[Αύγ]]),1),INDEX(ΠρογραμματισμέναΈξοδαΜάρκετινγκ[],,1),0),MATCH(ΔιακυμάνσειςΕξόδωνΜάρκετινγκ[[#Headers],[Αύγ]],ΠραγματικάΈξοδαΜάρκετινγκ[#Headers],0))","v":{"v":5000,"d":"5,000.00 €"}},{"$f":"INDEX(ΠρογραμματισμέναΈξοδαΜάρκετινγκ[],MATCH(INDEX(ΔιακυμάνσειςΕξόδωνΜάρκετινγκ[],ROW()-ROW(ΔιακυμάνσειςΕξόδωνΜάρκετινγκ[[#Headers],[Σεπ]]),1),INDEX(ΠρογραμματισμέναΈξοδαΜάρκετινγκ[],,1),0),MATCH(ΔιακυμάνσειςΕξόδωνΜάρκετινγκ[[#Headers],[Σεπ]],ΠρογραμματισμέναΈξοδαΜάρκετινγκ[#Headers],0))-INDEX(ΠραγματικάΈξοδαΜάρκετινγκ[],MATCH(INDEX(ΔιακυμάνσειςΕξόδωνΜάρκετινγκ[],ROW()-ROW(ΔιακυμάνσειςΕξόδωνΜάρκετινγκ[[#Headers],[Σεπ]]),1),INDEX(ΠρογραμματισμέναΈξοδαΜάρκετινγκ[],,1),0),MATCH(ΔιακυμάνσειςΕξόδωνΜάρκετινγκ[[#Headers],[Σεπ]],ΠραγματικάΈξοδαΜάρκετινγκ[#Headers],0))","v":{"v":2000,"d":"2,000.00 €"}},{"$f":"INDEX(ΠρογραμματισμέναΈξοδαΜάρκετινγκ[],MATCH(INDEX(ΔιακυμάνσειςΕξόδωνΜάρκετινγκ[],ROW()-ROW(ΔιακυμάνσειςΕξόδωνΜάρκετινγκ[[#Headers],[Οκτ]]),1),INDEX(ΠρογραμματισμέναΈξοδαΜάρκετινγκ[],,1),0),MATCH(ΔιακυμάνσειςΕξόδωνΜάρκετινγκ[[#Headers],[Οκτ]],ΠρογραμματισμέναΈξοδαΜάρκετινγκ[#Headers],0))-INDEX(ΠραγματικάΈξοδαΜάρκετινγκ[],MATCH(INDEX(ΔιακυμάνσειςΕξόδωνΜάρκετινγκ[],ROW()-ROW(ΔιακυμάνσειςΕξόδωνΜάρκετινγκ[[#Headers],[Οκτ]]),1),INDEX(ΠρογραμματισμέναΈξοδαΜάρκετινγκ[],,1),0),MATCH(ΔιακυμάνσειςΕξόδωνΜάρκετινγκ[[#Headers],[Οκτ]],ΠραγματικάΈξοδαΜάρκετινγκ[#Headers],0))","v":{"v":2000,"d":"2,000.00 €"}},{"$f":"INDEX(ΠρογραμματισμέναΈξοδαΜάρκετινγκ[],MATCH(INDEX(ΔιακυμάνσειςΕξόδωνΜάρκετινγκ[],ROW()-ROW(ΔιακυμάνσειςΕξόδωνΜάρκετινγκ[[#Headers],[Νοε]]),1),INDEX(ΠρογραμματισμέναΈξοδαΜάρκετινγκ[],,1),0),MATCH(ΔιακυμάνσειςΕξόδωνΜάρκετινγκ[[#Headers],[Νοε]],ΠρογραμματισμέναΈξοδαΜάρκετινγκ[#Headers],0))-INDEX(ΠραγματικάΈξοδαΜάρκετινγκ[],MATCH(INDEX(ΔιακυμάνσειςΕξόδωνΜάρκετινγκ[],ROW()-ROW(ΔιακυμάνσειςΕξόδωνΜάρκετινγκ[[#Headers],[Νοε]]),1),INDEX(ΠρογραμματισμέναΈξοδαΜάρκετινγκ[],,1),0),MATCH(ΔιακυμάνσειςΕξόδωνΜάρκετινγκ[[#Headers],[Νοε]],ΠραγματικάΈξοδαΜάρκετινγκ[#Headers],0))","v":{"v":2000,"d":"2,000.00 €"}},{"$f":"INDEX(ΠρογραμματισμέναΈξοδαΜάρκετινγκ[],MATCH(INDEX(ΔιακυμάνσειςΕξόδωνΜάρκετινγκ[],ROW()-ROW(ΔιακυμάνσειςΕξόδωνΜάρκετινγκ[[#Headers],[Δεκ]]),1),INDEX(ΠρογραμματισμέναΈξοδαΜάρκετινγκ[],,1),0),MATCH(ΔιακυμάνσειςΕξόδωνΜάρκετινγκ[[#Headers],[Δεκ]],ΠρογραμματισμέναΈξοδαΜάρκετινγκ[#Headers],0))-INDEX(ΠραγματικάΈξοδαΜάρκετινγκ[],MATCH(INDEX(ΔιακυμάνσειςΕξόδωνΜάρκετινγκ[],ROW()-ROW(ΔιακυμάνσειςΕξόδωνΜάρκετινγκ[[#Headers],[Δεκ]]),1),INDEX(ΠρογραμματισμέναΈξοδαΜάρκετινγκ[],,1),0),MATCH(ΔιακυμάνσειςΕξόδωνΜάρκετινγκ[[#Headers],[Δεκ]],ΠραγματικάΈξοδαΜάρκετινγκ[#Headers],0))","v":{"v":5000,"d":"5,000.00 €"}},{"$f":"SUM(ΔιακυμάνσειςΕξόδωνΜάρκετινγκ[[#This Row],[Ιαν]:[Δεκ]])","v":{"v":18300,"d":"18,300.00 €"}}]
[null,"Διάφορα έξοδα",{"$f":"INDEX(ΠρογραμματισμέναΈξοδαΜάρκετινγκ[],MATCH(INDEX(ΔιακυμάνσειςΕξόδωνΜάρκετινγκ[],ROW()-ROW(ΔιακυμάνσειςΕξόδωνΜάρκετινγκ[[#Headers],[Ιαν]]),1),INDEX(ΠρογραμματισμέναΈξοδαΜάρκετινγκ[],,1),0),MATCH(ΔιακυμάνσειςΕξόδωνΜάρκετινγκ[[#Headers],[Ιαν]],ΠρογραμματισμέναΈξοδαΜάρκετινγκ[#Headers],0))-INDEX(ΠραγματικάΈξοδαΜάρκετινγκ[],MATCH(INDEX(ΔιακυμάνσειςΕξόδωνΜάρκετινγκ[],ROW()-ROW(ΔιακυμάνσειςΕξόδωνΜάρκετινγκ[[#Headers],[Ιαν]]),1),INDEX(ΠρογραμματισμέναΈξοδαΜάρκετινγκ[],,1),0),MATCH(ΔιακυμάνσειςΕξόδωνΜάρκετινγκ[[#Headers],[Ιαν]],ΠραγματικάΈξοδαΜάρκετινγκ[#Headers],0))","v":{"v":55,"d":"55.00 €"}},{"$f":"INDEX(ΠρογραμματισμέναΈξοδαΜάρκετινγκ[],MATCH(INDEX(ΔιακυμάνσειςΕξόδωνΜάρκετινγκ[],ROW()-ROW(ΔιακυμάνσειςΕξόδωνΜάρκετινγκ[[#Headers],[Φεβ]]),1),INDEX(ΠρογραμματισμέναΈξοδαΜάρκετινγκ[],,1),0),MATCH(ΔιακυμάνσειςΕξόδωνΜάρκετινγκ[[#Headers],[Φεβ]],ΠρογραμματισμέναΈξοδαΜάρκετινγκ[#Headers],0))-INDEX(ΠραγματικάΈξοδαΜάρκετινγκ[],MATCH(INDEX(ΔιακυμάνσειςΕξόδωνΜάρκετινγκ[],ROW()-ROW(ΔιακυμάνσειςΕξόδωνΜάρκετινγκ[[#Headers],[Φεβ]]),1),INDEX(ΠρογραμματισμέναΈξοδαΜάρκετινγκ[],,1),0),MATCH(ΔιακυμάνσειςΕξόδωνΜάρκετινγκ[[#Headers],[Φεβ]],ΠραγματικάΈξοδαΜάρκετινγκ[#Headers],0))","v":{"v":44,"d":"44.00 €"}},{"$f":"INDEX(ΠρογραμματισμέναΈξοδαΜάρκετινγκ[],MATCH(INDEX(ΔιακυμάνσειςΕξόδωνΜάρκετινγκ[],ROW()-ROW(ΔιακυμάνσειςΕξόδωνΜάρκετινγκ[[#Headers],[Μάρ]]),1),INDEX(ΠρογραμματισμέναΈξοδαΜάρκετινγκ[],,1),0),MATCH(ΔιακυμάνσειςΕξόδωνΜάρκετινγκ[[#Headers],[Μάρ]],ΠρογραμματισμέναΈξοδαΜάρκετινγκ[#Headers],0))-INDEX(ΠραγματικάΈξοδαΜάρκετινγκ[],MATCH(INDEX(ΔιακυμάνσειςΕξόδωνΜάρκετινγκ[],ROW()-ROW(ΔιακυμάνσειςΕξόδωνΜάρκετινγκ[[#Headers],[Μάρ]]),1),INDEX(ΠρογραμματισμέναΈξοδαΜάρκετινγκ[],,1),0),MATCH(ΔιακυμάνσειςΕξόδωνΜάρκετινγκ[[#Headers],[Μάρ]],ΠραγματικάΈξοδαΜάρκετινγκ[#Headers],0))","v":{"v":77,"d":"77.00 €"}},{"$f":"INDEX(ΠρογραμματισμέναΈξοδαΜάρκετινγκ[],MATCH(INDEX(ΔιακυμάνσειςΕξόδωνΜάρκετινγκ[],ROW()-ROW(ΔιακυμάνσειςΕξόδωνΜάρκετινγκ[[#Headers],[Απρ]]),1),INDEX(ΠρογραμματισμέναΈξοδαΜάρκετινγκ[],,1),0),MATCH(ΔιακυμάνσειςΕξόδωνΜάρκετινγκ[[#Headers],[Απρ]],ΠρογραμματισμέναΈξοδαΜάρκετινγκ[#Headers],0))-INDEX(ΠραγματικάΈξοδαΜάρκετινγκ[],MATCH(INDEX(ΔιακυμάνσειςΕξόδωνΜάρκετινγκ[],ROW()-ROW(ΔιακυμάνσειςΕξόδωνΜάρκετινγκ[[#Headers],[Απρ]]),1),INDEX(ΠρογραμματισμέναΈξοδαΜάρκετινγκ[],,1),0),MATCH(ΔιακυμάνσειςΕξόδωνΜάρκετινγκ[[#Headers],[Απρ]],ΠραγματικάΈξοδαΜάρκετινγκ[#Headers],0))","v":{"v":-23,"d":"-23.00 €"}},{"$f":"INDEX(ΠρογραμματισμέναΈξοδαΜάρκετινγκ[],MATCH(INDEX(ΔιακυμάνσειςΕξόδωνΜάρκετινγκ[],ROW()-ROW(ΔιακυμάνσειςΕξόδωνΜάρκετινγκ[[#Headers],[Μάι]]),1),INDEX(ΠρογραμματισμέναΈξοδαΜάρκετινγκ[],,1),0),MATCH(ΔιακυμάνσειςΕξόδωνΜάρκετινγκ[[#Headers],[Μάι]],ΠρογραμματισμέναΈξοδαΜάρκετινγκ[#Headers],0))-INDEX(ΠραγματικάΈξοδαΜάρκετινγκ[],MATCH(INDEX(ΔιακυμάνσειςΕξόδωνΜάρκετινγκ[],ROW()-ROW(ΔιακυμάνσειςΕξόδωνΜάρκετινγκ[[#Headers],[Μάι]]),1),INDEX(ΠρογραμματισμέναΈξοδαΜάρκετινγκ[],,1),0),MATCH(ΔιακυμάνσειςΕξόδωνΜάρκετινγκ[[#Headers],[Μάι]],ΠραγματικάΈξοδαΜάρκετινγκ[#Headers],0))","v":{"v":13,"d":"13.00 €"}},{"$f":"INDEX(ΠρογραμματισμέναΈξοδαΜάρκετινγκ[],MATCH(INDEX(ΔιακυμάνσειςΕξόδωνΜάρκετινγκ[],ROW()-ROW(ΔιακυμάνσειςΕξόδωνΜάρκετινγκ[[#Headers],[Ιούν]]),1),INDEX(ΠρογραμματισμέναΈξοδαΜάρκετινγκ[],,1),0),MATCH(ΔιακυμάνσειςΕξόδωνΜάρκετινγκ[[#Headers],[Ιούν]],ΠρογραμματισμέναΈξοδαΜάρκετινγκ[#Headers],0))-INDEX(ΠραγματικάΈξοδαΜάρκετινγκ[],MATCH(INDEX(ΔιακυμάνσειςΕξόδωνΜάρκετινγκ[],ROW()-ROW(ΔιακυμάνσειςΕξόδωνΜάρκετινγκ[[#Headers],[Ιούν]]),1),INDEX(ΠρογραμματισμέναΈξοδαΜάρκετινγκ[],,1),0),MATCH(ΔιακυμάνσειςΕξόδωνΜάρκετινγκ[[#Headers],[Ιούν]],ΠραγματικάΈξοδαΜάρκετινγκ[#Headers],0))","v":{"v":-45,"d":"-45.00 €"}},{"$f":"INDEX(ΠρογραμματισμέναΈξοδαΜάρκετινγκ[],MATCH(INDEX(ΔιακυμάνσειςΕξόδωνΜάρκετινγκ[],ROW()-ROW(ΔιακυμάνσειςΕξόδωνΜάρκετινγκ[[#Headers],[Ιούλ]]),1),INDEX(ΠρογραμματισμέναΈξοδαΜάρκετινγκ[],,1),0),MATCH(ΔιακυμάνσειςΕξόδωνΜάρκετινγκ[[#Headers],[Ιούλ]],ΠρογραμματισμέναΈξοδαΜάρκετινγκ[#Headers],0))-INDEX(ΠραγματικάΈξοδαΜάρκετινγκ[],MATCH(INDEX(ΔιακυμάνσειςΕξόδωνΜάρκετινγκ[],ROW()-ROW(ΔιακυμάνσειςΕξόδωνΜάρκετινγκ[[#Headers],[Ιούλ]]),1),INDEX(ΠρογραμματισμέναΈξοδαΜάρκετινγκ[],,1),0),MATCH(ΔιακυμάνσειςΕξόδωνΜάρκετινγκ[[#Headers],[Ιούλ]],ΠραγματικάΈξοδαΜάρκετινγκ[#Headers],0))","v":{"v":200,"d":"200.00 €"}},{"$f":"INDEX(ΠρογραμματισμέναΈξοδαΜάρκετινγκ[],MATCH(INDEX(ΔιακυμάνσειςΕξόδωνΜάρκετινγκ[],ROW()-ROW(ΔιακυμάνσειςΕξόδωνΜάρκετινγκ[[#Headers],[Αύγ]]),1),INDEX(ΠρογραμματισμέναΈξοδαΜάρκετινγκ[],,1),0),MATCH(ΔιακυμάνσειςΕξόδωνΜάρκετινγκ[[#Headers],[Αύγ]],ΠρογραμματισμέναΈξοδαΜάρκετινγκ[#Headers],0))-INDEX(ΠραγματικάΈξοδαΜάρκετινγκ[],MATCH(INDEX(ΔιακυμάνσειςΕξόδωνΜάρκετινγκ[],ROW()-ROW(ΔιακυμάνσειςΕξόδωνΜάρκετινγκ[[#Headers],[Αύγ]]),1),INDEX(ΠρογραμματισμέναΈξοδαΜάρκετινγκ[],,1),0),MATCH(ΔιακυμάνσειςΕξόδωνΜάρκετινγκ[[#Headers],[Αύγ]],ΠραγματικάΈξοδαΜάρκετινγκ[#Headers],0))","v":{"v":200,"d":"200.00 €"}},{"$f":"INDEX(ΠρογραμματισμέναΈξοδαΜάρκετινγκ[],MATCH(INDEX(ΔιακυμάνσειςΕξόδωνΜάρκετινγκ[],ROW()-ROW(ΔιακυμάνσειςΕξόδωνΜάρκετινγκ[[#Headers],[Σεπ]]),1),INDEX(ΠρογραμματισμέναΈξοδαΜάρκετινγκ[],,1),0),MATCH(ΔιακυμάνσειςΕξόδωνΜάρκετινγκ[[#Headers],[Σεπ]],ΠρογραμματισμέναΈξοδαΜάρκετινγκ[#Headers],0))-INDEX(ΠραγματικάΈξοδαΜάρκετινγκ[],MATCH(INDEX(ΔιακυμάνσειςΕξόδωνΜάρκετινγκ[],ROW()-ROW(ΔιακυμάνσειςΕξόδωνΜάρκετινγκ[[#Headers],[Σεπ]]),1),INDEX(ΠρογραμματισμέναΈξοδαΜάρκετινγκ[],,1),0),MATCH(ΔιακυμάνσειςΕξόδωνΜάρκετινγκ[[#Headers],[Σεπ]],ΠραγματικάΈξοδαΜάρκετινγκ[#Headers],0))","v":{"v":200,"d":"200.00 €"}},{"$f":"INDEX(ΠρογραμματισμέναΈξοδαΜάρκετινγκ[],MATCH(INDEX(ΔιακυμάνσειςΕξόδωνΜάρκετινγκ[],ROW()-ROW(ΔιακυμάνσειςΕξόδωνΜάρκετινγκ[[#Headers],[Οκτ]]),1),INDEX(ΠρογραμματισμέναΈξοδαΜάρκετινγκ[],,1),0),MATCH(ΔιακυμάνσειςΕξόδωνΜάρκετινγκ[[#Headers],[Οκτ]],ΠρογραμματισμέναΈξοδαΜάρκετινγκ[#Headers],0))-INDEX(ΠραγματικάΈξοδαΜάρκετινγκ[],MATCH(INDEX(ΔιακυμάνσειςΕξόδωνΜάρκετινγκ[],ROW()-ROW(ΔιακυμάνσειςΕξόδωνΜάρκετινγκ[[#Headers],[Οκτ]]),1),INDEX(ΠρογραμματισμέναΈξοδαΜάρκετινγκ[],,1),0),MATCH(ΔιακυμάνσειςΕξόδωνΜάρκετινγκ[[#Headers],[Οκτ]],ΠραγματικάΈξοδαΜάρκετινγκ[#Headers],0))","v":{"v":200,"d":"200.00 €"}},{"$f":"INDEX(ΠρογραμματισμέναΈξοδαΜάρκετινγκ[],MATCH(INDEX(ΔιακυμάνσειςΕξόδωνΜάρκετινγκ[],ROW()-ROW(ΔιακυμάνσειςΕξόδωνΜάρκετινγκ[[#Headers],[Νοε]]),1),INDEX(ΠρογραμματισμέναΈξοδαΜάρκετινγκ[],,1),0),MATCH(ΔιακυμάνσειςΕξόδωνΜάρκετινγκ[[#Headers],[Νοε]],ΠρογραμματισμέναΈξοδαΜάρκετινγκ[#Headers],0))-INDEX(ΠραγματικάΈξοδαΜάρκετινγκ[],MATCH(INDEX(ΔιακυμάνσειςΕξόδωνΜάρκετινγκ[],ROW()-ROW(ΔιακυμάνσειςΕξόδωνΜάρκετινγκ[[#Headers],[Νοε]]),1),INDEX(ΠρογραμματισμέναΈξοδαΜάρκετινγκ[],,1),0),MATCH(ΔιακυμάνσειςΕξόδωνΜάρκετινγκ[[#Headers],[Νοε]],ΠραγματικάΈξοδαΜάρκετινγκ[#Headers],0))","v":{"v":200,"d":"200.00 €"}},{"$f":"INDEX(ΠρογραμματισμέναΈξοδαΜάρκετινγκ[],MATCH(INDEX(ΔιακυμάνσειςΕξόδωνΜάρκετινγκ[],ROW()-ROW(ΔιακυμάνσειςΕξόδωνΜάρκετινγκ[[#Headers],[Δεκ]]),1),INDEX(ΠρογραμματισμέναΈξοδαΜάρκετινγκ[],,1),0),MATCH(ΔιακυμάνσειςΕξόδωνΜάρκετινγκ[[#Headers],[Δεκ]],ΠρογραμματισμέναΈξοδαΜάρκετινγκ[#Headers],0))-INDEX(ΠραγματικάΈξοδαΜάρκετινγκ[],MATCH(INDEX(ΔιακυμάνσειςΕξόδωνΜάρκετινγκ[],ROW()-ROW(ΔιακυμάνσειςΕξόδωνΜάρκετινγκ[[#Headers],[Δεκ]]),1),INDEX(ΠρογραμματισμέναΈξοδαΜάρκετινγκ[],,1),0),MATCH(ΔιακυμάνσειςΕξόδωνΜάρκετινγκ[[#Headers],[Δεκ]],ΠραγματικάΈξοδαΜάρκετινγκ[#Headers],0))","v":{"v":200,"d":"200.00 €"}},{"$f":"SUM(ΔιακυμάνσειςΕξόδωνΜάρκετινγκ[[#This Row],[Ιαν]:[Δεκ]])","v":{"v":1321,"d":"1,321.00 €"}}]
[null,"Μερικό άθροισμα",{"$f":"SUBTOTAL(109,ΔιακυμάνσειςΕξόδωνΜάρκετινγκ[Ιαν])","v":{"v":555,"d":"555.00 €"}},{"$f":"SUBTOTAL(109,ΔιακυμάνσειςΕξόδωνΜάρκετινγκ[Φεβ])","v":{"v":-456,"d":"-456.00 €"}},{"$f":"SUBTOTAL(109,ΔιακυμάνσειςΕξόδωνΜάρκετινγκ[Μάρ])","v":{"v":-23,"d":"-23.00 €"}},{"$f":"SUBTOTAL(109,ΔιακυμάνσειςΕξόδωνΜάρκετινγκ[Απρ])","v":{"v":-123,"d":"-123.00 €"}},{"$f":"SUBTOTAL(109,ΔιακυμάνσειςΕξόδωνΜάρκετινγκ[Μάι])","v":{"v":113,"d":"113.00 €"}},{"$f":"SUBTOTAL(109,ΔιακυμάνσειςΕξόδωνΜάρκετινγκ[Ιούν])","v":{"v":-825,"d":"-825.00 €"}},{"$f":"SUBTOTAL(109,ΔιακυμάνσειςΕξόδωνΜάρκετινγκ[Ιούλ])","v":{"v":8100,"d":"8,100.00 €"}},{"$f":"SUBTOTAL(109,ΔιακυμάνσειςΕξόδωνΜάρκετινγκ[Αύγ])","v":{"v":6100,"d":"6,100.00 €"}},{"$f":"SUBTOTAL(109,ΔιακυμάνσειςΕξόδωνΜάρκετινγκ[Σεπ])","v":{"v":3100,"d":"3,100.00 €"}},{"$f":"SUBTOTAL(109,ΔιακυμάνσειςΕξόδωνΜάρκετινγκ[Οκτ])","v":{"v":8100,"d":"8,100.00 €"}},{"$f":"SUBTOTAL(109,ΔιακυμάνσειςΕξόδωνΜάρκετινγκ[Νοε])","v":{"v":3100,"d":"3,100.00 €"}},{"$f":"SUBTOTAL(109,ΔιακυμάνσειςΕξόδωνΜάρκετινγκ[Δεκ])","v":{"v":6900,"d":"6,900.00 €"}},{"$f":"SUBTOTAL(109,ΔιακυμάνσειςΕξόδωνΜάρκετινγκ[ΕΤΟΣ])","v":{"v":34641,"d":"34,641.00 €"}}]
[]
["Η διακύμανση στα έξοδα εκπαίδευσης και μετακινήσεων υπολογίζεται αυτόματα στον πίνακα διακυμάνσεις εξόδων εκπαίδευσης και μετακινήσεων που ξεκινά στο κελί στα δεξιά. Η επόμενη οδηγία βρίσκεται στο κελί A35.","Εκπαίδευση/Ταξίδια","Ιαν","Φεβ","Μάρ","Απρ","Μάι","Ιούν","Ιούλ","Αύγ","Σεπ","Οκτ","Νοε","Δεκ","ΕΤΟΣ"]
[null,"Εκπαιδευτικά μαθήματα",{"$f":"INDEX(ΠρογραμματισμέναΈξοδαΕκπαίδευσηςΚαιΜετακινήσεων[],MATCH(INDEX(ΔιακυμάνσειςΕξόδωνΕκπαίδευσηςΚαιΜετακινήσεων[],ROW()-ROW(ΔιακυμάνσειςΕξόδωνΕκπαίδευσηςΚαιΜετακινήσεων[[#Headers],[Ιαν]]),1),INDEX(ΠρογραμματισμέναΈξοδαΕκπαίδευσηςΚαιΜετακινήσεων[],,1),0),MATCH(ΔιακυμάνσειςΕξόδωνΕκπαίδευσηςΚαιΜετακινήσεων[[#Headers],[Ιαν]],ΠρογραμματισμέναΈξοδαΕκπαίδευσηςΚαιΜετακινήσεων[#Headers],0))-INDEX(ΠραγματικάΈξοδαΕκπαίδευσηςΚαιΜετακινήσεων[],MATCH(INDEX(ΔιακυμάνσειςΕξόδωνΕκπαίδευσηςΚαιΜετακινήσεων[],ROW()-ROW(ΔιακυμάνσειςΕξόδωνΕκπαίδευσηςΚαιΜετακινήσεων[[#Headers],[Ιαν]]),1),INDEX(ΠρογραμματισμέναΈξοδαΕκπαίδευσηςΚαιΜετακινήσεων[],,1),0),MATCH(ΔιακυμάνσειςΕξόδωνΕκπαίδευσηςΚαιΜετακινήσεων[[#Headers],[Ιαν]],ΠραγματικάΈξοδαΕκπαίδευσηςΚαιΜετακινήσεων[#Headers],0))","v":{"v":400,"d":"400.00 €"}},{"$f":"INDEX(ΠρογραμματισμέναΈξοδαΕκπαίδευσηςΚαιΜετακινήσεων[],MATCH(INDEX(ΔιακυμάνσειςΕξόδωνΕκπαίδευσηςΚαιΜετακινήσεων[],ROW()-ROW(ΔιακυμάνσειςΕξόδωνΕκπαίδευσηςΚαιΜετακινήσεων[[#Headers],[Φεβ]]),1),INDEX(ΠρογραμματισμέναΈξοδαΕκπαίδευσηςΚαιΜετακινήσεων[],,1),0),MATCH(ΔιακυμάνσειςΕξόδωνΕκπαίδευσηςΚαιΜετακινήσεων[[#Headers],[Φεβ]],ΠρογραμματισμέναΈξοδαΕκπαίδευσηςΚαιΜετακινήσεων[#Headers],0))-INDEX(ΠραγματικάΈξοδαΕκπαίδευσηςΚαιΜετακινήσεων[],MATCH(INDEX(ΔιακυμάνσειςΕξόδωνΕκπαίδευσηςΚαιΜετακινήσεων[],ROW()-ROW(ΔιακυμάνσειςΕξόδωνΕκπαίδευσηςΚαιΜετακινήσεων[[#Headers],[Φεβ]]),1),INDEX(ΠρογραμματισμέναΈξοδαΕκπαίδευσηςΚαιΜετακινήσεων[],,1),0),MATCH(ΔιακυμάνσειςΕξόδωνΕκπαίδευσηςΚαιΜετακινήσεων[[#Headers],[Φεβ]],ΠραγματικάΈξοδαΕκπαίδευσηςΚαιΜετακινήσεων[#Headers],0))","v":{"v":-400,"d":"-400.00 €"}},{"$f":"INDEX(ΠρογραμματισμέναΈξοδαΕκπαίδευσηςΚαιΜετακινήσεων[],MATCH(INDEX(ΔιακυμάνσειςΕξόδωνΕκπαίδευσηςΚαιΜετακινήσεων[],ROW()-ROW(ΔιακυμάνσειςΕξόδωνΕκπαίδευσηςΚαιΜετακινήσεων[[#Headers],[Μάρ]]),1),INDEX(ΠρογραμματισμέναΈξοδαΕκπαίδευσηςΚαιΜετακινήσεων[],,1),0),MATCH(ΔιακυμάνσειςΕξόδωνΕκπαίδευσηςΚαιΜετακινήσεων[[#Headers],[Μάρ]],ΠρογραμματισμέναΈξοδαΕκπαίδευσηςΚαιΜετακινήσεων[#Headers],0))-INDEX(ΠραγματικάΈξοδαΕκπαίδευσηςΚαιΜετακινήσεων[],MATCH(INDEX(ΔιακυμάνσειςΕξόδωνΕκπαίδευσηςΚαιΜετακινήσεων[],ROW()-ROW(ΔιακυμάνσειςΕξόδωνΕκπαίδευσηςΚαιΜετακινήσεων[[#Headers],[Μάρ]]),1),INDEX(ΠρογραμματισμέναΈξοδαΕκπαίδευσηςΚαιΜετακινήσεων[],,1),0),MATCH(ΔιακυμάνσειςΕξόδωνΕκπαίδευσηςΚαιΜετακινήσεων[[#Headers],[Μάρ]],ΠραγματικάΈξοδαΕκπαίδευσηςΚαιΜετακινήσεων[#Headers],0))","v":{"v":600,"d":"600.00 €"}},{"$f":"INDEX(ΠρογραμματισμέναΈξοδαΕκπαίδευσηςΚαιΜετακινήσεων[],MATCH(INDEX(ΔιακυμάνσειςΕξόδωνΕκπαίδευσηςΚαιΜετακινήσεων[],ROW()-ROW(ΔιακυμάνσειςΕξόδωνΕκπαίδευσηςΚαιΜετακινήσεων[[#Headers],[Απρ]]),1),INDEX(ΠρογραμματισμέναΈξοδαΕκπαίδευσηςΚαιΜετακινήσεων[],,1),0),MATCH(ΔιακυμάνσειςΕξόδωνΕκπαίδευσηςΚαιΜετακινήσεων[[#Headers],[Απρ]],ΠρογραμματισμέναΈξοδαΕκπαίδευσηςΚαιΜετακινήσεων[#Headers],0))-INDEX(ΠραγματικάΈξοδαΕκπαίδευσηςΚαιΜετακινήσεων[],MATCH(INDEX(ΔιακυμάνσειςΕξόδωνΕκπαίδευσηςΚαιΜετακινήσεων[],ROW()-ROW(ΔιακυμάνσειςΕξόδωνΕκπαίδευσηςΚαιΜετακινήσεων[[#Headers],[Απρ]]),1),INDEX(ΠρογραμματισμέναΈξοδαΕκπαίδευσηςΚαιΜετακινήσεων[],,1),0),MATCH(ΔιακυμάνσειςΕξόδωνΕκπαίδευσηςΚαιΜετακινήσεων[[#Headers],[Απρ]],ΠραγματικάΈξοδαΕκπαίδευσηςΚαιΜετακινήσεων[#Headers],0))","v":{"v":400,"d":"400.00 €"}},{"$f":"INDEX(ΠρογραμματισμέναΈξοδαΕκπαίδευσηςΚαιΜετακινήσεων[],MATCH(INDEX(ΔιακυμάνσειςΕξόδωνΕκπαίδευσηςΚαιΜετακινήσεων[],ROW()-ROW(ΔιακυμάνσειςΕξόδωνΕκπαίδευσηςΚαιΜετακινήσεων[[#Headers],[Μάι]]),1),INDEX(ΠρογραμματισμέναΈξοδαΕκπαίδευσηςΚαιΜετακινήσεων[],,1),0),MATCH(ΔιακυμάνσειςΕξόδωνΕκπαίδευσηςΚαιΜετακινήσεων[[#Headers],[Μάι]],ΠρογραμματισμέναΈξοδαΕκπαίδευσηςΚαιΜετακινήσεων[#Headers],0))-INDEX(ΠραγματικάΈξοδαΕκπαίδευσηςΚαιΜετακινήσεων[],MATCH(INDEX(ΔιακυμάνσειςΕξόδωνΕκπαίδευσηςΚαιΜετακινήσεων[],ROW()-ROW(ΔιακυμάνσειςΕξόδωνΕκπαίδευσηςΚαιΜετακινήσεων[[#Headers],[Μάι]]),1),INDEX(ΠρογραμματισμέναΈξοδαΕκπαίδευσηςΚαιΜετακινήσεων[],,1),0),MATCH(ΔιακυμάνσειςΕξόδωνΕκπαίδευσηςΚαιΜετακινήσεων[[#Headers],[Μάι]],ΠραγματικάΈξοδαΕκπαίδευσηςΚαιΜετακινήσεων[#Headers],0))","v":{"v":800,"d":"800.00 €"}},{"$f":"INDEX(ΠρογραμματισμέναΈξοδαΕκπαίδευσηςΚαιΜετακινήσεων[],MATCH(INDEX(ΔιακυμάνσειςΕξόδωνΕκπαίδευσηςΚαιΜετακινήσεων[],ROW()-ROW(ΔιακυμάνσειςΕξόδωνΕκπαίδευσηςΚαιΜετακινήσεων[[#Headers],[Ιούν]]),1),INDEX(ΠρογραμματισμέναΈξοδαΕκπαίδευσηςΚαιΜετακινήσεων[],,1),0),MATCH(ΔιακυμάνσειςΕξόδωνΕκπαίδευσηςΚαιΜετακινήσεων[[#Headers],[Ιούν]],ΠρογραμματισμέναΈξοδαΕκπαίδευσηςΚαιΜετακινήσεων[#Headers],0))-INDEX(ΠραγματικάΈξοδαΕκπαίδευσηςΚαιΜετακινήσεων[],MATCH(INDEX(ΔιακυμάνσειςΕξόδωνΕκπαίδευσηςΚαιΜετακινήσεων[],ROW()-ROW(ΔιακυμάνσειςΕξόδωνΕκπαίδευσηςΚαιΜετακινήσεων[[#Headers],[Ιούν]]),1),INDEX(ΠρογραμματισμέναΈξοδαΕκπαίδευσηςΚαιΜετακινήσεων[],,1),0),MATCH(ΔιακυμάνσειςΕξόδωνΕκπαίδευσηςΚαιΜετακινήσεων[[#Headers],[Ιούν]],ΠραγματικάΈξοδαΕκπαίδευσηςΚαιΜετακινήσεων[#Headers],0))","v":{"v":-800,"d":"-800.00 €"}},{"$f":"INDEX(ΠρογραμματισμέναΈξοδαΕκπαίδευσηςΚαιΜετακινήσεων[],MATCH(INDEX(ΔιακυμάνσειςΕξόδωνΕκπαίδευσηςΚαιΜετακινήσεων[],ROW()-ROW(ΔιακυμάνσειςΕξόδωνΕκπαίδευσηςΚαιΜετακινήσεων[[#Headers],[Ιούλ]]),1),INDEX(ΠρογραμματισμέναΈξοδαΕκπαίδευσηςΚαιΜετακινήσεων[],,1),0),MATCH(ΔιακυμάνσειςΕξόδωνΕκπαίδευσηςΚαιΜετακινήσεων[[#Headers],[Ιούλ]],ΠρογραμματισμέναΈξοδαΕκπαίδευσηςΚαιΜετακινήσεων[#Headers],0))-INDEX(ΠραγματικάΈξοδαΕκπαίδευσηςΚαιΜετακινήσεων[],MATCH(INDEX(ΔιακυμάνσειςΕξόδωνΕκπαίδευσηςΚαιΜετακινήσεων[],ROW()-ROW(ΔιακυμάνσειςΕξόδωνΕκπαίδευσηςΚαιΜετακινήσεων[[#Headers],[Ιούλ]]),1),INDEX(ΠρογραμματισμέναΈξοδαΕκπαίδευσηςΚαιΜετακινήσεων[],,1),0),MATCH(ΔιακυμάνσειςΕξόδωνΕκπαίδευσηςΚαιΜετακινήσεων[[#Headers],[Ιούλ]],ΠραγματικάΈξοδαΕκπαίδευσηςΚαιΜετακινήσεων[#Headers],0))","v":{"v":2000,"d":"2,000.00 €"}},{"$f":"INDEX(ΠρογραμματισμέναΈξοδαΕκπαίδευσηςΚαιΜετακινήσεων[],MATCH(INDEX(ΔιακυμάνσειςΕξόδωνΕκπαίδευσηςΚαιΜετακινήσεων[],ROW()-ROW(ΔιακυμάνσειςΕξόδωνΕκπαίδευσηςΚαιΜετακινήσεων[[#Headers],[Αύγ]]),1),INDEX(ΠρογραμματισμέναΈξοδαΕκπαίδευσηςΚαιΜετακινήσεων[],,1),0),MATCH(ΔιακυμάνσειςΕξόδωνΕκπαίδευσηςΚαιΜετακινήσεων[[#Headers],[Αύγ]],ΠρογραμματισμέναΈξοδαΕκπαίδευσηςΚαιΜετακινήσεων[#Headers],0))-INDEX(ΠραγματικάΈξοδαΕκπαίδευσηςΚαιΜετακινήσεων[],MATCH(INDEX(ΔιακυμάνσειςΕξόδωνΕκπαίδευσηςΚαιΜετακινήσεων[],ROW()-ROW(ΔιακυμάνσειςΕξόδωνΕκπαίδευσηςΚαιΜετακινήσεων[[#Headers],[Αύγ]]),1),INDEX(ΠρογραμματισμέναΈξοδαΕκπαίδευσηςΚαιΜετακινήσεων[],,1),0),MATCH(ΔιακυμάνσειςΕξόδωνΕκπαίδευσηςΚαιΜετακινήσεων[[#Headers],[Αύγ]],ΠραγματικάΈξοδαΕκπαίδευσηςΚαιΜετακινήσεων[#Headers],0))","v":{"v":2000,"d":"2,000.00 €"}},{"$f":"INDEX(ΠρογραμματισμέναΈξοδαΕκπαίδευσηςΚαιΜετακινήσεων[],MATCH(INDEX(ΔιακυμάνσειςΕξόδωνΕκπαίδευσηςΚαιΜετακινήσεων[],ROW()-ROW(ΔιακυμάνσειςΕξόδωνΕκπαίδευσηςΚαιΜετακινήσεων[[#Headers],[Σεπ]]),1),INDEX(ΠρογραμματισμέναΈξοδαΕκπαίδευσηςΚαιΜετακινήσεων[],,1),0),MATCH(ΔιακυμάνσειςΕξόδωνΕκπαίδευσηςΚαιΜετακινήσεων[[#Headers],[Σεπ]],ΠρογραμματισμέναΈξοδαΕκπαίδευσηςΚαιΜετακινήσεων[#Headers],0))-INDEX(ΠραγματικάΈξοδαΕκπαίδευσηςΚαιΜετακινήσεων[],MATCH(INDEX(ΔιακυμάνσειςΕξόδωνΕκπαίδευσηςΚαιΜετακινήσεων[],ROW()-ROW(ΔιακυμάνσειςΕξόδωνΕκπαίδευσηςΚαιΜετακινήσεων[[#Headers],[Σεπ]]),1),INDEX(ΠρογραμματισμέναΈξοδαΕκπαίδευσηςΚαιΜετακινήσεων[],,1),0),MATCH(ΔιακυμάνσειςΕξόδωνΕκπαίδευσηςΚαιΜετακινήσεων[[#Headers],[Σεπ]],ΠραγματικάΈξοδαΕκπαίδευσηςΚαιΜετακινήσεων[#Headers],0))","v":{"v":2000,"d":"2,000.00 €"}},{"$f":"INDEX(ΠρογραμματισμέναΈξοδαΕκπαίδευσηςΚαιΜετακινήσεων[],MATCH(INDEX(ΔιακυμάνσειςΕξόδωνΕκπαίδευσηςΚαιΜετακινήσεων[],ROW()-ROW(ΔιακυμάνσειςΕξόδωνΕκπαίδευσηςΚαιΜετακινήσεων[[#Headers],[Οκτ]]),1),INDEX(ΠρογραμματισμέναΈξοδαΕκπαίδευσηςΚαιΜετακινήσεων[],,1),0),MATCH(ΔιακυμάνσειςΕξόδωνΕκπαίδευσηςΚαιΜετακινήσεων[[#Headers],[Οκτ]],ΠρογραμματισμέναΈξοδαΕκπαίδευσηςΚαιΜετακινήσεων[#Headers],0))-INDEX(ΠραγματικάΈξοδαΕκπαίδευσηςΚαιΜετακινήσεων[],MATCH(INDEX(ΔιακυμάνσειςΕξόδωνΕκπαίδευσηςΚαιΜετακινήσεων[],ROW()-ROW(ΔιακυμάνσειςΕξόδωνΕκπαίδευσηςΚαιΜετακινήσεων[[#Headers],[Οκτ]]),1),INDEX(ΠρογραμματισμέναΈξοδαΕκπαίδευσηςΚαιΜετακινήσεων[],,1),0),MATCH(ΔιακυμάνσειςΕξόδωνΕκπαίδευσηςΚαιΜετακινήσεων[[#Headers],[Οκτ]],ΠραγματικάΈξοδαΕκπαίδευσηςΚαιΜετακινήσεων[#Headers],0))","v":{"v":2000,"d":"2,000.00 €"}},{"$f":"INDEX(ΠρογραμματισμέναΈξοδαΕκπαίδευσηςΚαιΜετακινήσεων[],MATCH(INDEX(ΔιακυμάνσειςΕξόδωνΕκπαίδευσηςΚαιΜετακινήσεων[],ROW()-ROW(ΔιακυμάνσειςΕξόδωνΕκπαίδευσηςΚαιΜετακινήσεων[[#Headers],[Νοε]]),1),INDEX(ΠρογραμματισμέναΈξοδαΕκπαίδευσηςΚαιΜετακινήσεων[],,1),0),MATCH(ΔιακυμάνσειςΕξόδωνΕκπαίδευσηςΚαιΜετακινήσεων[[#Headers],[Νοε]],ΠρογραμματισμέναΈξοδαΕκπαίδευσηςΚαιΜετακινήσεων[#Headers],0))-INDEX(ΠραγματικάΈξοδαΕκπαίδευσηςΚαιΜετακινήσεων[],MATCH(INDEX(ΔιακυμάνσειςΕξόδωνΕκπαίδευσηςΚαιΜετακινήσεων[],ROW()-ROW(ΔιακυμάνσειςΕξόδωνΕκπαίδευσηςΚαιΜετακινήσεων[[#Headers],[Νοε]]),1),INDEX(ΠρογραμματισμέναΈξοδαΕκπαίδευσηςΚαιΜετακινήσεων[],,1),0),MATCH(ΔιακυμάνσειςΕξόδωνΕκπαίδευσηςΚαιΜετακινήσεων[[#Headers],[Νοε]],ΠραγματικάΈξοδαΕκπαίδευσηςΚαιΜετακινήσεων[#Headers],0))","v":{"v":2000,"d":"2,000.00 €"}},{"$f":"INDEX(ΠρογραμματισμέναΈξοδαΕκπαίδευσηςΚαιΜετακινήσεων[],MATCH(INDEX(ΔιακυμάνσειςΕξόδωνΕκπαίδευσηςΚαιΜετακινήσεων[],ROW()-ROW(ΔιακυμάνσειςΕξόδωνΕκπαίδευσηςΚαιΜετακινήσεων[[#Headers],[Δεκ]]),1),INDEX(ΠρογραμματισμέναΈξοδαΕκπαίδευσηςΚαιΜετακινήσεων[],,1),0),MATCH(ΔιακυμάνσειςΕξόδωνΕκπαίδευσηςΚαιΜετακινήσεων[[#Headers],[Δεκ]],ΠρογραμματισμέναΈξοδαΕκπαίδευσηςΚαιΜετακινήσεων[#Headers],0))-INDEX(ΠραγματικάΈξοδαΕκπαίδευσηςΚαιΜετακινήσεων[],MATCH(INDEX(ΔιακυμάνσειςΕξόδωνΕκπαίδευσηςΚαιΜετακινήσεων[],ROW()-ROW(ΔιακυμάνσειςΕξόδωνΕκπαίδευσηςΚαιΜετακινήσεων[[#Headers],[Δεκ]]),1),INDEX(ΠρογραμματισμέναΈξοδαΕκπαίδευσηςΚαιΜετακινήσεων[],,1),0),MATCH(ΔιακυμάνσειςΕξόδωνΕκπαίδευσηςΚαιΜετακινήσεων[[#Headers],[Δεκ]],ΠραγματικάΈξοδαΕκπαίδευσηςΚαιΜετακινήσεων[#Headers],0))","v":{"v":2000,"d":"2,000.00 €"}},{"$f":"SUM(ΔιακυμάνσειςΕξόδωνΕκπαίδευσηςΚαιΜετακινήσεων[[#This Row],[Ιαν]:[Δεκ]])","v":{"v":13000,"d":"13,000.00 €"}}]
[null,"Έξοδα μετακινήσεων που σχετίζονται με εκπαίδευση",{"$f":"INDEX(ΠρογραμματισμέναΈξοδαΕκπαίδευσηςΚαιΜετακινήσεων[],MATCH(INDEX(ΔιακυμάνσειςΕξόδωνΕκπαίδευσηςΚαιΜετακινήσεων[],ROW()-ROW(ΔιακυμάνσειςΕξόδωνΕκπαίδευσηςΚαιΜετακινήσεων[[#Headers],[Ιαν]]),1),INDEX(ΠρογραμματισμέναΈξοδαΕκπαίδευσηςΚαιΜετακινήσεων[],,1),0),MATCH(ΔιακυμάνσειςΕξόδωνΕκπαίδευσηςΚαιΜετακινήσεων[[#Headers],[Ιαν]],ΠρογραμματισμέναΈξοδαΕκπαίδευσηςΚαιΜετακινήσεων[#Headers],0))-INDEX(ΠραγματικάΈξοδαΕκπαίδευσηςΚαιΜετακινήσεων[],MATCH(INDEX(ΔιακυμάνσειςΕξόδωνΕκπαίδευσηςΚαιΜετακινήσεων[],ROW()-ROW(ΔιακυμάνσειςΕξόδωνΕκπαίδευσηςΚαιΜετακινήσεων[[#Headers],[Ιαν]]),1),INDEX(ΠρογραμματισμέναΈξοδαΕκπαίδευσηςΚαιΜετακινήσεων[],,1),0),MATCH(ΔιακυμάνσειςΕξόδωνΕκπαίδευσηςΚαιΜετακινήσεων[[#Headers],[Ιαν]],ΠραγματικάΈξοδαΕκπαίδευσηςΚαιΜετακινήσεων[#Headers],0))","v":{"v":800,"d":"800.00 €"}},{"$f":"INDEX(ΠρογραμματισμέναΈξοδαΕκπαίδευσηςΚαιΜετακινήσεων[],MATCH(INDEX(ΔιακυμάνσειςΕξόδωνΕκπαίδευσηςΚαιΜετακινήσεων[],ROW()-ROW(ΔιακυμάνσειςΕξόδωνΕκπαίδευσηςΚαιΜετακινήσεων[[#Headers],[Φεβ]]),1),INDEX(ΠρογραμματισμέναΈξοδαΕκπαίδευσηςΚαιΜετακινήσεων[],,1),0),MATCH(ΔιακυμάνσειςΕξόδωνΕκπαίδευσηςΚαιΜετακινήσεων[[#Headers],[Φεβ]],ΠρογραμματισμέναΈξοδαΕκπαίδευσηςΚαιΜετακινήσεων[#Headers],0))-INDEX(ΠραγματικάΈξοδαΕκπαίδευσηςΚαιΜετακινήσεων[],MATCH(INDEX(ΔιακυμάνσειςΕξόδωνΕκπαίδευσηςΚαιΜετακινήσεων[],ROW()-ROW(ΔιακυμάνσειςΕξόδωνΕκπαίδευσηςΚαιΜετακινήσεων[[#Headers],[Φεβ]]),1),INDEX(ΠρογραμματισμέναΈξοδαΕκπαίδευσηςΚαιΜετακινήσεων[],,1),0),MATCH(ΔιακυμάνσειςΕξόδωνΕκπαίδευσηςΚαιΜετακινήσεων[[#Headers],[Φεβ]],ΠραγματικάΈξοδαΕκπαίδευσηςΚαιΜετακινήσεων[#Headers],0))","v":{"v":-200,"d":"-200.00 €"}},{"$f":"INDEX(ΠρογραμματισμέναΈξοδαΕκπαίδευσηςΚαιΜετακινήσεων[],MATCH(INDEX(ΔιακυμάνσειςΕξόδωνΕκπαίδευσηςΚαιΜετακινήσεων[],ROW()-ROW(ΔιακυμάνσειςΕξόδωνΕκπαίδευσηςΚαιΜετακινήσεων[[#Headers],[Μάρ]]),1),INDEX(ΠρογραμματισμέναΈξοδαΕκπαίδευσηςΚαιΜετακινήσεων[],,1),0),MATCH(ΔιακυμάνσειςΕξόδωνΕκπαίδευσηςΚαιΜετακινήσεων[[#Headers],[Μάρ]],ΠρογραμματισμέναΈξοδαΕκπαίδευσηςΚαιΜετακινήσεων[#Headers],0))-INDEX(ΠραγματικάΈξοδαΕκπαίδευσηςΚαιΜετακινήσεων[],MATCH(INDEX(ΔιακυμάνσειςΕξόδωνΕκπαίδευσηςΚαιΜετακινήσεων[],ROW()-ROW(ΔιακυμάνσειςΕξόδωνΕκπαίδευσηςΚαιΜετακινήσεων[[#Headers],[Μάρ]]),1),INDEX(ΠρογραμματισμέναΈξοδαΕκπαίδευσηςΚαιΜετακινήσεων[],,1),0),MATCH(ΔιακυμάνσειςΕξόδωνΕκπαίδευσηςΚαιΜετακινήσεων[[#Headers],[Μάρ]],ΠραγματικάΈξοδαΕκπαίδευσηςΚαιΜετακινήσεων[#Headers],0))","v":{"v":600,"d":"600.00 €"}},{"$f":"INDEX(ΠρογραμματισμέναΈξοδαΕκπαίδευσηςΚαιΜετακινήσεων[],MATCH(INDEX(ΔιακυμάνσειςΕξόδωνΕκπαίδευσηςΚαιΜετακινήσεων[],ROW()-ROW(ΔιακυμάνσειςΕξόδωνΕκπαίδευσηςΚαιΜετακινήσεων[[#Headers],[Απρ]]),1),INDEX(ΠρογραμματισμέναΈξοδαΕκπαίδευσηςΚαιΜετακινήσεων[],,1),0),MATCH(ΔιακυμάνσειςΕξόδωνΕκπαίδευσηςΚαιΜετακινήσεων[[#Headers],[Απρ]],ΠρογραμματισμέναΈξοδαΕκπαίδευσηςΚαιΜετακινήσεων[#Headers],0))-INDEX(ΠραγματικάΈξοδαΕκπαίδευσηςΚαιΜετακινήσεων[],MATCH(INDEX(ΔιακυμάνσειςΕξόδωνΕκπαίδευσηςΚαιΜετακινήσεων[],ROW()-ROW(ΔιακυμάνσειςΕξόδωνΕκπαίδευσηςΚαιΜετακινήσεων[[#Headers],[Απρ]]),1),INDEX(ΠρογραμματισμέναΈξοδαΕκπαίδευσηςΚαιΜετακινήσεων[],,1),0),MATCH(ΔιακυμάνσειςΕξόδωνΕκπαίδευσηςΚαιΜετακινήσεων[[#Headers],[Απρ]],ΠραγματικάΈξοδαΕκπαίδευσηςΚαιΜετακινήσεων[#Headers],0))","v":{"v":800,"d":"800.00 €"}},{"$f":"INDEX(ΠρογραμματισμέναΈξοδαΕκπαίδευσηςΚαιΜετακινήσεων[],MATCH(INDEX(ΔιακυμάνσειςΕξόδωνΕκπαίδευσηςΚαιΜετακινήσεων[],ROW()-ROW(ΔιακυμάνσειςΕξόδωνΕκπαίδευσηςΚαιΜετακινήσεων[[#Headers],[Μάι]]),1),INDEX(ΠρογραμματισμέναΈξοδαΕκπαίδευσηςΚαιΜετακινήσεων[],,1),0),MATCH(ΔιακυμάνσειςΕξόδωνΕκπαίδευσηςΚαιΜετακινήσεων[[#Headers],[Μάι]],ΠρογραμματισμέναΈξοδαΕκπαίδευσηςΚαιΜετακινήσεων[#Headers],0))-INDEX(ΠραγματικάΈξοδαΕκπαίδευσηςΚαιΜετακινήσεων[],MATCH(INDEX(ΔιακυμάνσειςΕξόδωνΕκπαίδευσηςΚαιΜετακινήσεων[],ROW()-ROW(ΔιακυμάνσειςΕξόδωνΕκπαίδευσηςΚαιΜετακινήσεων[[#Headers],[Μάι]]),1),INDEX(ΠρογραμματισμέναΈξοδαΕκπαίδευσηςΚαιΜετακινήσεων[],,1),0),MATCH(ΔιακυμάνσειςΕξόδωνΕκπαίδευσηςΚαιΜετακινήσεων[[#Headers],[Μάι]],ΠραγματικάΈξοδαΕκπαίδευσηςΚαιΜετακινήσεων[#Headers],0))","v":{"v":1200,"d":"1,200.00 €"}},{"$f":"INDEX(ΠρογραμματισμέναΈξοδαΕκπαίδευσηςΚαιΜετακινήσεων[],MATCH(INDEX(ΔιακυμάνσειςΕξόδωνΕκπαίδευσηςΚαιΜετακινήσεων[],ROW()-ROW(ΔιακυμάνσειςΕξόδωνΕκπαίδευσηςΚαιΜετακινήσεων[[#Headers],[Ιούν]]),1),INDEX(ΠρογραμματισμέναΈξοδαΕκπαίδευσηςΚαιΜετακινήσεων[],,1),0),MATCH(ΔιακυμάνσειςΕξόδωνΕκπαίδευσηςΚαιΜετακινήσεων[[#Headers],[Ιούν]],ΠρογραμματισμέναΈξοδαΕκπαίδευσηςΚαιΜετακινήσεων[#Headers],0))-INDEX(ΠραγματικάΈξοδαΕκπαίδευσηςΚαιΜετακινήσεων[],MATCH(INDEX(ΔιακυμάνσειςΕξόδωνΕκπαίδευσηςΚαιΜετακινήσεων[],ROW()-ROW(ΔιακυμάνσειςΕξόδωνΕκπαίδευσηςΚαιΜετακινήσεων[[#Headers],[Ιούν]]),1),INDEX(ΠρογραμματισμέναΈξοδαΕκπαίδευσηςΚαιΜετακινήσεων[],,1),0),MATCH(ΔιακυμάνσειςΕξόδωνΕκπαίδευσηςΚαιΜετακινήσεων[[#Headers],[Ιούν]],ΠραγματικάΈξοδαΕκπαίδευσηςΚαιΜετακινήσεων[#Headers],0))","v":{"v":-1500,"d":"-1,500.00 €"}},{"$f":"INDEX(ΠρογραμματισμέναΈξοδαΕκπαίδευσηςΚαιΜετακινήσεων[],MATCH(INDEX(ΔιακυμάνσειςΕξόδωνΕκπαίδευσηςΚαιΜετακινήσεων[],ROW()-ROW(ΔιακυμάνσειςΕξόδωνΕκπαίδευσηςΚαιΜετακινήσεων[[#Headers],[Ιούλ]]),1),INDEX(ΠρογραμματισμέναΈξοδαΕκπαίδευσηςΚαιΜετακινήσεων[],,1),0),MATCH(ΔιακυμάνσειςΕξόδωνΕκπαίδευσηςΚαιΜετακινήσεων[[#Headers],[Ιούλ]],ΠρογραμματισμέναΈξοδαΕκπαίδευσηςΚαιΜετακινήσεων[#Headers],0))-INDEX(ΠραγματικάΈξοδαΕκπαίδευσηςΚαιΜετακινήσεων[],MATCH(INDEX(ΔιακυμάνσειςΕξόδωνΕκπαίδευσηςΚαιΜετακινήσεων[],ROW()-ROW(ΔιακυμάνσειςΕξόδωνΕκπαίδευσηςΚαιΜετακινήσεων[[#Headers],[Ιούλ]]),1),INDEX(ΠρογραμματισμέναΈξοδαΕκπαίδευσηςΚαιΜετακινήσεων[],,1),0),MATCH(ΔιακυμάνσειςΕξόδωνΕκπαίδευσηςΚαιΜετακινήσεων[[#Headers],[Ιούλ]],ΠραγματικάΈξοδαΕκπαίδευσηςΚαιΜετακινήσεων[#Headers],0))","v":{"v":2000,"d":"2,000.00 €"}},{"$f":"INDEX(ΠρογραμματισμέναΈξοδαΕκπαίδευσηςΚαιΜετακινήσεων[],MATCH(INDEX(ΔιακυμάνσειςΕξόδωνΕκπαίδευσηςΚαιΜετακινήσεων[],ROW()-ROW(ΔιακυμάνσειςΕξόδωνΕκπαίδευσηςΚαιΜετακινήσεων[[#Headers],[Αύγ]]),1),INDEX(ΠρογραμματισμέναΈξοδαΕκπαίδευσηςΚαιΜετακινήσεων[],,1),0),MATCH(ΔιακυμάνσειςΕξόδωνΕκπαίδευσηςΚαιΜετακινήσεων[[#Headers],[Αύγ]],ΠρογραμματισμέναΈξοδαΕκπαίδευσηςΚαιΜετακινήσεων[#Headers],0))-INDEX(ΠραγματικάΈξοδαΕκπαίδευσηςΚαιΜετακινήσεων[],MATCH(INDEX(ΔιακυμάνσειςΕξόδωνΕκπαίδευσηςΚαιΜετακινήσεων[],ROW()-ROW(ΔιακυμάνσειςΕξόδωνΕκπαίδευσηςΚαιΜετακινήσεων[[#Headers],[Αύγ]]),1),INDEX(ΠρογραμματισμέναΈξοδαΕκπαίδευσηςΚαιΜετακινήσεων[],,1),0),MATCH(ΔιακυμάνσειςΕξόδωνΕκπαίδευσηςΚαιΜετακινήσεων[[#Headers],[Αύγ]],ΠραγματικάΈξοδαΕκπαίδευσηςΚαιΜετακινήσεων[#Headers],0))","v":{"v":2000,"d":"2,000.00 €"}},{"$f":"INDEX(ΠρογραμματισμέναΈξοδαΕκπαίδευσηςΚαιΜετακινήσεων[],MATCH(INDEX(ΔιακυμάνσειςΕξόδωνΕκπαίδευσηςΚαιΜετακινήσεων[],ROW()-ROW(ΔιακυμάνσειςΕξόδωνΕκπαίδευσηςΚαιΜετακινήσεων[[#Headers],[Σεπ]]),1),INDEX(ΠρογραμματισμέναΈξοδαΕκπαίδευσηςΚαιΜετακινήσεων[],,1),0),MATCH(ΔιακυμάνσειςΕξόδωνΕκπαίδευσηςΚαιΜετακινήσεων[[#Headers],[Σεπ]],ΠρογραμματισμέναΈξοδαΕκπαίδευσηςΚαιΜετακινήσεων[#Headers],0))-INDEX(ΠραγματικάΈξοδαΕκπαίδευσηςΚαιΜετακινήσεων[],MATCH(INDEX(ΔιακυμάνσειςΕξόδωνΕκπαίδευσηςΚαιΜετακινήσεων[],ROW()-ROW(ΔιακυμάνσειςΕξόδωνΕκπαίδευσηςΚαιΜετακινήσεων[[#Headers],[Σεπ]]),1),INDEX(ΠρογραμματισμέναΈξοδαΕκπαίδευσηςΚαιΜετακινήσεων[],,1),0),MATCH(ΔιακυμάνσειςΕξόδωνΕκπαίδευσηςΚαιΜετακινήσεων[[#Headers],[Σεπ]],ΠραγματικάΈξοδαΕκπαίδευσηςΚαιΜετακινήσεων[#Headers],0))","v":{"v":2000,"d":"2,000.00 €"}},{"$f":"INDEX(ΠρογραμματισμέναΈξοδαΕκπαίδευσηςΚαιΜετακινήσεων[],MATCH(INDEX(ΔιακυμάνσειςΕξόδωνΕκπαίδευσηςΚαιΜετακινήσεων[],ROW()-ROW(ΔιακυμάνσειςΕξόδωνΕκπαίδευσηςΚαιΜετακινήσεων[[#Headers],[Οκτ]]),1),INDEX(ΠρογραμματισμέναΈξοδαΕκπαίδευσηςΚαιΜετακινήσεων[],,1),0),MATCH(ΔιακυμάνσειςΕξόδωνΕκπαίδευσηςΚαιΜετακινήσεων[[#Headers],[Οκτ]],ΠρογραμματισμέναΈξοδαΕκπαίδευσηςΚαιΜετακινήσεων[#Headers],0))-INDEX(ΠραγματικάΈξοδαΕκπαίδευσηςΚαιΜετακινήσεων[],MATCH(INDEX(ΔιακυμάνσειςΕξόδωνΕκπαίδευσηςΚαιΜετακινήσεων[],ROW()-ROW(ΔιακυμάνσειςΕξόδωνΕκπαίδευσηςΚαιΜετακινήσεων[[#Headers],[Οκτ]]),1),INDEX(ΠρογραμματισμέναΈξοδαΕκπαίδευσηςΚαιΜετακινήσεων[],,1),0),MATCH(ΔιακυμάνσειςΕξόδωνΕκπαίδευσηςΚαιΜετακινήσεων[[#Headers],[Οκτ]],ΠραγματικάΈξοδαΕκπαίδευσηςΚαιΜετακινήσεων[#Headers],0))","v":{"v":2000,"d":"2,000.00 €"}},{"$f":"INDEX(ΠρογραμματισμέναΈξοδαΕκπαίδευσηςΚαιΜετακινήσεων[],MATCH(INDEX(ΔιακυμάνσειςΕξόδωνΕκπαίδευσηςΚαιΜετακινήσεων[],ROW()-ROW(ΔιακυμάνσειςΕξόδωνΕκπαίδευσηςΚαιΜετακινήσεων[[#Headers],[Νοε]]),1),INDEX(ΠρογραμματισμέναΈξοδαΕκπαίδευσηςΚαιΜετακινήσεων[],,1),0),MATCH(ΔιακυμάνσειςΕξόδωνΕκπαίδευσηςΚαιΜετακινήσεων[[#Headers],[Νοε]],ΠρογραμματισμέναΈξοδαΕκπαίδευσηςΚαιΜετακινήσεων[#Headers],0))-INDEX(ΠραγματικάΈξοδαΕκπαίδευσηςΚαιΜετακινήσεων[],MATCH(INDEX(ΔιακυμάνσειςΕξόδωνΕκπαίδευσηςΚαιΜετακινήσεων[],ROW()-ROW(ΔιακυμάνσειςΕξόδωνΕκπαίδευσηςΚαιΜετακινήσεων[[#Headers],[Νοε]]),1),INDEX(ΠρογραμματισμέναΈξοδαΕκπαίδευσηςΚαιΜετακινήσεων[],,1),0),MATCH(ΔιακυμάνσειςΕξόδωνΕκπαίδευσηςΚαιΜετακινήσεων[[#Headers],[Νοε]],ΠραγματικάΈξοδαΕκπαίδευσηςΚαιΜετακινήσεων[#Headers],0))","v":{"v":2000,"d":"2,000.00 €"}},{"$f":"INDEX(ΠρογραμματισμέναΈξοδαΕκπαίδευσηςΚαιΜετακινήσεων[],MATCH(INDEX(ΔιακυμάνσειςΕξόδωνΕκπαίδευσηςΚαιΜετακινήσεων[],ROW()-ROW(ΔιακυμάνσειςΕξόδωνΕκπαίδευσηςΚαιΜετακινήσεων[[#Headers],[Δεκ]]),1),INDEX(ΠρογραμματισμέναΈξοδαΕκπαίδευσηςΚαιΜετακινήσεων[],,1),0),MATCH(ΔιακυμάνσειςΕξόδωνΕκπαίδευσηςΚαιΜετακινήσεων[[#Headers],[Δεκ]],ΠρογραμματισμέναΈξοδαΕκπαίδευσηςΚαιΜετακινήσεων[#Headers],0))-INDEX(ΠραγματικάΈξοδαΕκπαίδευσηςΚαιΜετακινήσεων[],MATCH(INDEX(ΔιακυμάνσειςΕξόδωνΕκπαίδευσηςΚαιΜετακινήσεων[],ROW()-ROW(ΔιακυμάνσειςΕξόδωνΕκπαίδευσηςΚαιΜετακινήσεων[[#Headers],[Δεκ]]),1),INDEX(ΠρογραμματισμέναΈξοδαΕκπαίδευσηςΚαιΜετακινήσεων[],,1),0),MATCH(ΔιακυμάνσειςΕξόδωνΕκπαίδευσηςΚαιΜετακινήσεων[[#Headers],[Δεκ]],ΠραγματικάΈξοδαΕκπαίδευσηςΚαιΜετακινήσεων[#Headers],0))","v":{"v":2000,"d":"2,000.00 €"}},{"$f":"SUM(ΔιακυμάνσειςΕξόδωνΕκπαίδευσηςΚαιΜετακινήσεων[[#This Row],[Ιαν]:[Δεκ]])","v":{"v":13700,"d":"13,700.00 €"}}]
[null,"Μερικό άθροισμα",{"$f":"SUBTOTAL(109,ΔιακυμάνσειςΕξόδωνΕκπαίδευσηςΚαιΜετακινήσεων[Ιαν])","v":{"v":1200,"d":"1,200.00 €"}},{"$f":"SUBTOTAL(109,ΔιακυμάνσειςΕξόδωνΕκπαίδευσηςΚαιΜετακινήσεων[Φεβ])","v":{"v":-600,"d":"-600.00 €"}},{"$f":"SUBTOTAL(109,ΔιακυμάνσειςΕξόδωνΕκπαίδευσηςΚαιΜετακινήσεων[Μάρ])","v":{"v":1200,"d":"1,200.00 €"}},{"$f":"SUBTOTAL(109,ΔιακυμάνσειςΕξόδωνΕκπαίδευσηςΚαιΜετακινήσεων[Απρ])","v":{"v":1200,"d":"1,200.00 €"}},{"$f":"SUBTOTAL(109,ΔιακυμάνσειςΕξόδωνΕκπαίδευσηςΚαιΜετακινήσεων[Μάι])","v":{"v":2000,"d":"2,000.00 €"}},{"$f":"SUBTOTAL(109,ΔιακυμάνσειςΕξόδωνΕκπαίδευσηςΚαιΜετακινήσεων[Ιούν])","v":{"v":-2300,"d":"-2,300.00 €"}},{"$f":"SUBTOTAL(109,ΔιακυμάνσειςΕξόδωνΕκπαίδευσηςΚαιΜετακινήσεων[Ιούλ])","v":{"v":4000,"d":"4,000.00 €"}},{"$f":"SUBTOTAL(109,ΔιακυμάνσειςΕξόδωνΕκπαίδευσηςΚαιΜετακινήσεων[Αύγ])","v":{"v":4000,"d":"4,000.00 €"}},{"$f":"SUBTOTAL(109,ΔιακυμάνσειςΕξόδωνΕκπαίδευσηςΚαιΜετακινήσεων[Σεπ])","v":{"v":4000,"d":"4,000.00 €"}},{"$f":"SUBTOTAL(109,ΔιακυμάνσειςΕξόδωνΕκπαίδευσηςΚαιΜετακινήσεων[Οκτ])","v":{"v":4000,"d":"4,000.00 €"}},{"$f":"SUBTOTAL(109,ΔιακυμάνσειςΕξόδωνΕκπαίδευσηςΚαιΜετακινήσεων[Νοε])","v":{"v":4000,"d":"4,000.00 €"}},{"$f":"SUBTOTAL(109,ΔιακυμάνσειςΕξόδωνΕκπαίδευσηςΚαιΜετακινήσεων[Δεκ])","v":{"v":4000,"d":"4,000.00 €"}},{"$f":"SUBTOTAL(109,ΔιακυμάνσειςΕξόδωνΕκπαίδευσηςΚαιΜετακινήσεων[ΕΤΟΣ])","v":{"v":26700,"d":"26,700.00 €"}}]
[]
["Οι διακυμανσεισ εξοδων υπολογίζονται αυτόματα στον πίνακα συνολικές διακυμάνσεις που ξεκινά στο κελί στα δεξιά.","ΣΥΝΟΛΑ","Ιαν","Φεβ","Μάρ","Απρ","Μάι","Ιούν","Ιούλ","Αύγ","Σεπ","Οκτ","Νοέ","Δεκ","Έτος"]
[null,"Μηνιαία πραγματικά έξοδα",{"$f":"ΔιακυμάνσειςΕξόδωνΕκπαίδευσηςΚαιΜετακινήσεων[[#Totals],[Ιαν]]+ΔιακυμάνσειςΕξόδωνΜάρκετινγκ[[#Totals],[Ιαν]]+ΔιακυμάνσειςΕξόδωνΓραφείου[[#Totals],[Ιαν]]+ΔιακυμάνσειςΕξόδωνΥπαλλήλων[[#Totals],[Ιαν]]","v":{"v":1738,"d":"1,738.00 €"}},{"$f":"ΔιακυμάνσειςΕξόδωνΕκπαίδευσηςΚαιΜετακινήσεων[[#Totals],[Φεβ]]+ΔιακυμάνσειςΕξόδωνΜάρκετινγκ[[#Totals],[Φεβ]]+ΔιακυμάνσειςΕξόδωνΓραφείου[[#Totals],[Φεβ]]+ΔιακυμάνσειςΕξόδωνΥπαλλήλων[[#Totals],[Φεβ]]","v":{"v":-984,"d":"-984.00 €"}},{"$f":"ΔιακυμάνσειςΕξόδωνΕκπαίδευσηςΚαιΜετακινήσεων[[#Totals],[Μάρ]]+ΔιακυμάνσειςΕξόδωνΜάρκετινγκ[[#Totals],[Μάρ]]+ΔιακυμάνσειςΕξόδωνΓραφείου[[#Totals],[Μάρ]]+ΔιακυμάνσειςΕξόδωνΥπαλλήλων[[#Totals],[Μάρ]]","v":{"v":1255,"d":"1,255.00 €"}},{"$f":"ΔιακυμάνσειςΕξόδωνΕκπαίδευσηςΚαιΜετακινήσεων[[#Totals],[Απρ]]+ΔιακυμάνσειςΕξόδωνΜάρκετινγκ[[#Totals],[Απρ]]+ΔιακυμάνσειςΕξόδωνΓραφείου[[#Totals],[Απρ]]+ΔιακυμάνσειςΕξόδωνΥπαλλήλων[[#Totals],[Απρ]]","v":{"v":301,"d":"301.00 €"}},{"$f":"ΔιακυμάνσειςΕξόδωνΕκπαίδευσηςΚαιΜετακινήσεων[[#Totals],[Μάι]]+ΔιακυμάνσειςΕξόδωνΜάρκετινγκ[[#Totals],[Μάι]]+ΔιακυμάνσειςΕξόδωνΓραφείου[[#Totals],[Μάι]]+ΔιακυμάνσειςΕξόδωνΥπαλλήλων[[#Totals],[Μάι]]","v":{"v":1440,"d":"1,440.00 €"}},{"$f":"ΔιακυμάνσειςΕξόδωνΕκπαίδευσηςΚαιΜετακινήσεων[[#Totals],[Ιούν]]+ΔιακυμάνσειςΕξόδωνΜάρκετινγκ[[#Totals],[Ιούν]]+ΔιακυμάνσειςΕξόδωνΓραφείου[[#Totals],[Ιούν]]+ΔιακυμάνσειςΕξόδωνΥπαλλήλων[[#Totals],[Ιούν]]","v":{"v":-3744,"d":"-3,744.00 €"}},{"$f":"ΔιακυμάνσειςΕξόδωνΕκπαίδευσηςΚαιΜετακινήσεων[[#Totals],[Ιούλ]]+ΔιακυμάνσειςΕξόδωνΜάρκετινγκ[[#Totals],[Ιούλ]]+ΔιακυμάνσειςΕξόδωνΓραφείου[[#Totals],[Ιούλ]]+ΔιακυμάνσειςΕξόδωνΥπαλλήλων[[#Totals],[Ιούλ]]","v":{"v":134695,"d":"134,695.00 €"}},{"$f":"ΔιακυμάνσειςΕξόδωνΕκπαίδευσηςΚαιΜετακινήσεων[[#Totals],[Αύγ]]+ΔιακυμάνσειςΕξόδωνΜάρκετινγκ[[#Totals],[Αύγ]]+ΔιακυμάνσειςΕξόδωνΓραφείου[[#Totals],[Αύγ]]+ΔιακυμάνσειςΕξόδωνΥπαλλήλων[[#Totals],[Αύγ]]","v":{"v":138918,"d":"138,918.00 €"}},{"$f":"ΔιακυμάνσειςΕξόδωνΕκπαίδευσηςΚαιΜετακινήσεων[[#Totals],[Σεπ]]+ΔιακυμάνσειςΕξόδωνΜάρκετινγκ[[#Totals],[Σεπ]]+ΔιακυμάνσειςΕξόδωνΓραφείου[[#Totals],[Σεπ]]+ΔιακυμάνσειςΕξόδωνΥπαλλήλων[[#Totals],[Σεπ]]","v":{"v":135918,"d":"135,918.00 €"}},{"$f":"ΔιακυμάνσειςΕξόδωνΕκπαίδευσηςΚαιΜετακινήσεων[[#Totals],[Οκτ]]+ΔιακυμάνσειςΕξόδωνΜάρκετινγκ[[#Totals],[Οκτ]]+ΔιακυμάνσειςΕξόδωνΓραφείου[[#Totals],[Οκτ]]+ΔιακυμάνσειςΕξόδωνΥπαλλήλων[[#Totals],[Οκτ]]","v":{"v":140918,"d":"140,918.00 €"}},{"$f":"ΔιακυμάνσειςΕξόδωνΕκπαίδευσηςΚαιΜετακινήσεων[[#Totals],[Νοε]]+ΔιακυμάνσειςΕξόδωνΜάρκετινγκ[[#Totals],[Νοε]]+ΔιακυμάνσειςΕξόδωνΓραφείου[[#Totals],[Νοε]]+ΔιακυμάνσειςΕξόδωνΥπαλλήλων[[#Totals],[Νοέ]]","v":{"v":136218,"d":"136,218.00 €"}},{"$f":"ΔιακυμάνσειςΕξόδωνΕκπαίδευσηςΚαιΜετακινήσεων[[#Totals],[Δεκ]]+ΔιακυμάνσειςΕξόδωνΜάρκετινγκ[[#Totals],[Δεκ]]+ΔιακυμάνσειςΕξόδωνΓραφείου[[#Totals],[Δεκ]]+ΔιακυμάνσειςΕξόδωνΥπαλλήλων[[#Totals],[Δεκ]]","v":{"v":140018,"d":"140,018.00 €"}},{"$f":"ΔιακυμάνσειςΕξόδωνΕκπαίδευσηςΚαιΜετακινήσεων[[#Totals],[ΕΤΟΣ]]+ΔιακυμάνσειςΕξόδωνΜάρκετινγκ[[#Totals],[ΕΤΟΣ]]+ΔιακυμάνσειςΕξόδωνΓραφείου[[#Totals],[ΕΤΟΣ]]+ΔιακυμάνσειςΕξόδωνΥπαλλήλων[[#Totals],[ΕΤΟΣ]]","v":{"v":826691,"d":"826,691.00 €"}}]
[null,"ΣΥΝΟΛΙΚΑ πραγματικά έξοδα",{"$f":"SUM($C$36:C36)","v":{"v":1738,"d":"1,738.00 €"}},{"$f":"SUM($C$36:D36)","v":{"v":754,"d":"754.00 €"}},{"$f":"SUM($C$36:E36)","v":{"v":2009,"d":"2,009.00 €"}},{"$f":"SUM($C$36:F36)","v":{"v":2310,"d":"2,310.00 €"}},{"$f":"SUM($C$36:G36)","v":{"v":3750,"d":"3,750.00 €"}},{"$f":"SUM($C$36:H36)","v":{"v":6,"d":"6.00 €"}},{"$f":"SUM($C$36:I36)","v":{"v":134701,"d":"134,701.00 €"}},{"$f":"SUM($C$36:J36)","v":{"v":273619,"d":"273,619.00 €"}},{"$f":"SUM($C$36:K36)","v":{"v":409537,"d":"409,537.00 €"}},{"$f":"SUM($C$36:L36)","v":{"v":550455,"d":"550,455.00 €"}},{"$f":"SUM($C$36:M36)","v":{"v":686673,"d":"686,673.00 €"}},{"$f":"SUM($C$36:N36)","v":{"v":826691,"d":"826,691.00 €"}}]

{"sheet":"ΑΝΑΛΥΣΗ ΕΞΟΔΩΝ","index":4,"n_rows":14,"n_cols":16,"rows_kept":14,"merged":[[1,1,2,3],[1,5,1,6],[2,4,2,6],[11,1,11,2],[11,3,11,5],[13,1,36,5]]}
["Τα ετήσια προγραμματισμένα και πραγματικά έξοδα, οι διακυμάνσεις εξόδων και το ποσοστό διακύμανσης ενημερώνονται αυτόματα για κάθε κατηγορία εξόδων σε αυτό το φύλλο εργασίας. Σε διάφορα κελιά σε αυτή τη στήλη βρίσκονται χρήσιμες οδηγίες για τον τρόπο χρήσης αυτού του φύλλου εργασίας. Πατήστε το κάτω βέλος για να ξεκινήσετε. ",{"$nulls":5}," ",{"$nulls":8}," "]
["Η επωνυμία εταιρείας ενημερώνεται αυτόματα στο κελί στα δεξιά. Εισαγάγετε το λογότυπο στο κελί F2.",{"$f":"'ΠΡΟΓΡΑΜΜΑΤΙΣΜΕΝΑ ΕΞΟΔΑ'!B2:D3","v":"Επωνυμία εταιρείας"},{"$nulls":3},"Σε αυτό το κελί βρίσκεται σύμβολο κράτησης θέσης λογότυπου."]
["Στο κελί E3 βρίσκεται ο τίτλος αυτού του φύλλου εργασίας. Η επόμενη οδηγία βρίσκεται στο κελί A5.",{"$nulls":3},{"$f":"τίτλος_φύλλου_εργασίας","v":"Λεπτομερείς εκτιμήσεις εξόδων"}]
[]
["Τα προγραμματισμένα έξοδα, τα πραγματικά έξοδα, η διακύμανση εξόδων και το ποσοστό διακύμανσης υπολογίζονται αυτόματα στον πίνακα ανάλυση που ξεκινά στο κελί στα δεξιά. Η επόμενη οδηγία βρίσκεται στο κελί A12.","Κατηγορία εξόδων","Προγραμματισμένα έξοδα","Πραγματικά έξοδα","Διακυμάνσεις εξόδων","Ποσοστό διακύμανσης"]
[null,"Έξοδα υπαλλήλων",{"$f":"ΠρογραμματισμέναΈξοδαΥπαλλήλων[[#Totals],[ΕΤΟΣ]]","v":{"v":1355090,"d":"1,355,090.00 €"}},{"$f":"ΠραγματικάΈξοδαΥπαλλήλων[[#Totals],[ΕΤΟΣ]]","v":{"v":659130,"d":"659,130.00 €"}},{"$f":"C6-D6","v":{"v":695960,"d":"695,960.00 €"}},{"$f":"E6/C6","v":{"v":0.5135895032802249,"d":"51%"}}]
[null,{"$f":"'ΠΡΟΓΡΑΜΜΑΤΙΣΜΕΝΑ ΕΞΟΔΑ'!B10","v":"Έξοδα γραφείου"},{"$f":"ΠρογραμματισμέναΈξοδαΓραφείου[[#Totals],[ΕΤΟΣ]]","v":{"v":138740,"d":"138,740.00 €"}},{"$f":"ΠραγματικάΈξοδαΓραφείου[[#Totals],[ΕΤΟΣ]]","v":{"v":69350,"d":"69,350.00 €"}},{"$f":"C7-D7","v":{"v":69390,"d":"69,390.00 €"}},{"$f":"E7/C7","v":{"v":0.5001441545336601,"d":"50%"}}]
[null,{"$f":"'ΠΡΟΓΡΑΜΜΑΤΙΣΜΕΝΑ ΕΞΟΔΑ'!B21","v":"Έξοδα μάρκετινγκ"},{"$f":"ΠρογραμματισμέναΈξοδαΜάρκετινγκ[[#Totals],[ΕΤΟΣ]]","v":{"v":67800,"d":"67,800.00 €"}},{"$f":"ΠραγματικάΈξοδαΜάρκετινγκ[[#Totals],[ΕΤΟΣ]]","v":{"v":33159,"d":"33,159.00 €"}},{"$f":"C8-D8","v":{"v":34641,"d":"34,641.00 €"}},{"$f":"E8/C8","v":{"v":0.510929203539823,"d":"51%"}}]
[null,{"$f":"'ΠΡΟΓΡΑΜΜΑΤΙΣΜΕΝΑ ΕΞΟΔΑ'!B30","v":"Εκπαίδευση/Ταξίδια"},{"$f":"ΠρογραμματισμέναΈξοδαΕκπαίδευσηςΚαιΜετακινήσεων[[#Totals],[ΕΤΟΣ]]","v":{"v":48000,"d":"48,000.00 €"}},{"$f":"ΠραγματικάΈξοδαΕκπαίδευσηςΚαιΜετακινήσεων[[#Totals],[ΕΤΟΣ]]","v":{"v":21300,"d":"21,300.00 €"}},{"$f":"C9-D9","v":{"v":26700,"d":"26,700.00 €"}},{"$f":"E9/C9","v":{"v":0.55625,"d":"56%"}}]
[null,{"$f":"'ΠΡΟΓΡΑΜΜΑΤΙΣΜΕΝΑ ΕΞΟΔΑ'!B35","v":"ΣΥΝΟΛΑ"},{"$f":"'ΠΡΟΓΡΑΜΜΑΤΙΣΜΕΝΑ ΕΞΟΔΑ'!O36","v":{"v":1609630,"d":"1,609,630.00 €"}},{"$f":"'ΠΡΑΓΜΑΤΙΚΑ ΕΞΟΔΑ'!O36","v":{"v":782939,"d":"782,939.00 €"}},{"$f":"C10-D10","v":{"v":826691,"d":"826,691.00 €"}},{"$f":"E10/C10","v":{"v":0.5135907009685455,"d":"51%"}}]
[]
["Το γράφημα πίτας προγραμματισμένα έξοδα βρίσκεται στο κελί στα δεξιά και το γράφημα πίτας πραγματικά έξοδα στο κελί D12. Η επόμενη οδηγία βρίσκεται στο κελί A14.","Σε αυτό το κελί βρίσκεται το γράφημα πίτας που εμφανίζει τα προγραμματισμένα έξοδα σε διάφορες κατηγορίες.",null,"Σε αυτό το κελί βρίσκεται το γράφημα πίτας που εμφανίζει τα πραγματικά έξοδα που προέκυψαν σε διάφορες κατηγορίες."]
[]
["Το γράφημα που εμφανίζει τα προγραμματισμένα έξοδα, τα πραγματικά έξοδα και τη διακύμανση στα μηνιαία έξοδα βρίσκεται στο κελί στα δεξιά."]